Workbook

Sheet READ ME
A2: READ ME | E2: This template is created by Marc Arnecke, PMP and is available for download from http://project-management.magt.biz
A6: 1 | B6: Before using this register go to the sheet "Test_Procedure" and define your own tests to be carried out.
B7: The pre-defined example can be deleted. The name of the test will appear in the "data entry" sheet in the drop down menue and the reference values will appear in the corresponding line and columns.
A11: 2 | B11: Enter data in the table called "data entry"
B12: Data must be entered only here. Please note that formulas are only copied down up to line 5000. Data entry therefore is limited to approx. 5000 datasets and must be modified if necessary.
A16: 3 | B16: The sheet called "Testing Report" gives you a small statistical overview per testing procedure.
B17: You can only enter the printing date, your name and choose the Testing Procedure in the light blue field. If further adjustements are required, you need to unprotect the sheet. Especially the control chart I guess you need to modify a little bit to match your range of data. E.g. it is currently set to display data in the range between 80 - 100 (follow steps below).
I21: 1. Unprotect sheet
I35: 2. Right click the axis on the left
I36: (before clicking the axis one time click any empty cell to make sure the chart isn't active)
I56: 3. Adjust to your needs and protect the sheet again.

Sheet Data Entry
A1: Test Register | CB1: Printed on: | CE1: =TODAY() -> 2018-04-14
CB2: Printed by:
A3: Project: | K3: [Project name] | AS3: Contract number: | BC3: [Contract Number]
A4: Sub-Project or Phase: | K4: [Sub-Project, Phase, etc.] | AS4: Project Manager: | BC4: [Project Manager]
A5: Client: | K5: [Client] | AS5: QA/QC Manager: | BC5: [QA/QC Manager]
A6: Proj. Mgmt. Consultant: | K6: [Project. Mgmt. Consultant]
A7: Supervisory Consultant: | K7: [Supervisory Consultant]
A8: ID | C8: Item/area tested | S8: Date | X8: Test Procedure | AP8: UOM | AS8: Test result(s) | BE8: Range | BI8: Tolerance | BM8: Result | BP8: Remarks
AS9: 1 | AU9: 2 | AW9: 3 | AY9: 4 | BA9: 5 | BC9: aver. | BE9: min. | BG9: max. | BI9: lower | BK9: upper
A10: A | C10: B | S10: C | X10: D | AP10: E | AS10: F | AU10: G | AW10: H | AY10: I | BA10: J | BC10: K | BE10: L | BG10: M | BI10: N | BK10: O | BM10: P | BP10: Q
A11: 0001 | C11: Example1 | S11: 2013-11-01 | X11: Procedure 1 | AP11: =IF($X11="","",VLOOKUP($X11,Test_Procedure!$A:$F,2,FALSE)) -> mm | AS11: 90 | AU11: 87 | AW11: 96 | AY11: 94 | BA11: 95 | BC11: =IF(AS11="","",AVERAGE(AS11:BB11)) -> 92.4 | BE11: =IF($X11="",0,VLOOKUP($X11,Test_Procedure!$A:$F,3,FALSE)) -> 90 | BG11: =IF($X11="",0,VLOOKUP($X11,Test_Procedure!$A:$F,4,FALSE)) -> 95 | BI11: =IF($X11="",0,VLOOKUP($X11,Test_Procedure!$A:$F,5,FALSE)) -> 88 | BK11: =IF($X11="",0,VLOOKUP($X11,Test_Procedure!$A:$F,6,FALSE)) -> 97 | BM11: passed | XEZ11: =IF(COUNTIF($X11:$X$5000,'Testing Report'!$G$8)=0,"",COUNTIF($X11:$X$5000,'Testing Report'!$G$8)) -> 30 | XFB11: =IF(ISERROR(VLOOKUP('Testing Report'!$G$8,$X11:$BD11,32,FALSE)),"",VLOOKUP('Testing Report'!$G$8,$X11:$BD11,32,FALSE)) -> 92.4 | XFD11: =X11&BM11 -> Procedure 1passed
A12: =IF(C11="","",A11+1) -> 0002 | C12: Write any descriptive text… | S12: 2013-11-02 | X12: Procedure 1 | AP12: =IF($X12="","",VLOOKUP($X12,Test_Procedure!$A:$F,2,FALSE)) -> mm | AS12: 91 | AU12: 92 | AW12: 83 | AY12: 100 | BA12: 94 | BC12: =IF(AS12="","",AVERAGE(AS12:BB12)) -> 92 | BE12: =IF($X12="",0,VLOOKUP($X12,Test_Procedure!$A:$F,3,FALSE)) -> 90 | BG12: =IF($X12="",0,VLOOKUP($X12,Test_Procedure!$A:$F,4,FALSE)) -> 95 | BI12: =IF($X12="",0,VLOOKUP($X12,Test_Procedure!$A:$F,5,FALSE)) -> 88 | BK12: =IF($X12="",0,VLOOKUP($X12,Test_Procedure!$A:$F,6,FALSE)) -> 97 | BM12: passed | XEZ12: =IF(COUNTIF($X12:$X$5000,'Testing Report'!$G$8)=0,"",COUNTIF($X12:$X$5000,'Testing Report'!$G$8)) -> 29 | XFB12: =IF(ISERROR(VLOOKUP('Testing Report'!$G$8,$X12:$BD12,32,FALSE)),"",VLOOKUP('Testing Report'!$G$8,$X12:$BD12,32,FALSE)) -> 92 | XFD12: =X12&BM12 -> Procedure 1passed
A13: =IF(C12="","",A12+1) -> 0003 | C13: Example3 | S13: 2013-11-04 | X13: Procedure 1 | AP13: =IF($X13="","",VLOOKUP($X13,Test_Procedure!$A:$F,2,FALSE)) -> mm | AS13: 90 | AU13: 91 | AW13: 92 | AY13: 88 | BA13: 100 | BC13: =IF(AS13="","",AVERAGE(AS13:BB13)) -> 92.2 | BE13: =IF($X13="",0,VLOOKUP($X13,Test_Procedure!$A:$F,3,FALSE)) -> 90 | BG13: =IF($X13="",0,VLOOKUP($X13,Test_Procedure!$A:$F,4,FALSE)) -> 95 | BI13: =IF($X13="",0,VLOOKUP($X13,Test_Procedure!$A:$F,5,FALSE)) -> 88 | BK13: =IF($X13="",0,VLOOKUP($X13,Test_Procedure!$A:$F,6,FALSE)) -> 97 | BM13: passed | XEZ13: =IF(COUNTIF($X13:$X$5000,'Testing Report'!$G$8)=0,"",COUNTIF($X13:$X$5000,'Testing Report'!$G$8)) -> 28 | XFB13: =IF(ISERROR(VLOOKUP('Testing Report'!$G$8,$X13:$BD13,32,FALSE)),"",VLOOKUP('Testing Report'!$G$8,$X13:$BD13,32,FALSE)) -> 92.2 | XFD13: =X13&BM13 -> Procedure 1passed
A14: =IF(C13="","",A13+1) -> 0004 | C14: Example4 | S14: 2013-11-05 | X14: Procedure 1 | AP14: =IF($X14="","",VLOOKUP($X14,Test_Procedure!$A:$F,2,FALSE)) -> mm | AS14: 91 | AU14: 92 | AW14: 93 | AY14: 89 | BA14: 85 | BC14: =IF(AS14="","",AVERAGE(AS14:BB14)) -> 90 | BE14: =IF($X14="",0,VLOOKUP($X14,Test_Procedure!$A:$F,3,FALSE)) -> 90 | BG14: =IF($X14="",0,VLOOKUP($X14,Test_Procedure!$A:$F,4,FALSE)) -> 95 | BI14: =IF($X14="",0,VLOOKUP($X14,Test_Procedure!$A:$F,5,FALSE)) -> 88 | BK14: =IF($X14="",0,VLOOKUP($X14,Test_Procedure!$A:$F,6,FALSE)) -> 97 | BM14: passed | XEX14: =IF(ISERROR(VLOOKUP('Testing Report'!$G$8,$AG14:$BD14,13,FALSE)),"",VLOOKUP('Testing Report'!$G$8,$AG14:$BD14,13,FALSE)) ->  | XEY14: =IF(ISERROR(VLOOKUP('Testing Report'!$G$8,$AG14:$BD14,15,FALSE)),"",VLOOKUP('Testing Report'!$G$8,$AG14:$BD14,15,FALSE)) ->  | XEZ14: =IF(COUNTIF($X14:$X$5000,'Testing Report'!$G$8)=0,"",COUNTIF($X14:$X$5000,'Testing Report'!$G$8)) -> 27 | XFA14: =IF(ISERROR(VLOOKUP('Testing Report'!$G$8,$AG14:$BD14,19,FALSE)),"",VLOOKUP('Testing Report'!$G$8,$AG14:$BD14,19,FALSE)) ->  | XFB14: =IF(ISERROR(VLOOKUP('Testing Report'!$G$8,$X14:$BD14,32,FALSE)),"",VLOOKUP('Testing Report'!$G$8,$X14:$BD14,32,FALSE)) -> 90 | XFD14: =X14&BM14 -> Procedure 1passed
A15: =IF(C14="","",A14+1) -> 0005 | C15: Example5 | S15: 2013-11-06 | X15: Procedure 1 | AP15: =IF($X15="","",VLOOKUP($X15,Test_Procedure!$A:$F,2,FALSE)) -> mm | AS15: 92 | AU15: 93 | AW15: 94 | AY15: 90 | BA15: 86 | BC15: 91 | BE15: =IF($X15="",0,VLOOKUP($X15,Test_Procedure!$A:$F,3,FALSE)) -> 90 | BG15: =IF($X15="",0,VLOOKUP($X15,Test_Procedure!$A:$F,4,FALSE)) -> 95 | BI15: =IF($X15="",0,VLOOKUP($X15,Test_Procedure!$A:$F,5,FALSE)) -> 88 | BK15: =IF($X15="",0,VLOOKUP($X15,Test_Procedure!$A:$F,6,FALSE)) -> 97 | BM15: passed | XEX15: =IF(ISERROR(VLOOKUP('Testing Report'!$G$8,$AG15:$BD15,13,FALSE)),"",VLOOKUP('Testing Report'!$G$8,$AG15:$BD15,13,FALSE)) ->  | XEY15: =IF(ISERROR(VLOOKUP('Testing Report'!$G$8,$AG15:$BD15,15,FALSE)),"",VLOOKUP('Testing Report'!$G$8,$AG15:$BD15,15,FALSE)) ->  | XEZ15: =IF(COUNTIF($X15:$X$5000,'Testing Report'!$G$8)=0,"",COUNTIF($X15:$X$5000,'Testing Report'!$G$8)) -> 26 | XFA15: =IF(ISERROR(VLOOKUP('Testing Report'!$G$8,$AG15:$BD15,19,FALSE)),"",VLOOKUP('Testing Report'!$G$8,$AG15:$BD15,19,FALSE)) ->  | XFB15: =IF(ISERROR(VLOOKUP('Testing Report'!$G$8,$X15:$BD15,32,FALSE)),"",VLOOKUP('Testing Report'!$G$8,$X15:$BD15,32,FALSE)) -> 91 | XFD15: Procedure 1passed
A16: =IF(C15="","",A15+1) -> 0006 | C16: Example6 | S16: 2013-11-02 | X16: Procedure 1 | AP16: =IF($X16="","",VLOOKUP($X16,Test_Procedure!$A:$F,2,FALSE)) -> mm | AS16: 93 | AU16: 94 | AW16: 95 | AY16: 91 | BA16: 87 | BC16: 92 | BE16: =IF($X16="",0,VLOOKUP($X16,Test_Procedure!$A:$F,3,FALSE)) -> 90 | BG16: =IF($X16="",0,VLOOKUP($X16,Test_Procedure!$A:$F,4,FALSE)) -> 95 | BI16: =IF($X16="",0,VLOOKUP($X16,Test_Procedure!$A:$F,5,FALSE)) -> 88 | BK16: =IF($X16="",0,VLOOKUP($X16,Test_Procedure!$A:$F,6,FALSE)) -> 97 | BM16: passed | XEX16: =IF(ISERROR(VLOOKUP('Testing Report'!$G$8,$AG16:$BD16,13,FALSE)),"",VLOOKUP('Testing Report'!$G$8,$AG16:$BD16,13,FALSE)) ->  | XEY16: =IF(ISERROR(VLOOKUP('Testing Report'!$G$8,$AG16:$BD16,15,FALSE)),"",VLOOKUP('Testing Report'!$G$8,$AG16:$BD16,15,FALSE)) ->  | XEZ16: =IF(COUNTIF($X16:$X$5000,'Testing Report'!$G$8)=0,"",COUNTIF($X16:$X$5000,'Testing Report'!$G$8)) -> 25 | XFA16: =IF(ISERROR(VLOOKUP('Testing Report'!$G$8,$AG16:$BD16,19,FALSE)),"",VLOOKUP('Testing Report'!$G$8,$AG16:$BD16,19,FALSE)) ->  | XFB16: =IF(ISERROR(VLOOKUP('Testing Report'!$G$8,$X16:$BD16,32,FALSE)),"",VLOOKUP('Testing Report'!$G$8,$X16:$BD16,32,FALSE)) -> 92 | XFD16: Procedure 1passed
A17: 0007 | C17: Example7 | S17: 2013-11-01 | X17: Procedure 1 | AP17: =IF($X17="","",VLOOKUP($X17,Test_Procedure!$A:$F,2,FALSE)) -> mm | AS17: 90 | AU17: 95 | AW17: 96 | AY17: 92 | BA17: 88 | BC17: 92.2 | BE17: =IF($X17="",0,VLOOKUP($X17,Test_Procedure!$A:$F,3,FALSE)) -> 90 | BG17: =IF($X17="",0,VLOOKUP($X17,Test_Procedure!$A:$F,4,FALSE)) -> 95 | BI17: =IF($X17="",0,VLOOKUP($X17,Test_Procedure!$A:$F,5,FALSE)) -> 88 | BK17: =IF($X17="",0,VLOOKUP($X17,Test_Procedure!$A:$F,6,FALSE)) -> 97 | BM17: passed | XEX17: =IF(ISERROR(VLOOKUP('Testing Report'!$G$8,$AG17:$BD17,13,FALSE)),"",VLOOKUP('Testing Report'!$G$8,$AG17:$BD17,13,FALSE)) ->  | XEY17: =IF(ISERROR(VLOOKUP('Testing Report'!$G$8,$AG17:$BD17,15,FALSE)),"",VLOOKUP('Testing Report'!$G$8,$AG17:$BD17,15,FALSE)) ->  | XEZ17: =IF(COUNTIF($X17:$X$5000,'Testing Report'!$G$8)=0,"",COUNTIF($X17:$X$5000,'Testing Report'!$G$8)) -> 24 | XFA17: =IF(ISERROR(VLOOKUP('Testing Report'!$G$8,$AG17:$BD17,19,FALSE)),"",VLOOKUP('Testing Report'!$G$8,$AG17:$BD17,19,FALSE)) ->  | XFB17: =IF(ISERROR(VLOOKUP('Testing Report'!$G$8,$X17:$BD17,32,FALSE)),"",VLOOKUP('Testing Report'!$G$8,$X17:$BD17,32,FALSE)) -> 92.2 | XFD17: Procedure 1passed
A18: 0008 | C18: Example8 | S18: 2013-10-31 | X18: Procedure 1 | AP18: =IF($X18="","",VLOOKUP($X18,Test_Procedure!$A:$F,2,FALSE)) -> mm | AS18: 91 | AU18: 88 | AW18: 97 | AY18: 93 | BA18: 89 | BC18: 91.6 | BE18: =IF($X18="",0,VLOOKUP($X18,Test_Procedure!$A:$F,3,FALSE)) -> 90 | BG18: =IF($X18="",0,VLOOKUP($X18,Test_Procedure!$A:$F,4,FALSE)) -> 95 | BI18: =IF($X18="",0,VLOOKUP($X18,Test_Procedure!$A:$F,5,FALSE)) -> 88 | BK18: =IF($X18="",0,VLOOKUP($X18,Test_Procedure!$A:$F,6,FALSE)) -> 97 | BM18: passed | XEX18: =IF(ISERROR(VLOOKUP('Testing Report'!$G$8,$AG18:$BD18,13,FALSE)),"",VLOOKUP('Testing Report'!$G$8,$AG18:$BD18,13,FALSE)) ->  | XEY18: =IF(ISERROR(VLOOKUP('Testing Report'!$G$8,$AG18:$BD18,15,FALSE)),"",VLOOKUP('Testing Report'!$G$8,$AG18:$BD18,15,FALSE)) ->  | XEZ18: =IF(COUNTIF($X18:$X$5000,'Testing Report'!$G$8)=0,"",COUNTIF($X18:$X$5000,'Testing Report'!$G$8)) -> 23 | XFA18: =IF(ISERROR(VLOOKUP('Testing Report'!$G$8,$AG18:$BD18,19,FALSE)),"",VLOOKUP('Testing Report'!$G$8,$AG18:$BD18,19,FALSE)) ->  | XFB18: =IF(ISERROR(VLOOKUP('Testing Report'!$G$8,$X18:$BD18,32,FALSE)),"",VLOOKUP('Testing Report'!$G$8,$X18:$BD18,32,FALSE)) -> 91.6 | XFD18: Procedure 1passed
A19: 0009 | C19: Example9 | S19: 2013-11-01 | X19: Procedure 1 | AP19: =IF($X19="","",VLOOKUP($X19,Test_Procedure!$A:$F,2,FALSE)) -> mm | AS19: 92 | AU19: 89 | AW19: 98 | AY19: 94 | BA19: 90 | BC19: 92.6 | BE19: =IF($X19="",0,VLOOKUP($X19,Test_Procedure!$A:$F,3,FALSE)) -> 90 | BG19: =IF($X19="",0,VLOOKUP($X19,Test_Procedure!$A:$F,4,FALSE)) -> 95 | BI19: =IF($X19="",0,VLOOKUP($X19,Test_Procedure!$A:$F,5,FALSE)) -> 88 | BK19: =IF($X19="",0,VLOOKUP($X19,Test_Procedure!$A:$F,6,FALSE)) -> 97 | BM19: passed | XEX19: =IF(ISERROR(VLOOKUP('Testing Report'!$G$8,$AG19:$BD19,13,FALSE)),"",VLOOKUP('Testing Report'!$G$8,$AG19:$BD19,13,FALSE)) ->  | XEY19: =IF(ISERROR(VLOOKUP('Testing Report'!$G$8,$AG19:$BD19,15,FALSE)),"",VLOOKUP('Testing Report'!$G$8,$AG19:$BD19,15,FALSE)) ->  | XEZ19: =IF(COUNTIF($X19:$X$5000,'Testing Report'!$G$8)=0,"",COUNTIF($X19:$X$5000,'Testing Report'!$G$8)) -> 22 | XFA19: =IF(ISERROR(VLOOKUP('Testing Report'!$G$8,$AG19:$BD19,19,FALSE)),"",VLOOKUP('Testing Report'!$G$8,$AG19:$BD19,19,FALSE)) ->  | XFB19: =IF(ISERROR(VLOOKUP('Testing Report'!$G$8,$X19:$BD19,32,FALSE)),"",VLOOKUP('Testing Report'!$G$8,$X19:$BD19,32,FALSE)) -> 92.6 | XFD19: Procedure 1passed
A20: 0010 | C20: Example10 | S20: 2013-11-02 | X20: Procedure 1 | AP20: =IF($X20="","",VLOOKUP($X20,Test_Procedure!$A:$F,2,FALSE)) -> mm | AS20: 93 | AU20: 90 | AW20: 99 | AY20: 95 | BA20: 91 | BC20: 93.6 | BE20: =IF($X20="",0,VLOOKUP($X20,Test_Procedure!$A:$F,3,FALSE)) -> 90 | BG20: =IF($X20="",0,VLOOKUP($X20,Test_Procedure!$A:$F,4,FALSE)) -> 95 | BI20: =IF($X20="",0,VLOOKUP($X20,Test_Procedure!$A:$F,5,FALSE)) -> 88 | BK20: =IF($X20="",0,VLOOKUP($X20,Test_Procedure!$A:$F,6,FALSE)) -> 97 | BM20: passed | XEX20: =IF(ISERROR(VLOOKUP('Testing Report'!$G$8,$AG20:$BD20,13,FALSE)),"",VLOOKUP('Testing Report'!$G$8,$AG20:$BD20,13,FALSE)) ->  | XEY20: =IF(ISERROR(VLOOKUP('Testing Report'!$G$8,$AG20:$BD20,15,FALSE)),"",VLOOKUP('Testing Report'!$G$8,$AG20:$BD20,15,FALSE)) ->  | XEZ20: =IF(COUNTIF($X20:$X$5000,'Testing Report'!$G$8)=0,"",COUNTIF($X20:$X$5000,'Testing Report'!$G$8)) -> 21 | XFA20: =IF(ISERROR(VLOOKUP('Testing Report'!$G$8,$AG20:$BD20,19,FALSE)),"",VLOOKUP('Testing Report'!$G$8,$AG20:$BD20,19,FALSE)) ->  | XFB20: =IF(ISERROR(VLOOKUP('Testing Report'!$G$8,$X20:$BD20,32,FALSE)),"",VLOOKUP('Testing Report'!$G$8,$X20:$BD20,32,FALSE)) -> 93.6 | XFD20: Procedure 1passed
A21: 0011 | C21: Example11 | S21: 2013-11-03 | X21: Procedure 1 | AP21: =IF($X21="","",VLOOKUP($X21,Test_Procedure!$A:$F,2,FALSE)) -> mm | AS21: 94 | AU21: 91 | AW21: 100 | AY21: 96 | BA21: 92 | BC21: 94.6 | BE21: =IF($X21="",0,VLOOKUP($X21,Test_Procedure!$A:$F,3,FALSE)) -> 90 | BG21: =IF($X21="",0,VLOOKUP($X21,Test_Procedure!$A:$F,4,FALSE)) -> 95 | BI21: =IF($X21="",0,VLOOKUP($X21,Test_Procedure!$A:$F,5,FALSE)) -> 88 | BK21: =IF($X21="",0,VLOOKUP($X21,Test_Procedure!$A:$F,6,FALSE)) -> 97 | BM21: passed | XEX21: =IF(ISERROR(VLOOKUP('Testing Report'!$G$8,$AG21:$BD21,13,FALSE)),"",VLOOKUP('Testing Report'!$G$8,$AG21:$BD21,13,FALSE)) ->  | XEY21: =IF(ISERROR(VLOOKUP('Testing Report'!$G$8,$AG21:$BD21,15,FALSE)),"",VLOOKUP('Testing Report'!$G$8,$AG21:$BD21,15,FALSE)) ->  | XEZ21: =IF(COUNTIF($X21:$X$5000,'Testing Report'!$G$8)=0,"",COUNTIF($X21:$X$5000,'Testing Report'!$G$8)) -> 20 | XFA21: =IF(ISERROR(VLOOKUP('Testing Report'!$G$8,$AG21:$BD21,19,FALSE)),"",VLOOKUP('Testing Report'!$G$8,$AG21:$BD21,19,FALSE)) ->  | XFB21: =IF(ISERROR(VLOOKUP('Testing Report'!$G$8,$X21:$BD21,32,FALSE)),"",VLOOKUP('Testing Report'!$G$8,$X21:$BD21,32,FALSE)) -> 94.6 | XFD21: Procedure 1passed
A22: =IF(C21="","",A21+1) -> 0012 | C22: Example12 | S22: 2013-11-04 | X22: Procedure 1 | AP22: =IF($X22="","",VLOOKUP($X22,Test_Procedure!$A:$F,2,FALSE)) -> mm | AS22: 95 | AU22: 92 | AW22: 101 | AY22: 97 | BA22: 93 | BC22: =IF(AS22="","",AVERAGE(AS22:BB22)) -> 95.6 | BE22: =IF($X22="",0,VLOOKUP($X22,Test_Procedure!$A:$F,3,FALSE)) -> 90 | BG22: =IF($X22="",0,VLOOKUP($X22,Test_Procedure!$A:$F,4,FALSE)) -> 95 | BI22: =IF($X22="",0,VLOOKUP($X22,Test_Procedure!$A:$F,5,FALSE)) -> 88 | BK22: =IF($X22="",0,VLOOKUP($X22,Test_Procedure!$A:$F,6,FALSE)) -> 97 | BM22: passed | XEX22: =IF(ISERROR(VLOOKUP('Testing Report'!$G$8,$AG22:$BD22,13,FALSE)),"",VLOOKUP('Testing Report'!$G$8,$AG22:$BD22,13,FALSE)) ->  | XEY22: =IF(ISERROR(VLOOKUP('Testing Report'!$G$8,$AG22:$BD22,15,FALSE)),"",VLOOKUP('Testing Report'!$G$8,$AG22:$BD22,15,FALSE)) ->  | XEZ22: =IF(COUNTIF($X22:$X$5000,'Testing Report'!$G$8)=0,"",COUNTIF($X22:$X$5000,'Testing Report'!$G$8)) -> 19 | XFA22: =IF(ISERROR(VLOOKUP('Testing Report'!$G$8,$AG22:$BD22,19,FALSE)),"",VLOOKUP('Testing Report'!$G$8,$AG22:$BD22,19,FALSE)) ->  | XFB22: =IF(ISERROR(VLOOKUP('Testing Report'!$G$8,$X22:$BD22,32,FALSE)),"",VLOOKUP('Testing Report'!$G$8,$X22:$BD22,32,FALSE)) -> 95.6 | XFD22: Procedure 1passed
A23: 0013 | C23: Example13 | S23: 2013-11-05 | X23: Procedure 1 | AP23: =IF($X23="","",VLOOKUP($X23,Test_Procedure!$A:$F,2,FALSE)) -> mm | AS23: 96 | AU23: 93 | AW23: 90 | AY23: 98 | BA23: 94 | BC23: 94.2 | BE23: =IF($X23="",0,VLOOKUP($X23,Test_Procedure!$A:$F,3,FALSE)) -> 90 | BG23: =IF($X23="",0,VLOOKUP($X23,Test_Procedure!$A:$F,4,FALSE)) -> 95 | BI23: =IF($X23="",0,VLOOKUP($X23,Test_Procedure!$A:$F,5,FALSE)) -> 88 | BK23: =IF($X23="",0,VLOOKUP($X23,Test_Procedure!$A:$F,6,FALSE)) -> 97 | BM23: passed | XEX23: =IF(ISERROR(VLOOKUP('Testing Report'!$G$8,$AG23:$BD23,13,FALSE)),"",VLOOKUP('Testing Report'!$G$8,$AG23:$BD23,13,FALSE)) ->  | XEY23: =IF(ISERROR(VLOOKUP('Testing Report'!$G$8,$AG23:$BD23,15,FALSE)),"",VLOOKUP('Testing Report'!$G$8,$AG23:$BD23,15,FALSE)) ->  | XEZ23: =IF(COUNTIF($X23:$X$5000,'Testing Report'!$G$8)=0,"",COUNTIF($X23:$X$5000,'Testing Report'!$G$8)) -> 18 | XFA23: =IF(ISERROR(VLOOKUP('Testing Report'!$G$8,$AG23:$BD23,19,FALSE)),"",VLOOKUP('Testing Report'!$G$8,$AG23:$BD23,19,FALSE)) ->  | XFB23: =IF(ISERROR(VLOOKUP('Testing Report'!$G$8,$X23:$BD23,32,FALSE)),"",VLOOKUP('Testing Report'!$G$8,$X23:$BD23,32,FALSE)) -> 94.2 | XFD23: Procedure 1passed
A24: 0014 | C24: Example14 | S24: 2013-11-06 | X24: Procedure 1 | AP24: =IF($X24="","",VLOOKUP($X24,Test_Procedure!$A:$F,2,FALSE)) -> mm | AS24: 97 | AU24: 94 | AW24: 91 | AY24: 99 | BA24: 95 | BC24: 95.2 | BE24: =IF($X24="",0,VLOOKUP($X24,Test_Procedure!$A:$F,3,FALSE)) -> 90 | BG24: =IF($X24="",0,VLOOKUP($X24,Test_Procedure!$A:$F,4,FALSE)) -> 95 | BI24: =IF($X24="",0,VLOOKUP($X24,Test_Procedure!$A:$F,5,FALSE)) -> 88 | BK24: =IF($X24="",0,VLOOKUP($X24,Test_Procedure!$A:$F,6,FALSE)) -> 97 | BM24: passed | XEX24: =IF(ISERROR(VLOOKUP('Testing Report'!$G$8,$AG24:$BD24,13,FALSE)),"",VLOOKUP('Testing Report'!$G$8,$AG24:$BD24,13,FALSE)) ->  | XEY24: =IF(ISERROR(VLOOKUP('Testing Report'!$G$8,$AG24:$BD24,15,FALSE)),"",VLOOKUP('Testing Report'!$G$8,$AG24:$BD24,15,FALSE)) ->  | XEZ24: =IF(COUNTIF($X24:$X$5000,'Testing Report'!$G$8)=0,"",COUNTIF($X24:$X$5000,'Testing Report'!$G$8)) -> 17 | XFA24: =IF(ISERROR(VLOOKUP('Testing Report'!$G$8,$AG24:$BD24,19,FALSE)),"",VLOOKUP('Testing Report'!$G$8,$AG24:$BD24,19,FALSE)) ->  | XFB24: =IF(ISERROR(VLOOKUP('Testing Report'!$G$8,$X24:$BD24,32,FALSE)),"",VLOOKUP('Testing Report'!$G$8,$X24:$BD24,32,FALSE)) -> 95.2 | XFD24: Procedure 1passed
A25: 0015 | C25: Example15 | S25: 2013-11-07 | X25: Procedure 1 | AP25: =IF($X25="","",VLOOKUP($X25,Test_Procedure!$A:$F,2,FALSE)) -> mm | AS25: 91 | AU25: 95 | AW25: 92 | AY25: 85 | BA25: 96 | BC25: 91.8 | BE25: =IF($X25="",0,VLOOKUP($X25,Test_Procedure!$A:$F,3,FALSE)) -> 90 | BG25: =IF($X25="",0,VLOOKUP($X25,Test_Procedure!$A:$F,4,FALSE)) -> 95 | BI25: =IF($X25="",0,VLOOKUP($X25,Test_Procedure!$A:$F,5,FALSE)) -> 88 | BK25: =IF($X25="",0,VLOOKUP($X25,Test_Procedure!$A:$F,6,FALSE)) -> 97 | BM25: passed | XEX25: =IF(ISERROR(VLOOKUP('Testing Report'!$G$8,$AG25:$BD25,13,FALSE)),"",VLOOKUP('Testing Report'!$G$8,$AG25:$BD25,13,FALSE)) ->  | XEY25: =IF(ISERROR(VLOOKUP('Testing Report'!$G$8,$AG25:$BD25,15,FALSE)),"",VLOOKUP('Testing Report'!$G$8,$AG25:$BD25,15,FALSE)) ->  | XEZ25: =IF(COUNTIF($X25:$X$5000,'Testing Report'!$G$8)=0,"",COUNTIF($X25:$X$5000,'Testing Report'!$G$8)) -> 16 | XFA25: =IF(ISERROR(VLOOKUP('Testing Report'!$G$8,$AG25:$BD25,19,FALSE)),"",VLOOKUP('Testing Report'!$G$8,$AG25:$BD25,19,FALSE)) ->  | XFB25: =IF(ISERROR(VLOOKUP('Testing Report'!$G$8,$X25:$BD25,32,FALSE)),"",VLOOKUP('Testing Report'!$G$8,$X25:$BD25,32,FALSE)) -> 91.8 | XFD25: Procedure 1passed
A26: 0016 | C26: Example16 | S26: 2013-10-20 | X26: Procedure 1 | AP26: =IF($X26="","",VLOOKUP($X26,Test_Procedure!$A:$F,2,FALSE)) -> mm | AS26: 92 | AU26: 96 | AW26: 93 | AY26: 86 | BA26: 97 | BC26: 92.8 | BE26: =IF($X26="",0,VLOOKUP($X26,Test_Procedure!$A:$F,3,FALSE)) -> 90 | BG26: =IF($X26="",0,VLOOKUP($X26,Test_Procedure!$A:$F,4,FALSE)) -> 95 | BI26: =IF($X26="",0,VLOOKUP($X26,Test_Procedure!$A:$F,5,FALSE)) -> 88 | BK26: =IF($X26="",0,VLOOKUP($X26,Test_Procedure!$A:$F,6,FALSE)) -> 97 | BM26: passed | XEX26: =IF(ISERROR(VLOOKUP('Testing Report'!$G$8,$AG26:$BD26,13,FALSE)),"",VLOOKUP('Testing Report'!$G$8,$AG26:$BD26,13,FALSE)) ->  | XEY26: =IF(ISERROR(VLOOKUP('Testing Report'!$G$8,$AG26:$BD26,15,FALSE)),"",VLOOKUP('Testing Report'!$G$8,$AG26:$BD26,15,FALSE)) ->  | XEZ26: =IF(COUNTIF($X26:$X$5000,'Testing Report'!$G$8)=0,"",COUNTIF($X26:$X$5000,'Testing Report'!$G$8)) -> 15 | XFA26: =IF(ISERROR(VLOOKUP('Testing Report'!$G$8,$AG26:$BD26,19,FALSE)),"",VLOOKUP('Testing Report'!$G$8,$AG26:$BD26,19,FALSE)) ->  | XFB26: =IF(ISERROR(VLOOKUP('Testing Report'!$G$8,$X26:$BD26,32,FALSE)),"",VLOOKUP('Testing Report'!$G$8,$X26:$BD26,32,FALSE)) -> 92.8 | XFD26: Procedure 1passed
A27: 0017 | C27: Example17 | S27: 2013-10-21 | X27: Procedure 1 | AP27: =IF($X27="","",VLOOKUP($X27,Test_Procedure!$A:$F,2,FALSE)) -> mm | AS27: 93 | AU27: 97 | AW27: 94 | AY27: 87 | BA27: 98 | BC27: 93.8 | BE27: =IF($X27="",0,VLOOKUP($X27,Test_Procedure!$A:$F,3,FALSE)) -> 90 | BG27: =IF($X27="",0,VLOOKUP($X27,Test_Procedure!$A:$F,4,FALSE)) -> 95 | BI27: =IF($X27="",0,VLOOKUP($X27,Test_Procedure!$A:$F,5,FALSE)) -> 88 | BK27: =IF($X27="",0,VLOOKUP($X27,Test_Procedure!$A:$F,6,FALSE)) -> 97 | BM27: passed | XEX27: =IF(ISERROR(VLOOKUP('Testing Report'!$G$8,$AG27:$BD27,13,FALSE)),"",VLOOKUP('Testing Report'!$G$8,$AG27:$BD27,13,FALSE)) ->  | XEY27: =IF(ISERROR(VLOOKUP('Testing Report'!$G$8,$AG27:$BD27,15,FALSE)),"",VLOOKUP('Testing Report'!$G$8,$AG27:$BD27,15,FALSE)) ->  | XEZ27: =IF(COUNTIF($X27:$X$5000,'Testing Report'!$G$8)=0,"",COUNTIF($X27:$X$5000,'Testing Report'!$G$8)) -> 14 | XFA27: =IF(ISERROR(VLOOKUP('Testing Report'!$G$8,$AG27:$BD27,19,FALSE)),"",VLOOKUP('Testing Report'!$G$8,$AG27:$BD27,19,FALSE)) ->  | XFB27: =IF(ISERROR(VLOOKUP('Testing Report'!$G$8,$X27:$BD27,32,FALSE)),"",VLOOKUP('Testing Report'!$G$8,$X27:$BD27,32,FALSE)) -> 93.8 | XFD27: Procedure 1passed
A28: 0018 | C28: Example18 | S28: 2013-10-22 | X28: Procedure 1 | AP28: =IF($X28="","",VLOOKUP($X28,Test_Procedure!$A:$F,2,FALSE)) -> mm | AS28: 94 | AU28: 98 | AW28: 95 | AY28: 88 | BA28: 99 | BC28: 94.8 | BE28: =IF($X28="",0,VLOOKUP($X28,Test_Procedure!$A:$F,3,FALSE)) -> 90 | BG28: =IF($X28="",0,VLOOKUP($X28,Test_Procedure!$A:$F,4,FALSE)) -> 95 | BI28: =IF($X28="",0,VLOOKUP($X28,Test_Procedure!$A:$F,5,FALSE)) -> 88 | BK28: =IF($X28="",0,VLOOKUP($X28,Test_Procedure!$A:$F,6,FALSE)) -> 97 | BM28: passed | XEX28: =IF(ISERROR(VLOOKUP('Testing Report'!$G$8,$AG28:$BD28,13,FALSE)),"",VLOOKUP('Testing Report'!$G$8,$AG28:$BD28,13,FALSE)) ->  | XEY28: =IF(ISERROR(VLOOKUP('Testing Report'!$G$8,$AG28:$BD28,15,FALSE)),"",VLOOKUP('Testing Report'!$G$8,$AG28:$BD28,15,FALSE)) ->  | XEZ28: =IF(COUNTIF($X28:$X$5000,'Testing Report'!$G$8)=0,"",COUNTIF($X28:$X$5000,'Testing Report'!$G$8)) -> 13 | XFA28: =IF(ISERROR(VLOOKUP('Testing Report'!$G$8,$AG28:$BD28,19,FALSE)),"",VLOOKUP('Testing Report'!$G$8,$AG28:$BD28,19,FALSE)) ->  | XFB28: =IF(ISERROR(VLOOKUP('Testing Report'!$G$8,$X28:$BD28,32,FALSE)),"",VLOOKUP('Testing Report'!$G$8,$X28:$BD28,32,FALSE)) -> 94.8 | XFD28: Procedure 1passed
A29: 0019 | C29: Example19 | S29: 2013-10-23 | X29: Procedure 1 | AP29: =IF($X29="","",VLOOKUP($X29,Test_Procedure!$A:$F,2,FALSE)) -> mm | AS29: 95 | AU29: 99 | AW29: 96 | AY29: 89 | BA29: 100 | BC29: 95.8 | BE29: =IF($X29="",0,VLOOKUP($X29,Test_Procedure!$A:$F,3,FALSE)) -> 90 | BG29: =IF($X29="",0,VLOOKUP($X29,Test_Procedure!$A:$F,4,FALSE)) -> 95 | BI29: =IF($X29="",0,VLOOKUP($X29,Test_Procedure!$A:$F,5,FALSE)) -> 88 | BK29: =IF($X29="",0,VLOOKUP($X29,Test_Procedure!$A:$F,6,FALSE)) -> 97 | BM29: passed | XEX29: =IF(ISERROR(VLOOKUP('Testing Report'!$G$8,$AG29:$BD29,13,FALSE)),"",VLOOKUP('Testing Report'!$G$8,$AG29:$BD29,13,FALSE)) ->  | XEY29: =IF(ISERROR(VLOOKUP('Testing Report'!$G$8,$AG29:$BD29,15,FALSE)),"",VLOOKUP('Testing Report'!$G$8,$AG29:$BD29,15,FALSE)) ->  | XEZ29: =IF(COUNTIF($X29:$X$5000,'Testing Report'!$G$8)=0,"",COUNTIF($X29:$X$5000,'Testing Report'!$G$8)) -> 12 | XFA29: =IF(ISERROR(VLOOKUP('Testing Report'!$G$8,$AG29:$BD29,19,FALSE)),"",VLOOKUP('Testing Report'!$G$8,$AG29:$BD29,19,FALSE)) ->  | XFB29: =IF(ISERROR(VLOOKUP('Testing Report'!$G$8,$X29:$BD29,32,FALSE)),"",VLOOKUP('Testing Report'!$G$8,$X29:$BD29,32,FALSE)) -> 95.8 | XFD29: Procedure 1passed
A30: 0020 | C30: Example20 | S30: 2013-10-24 | X30: Procedure 1 | AP30: =IF($X30="","",VLOOKUP($X30,Test_Procedure!$A:$F,2,FALSE)) -> mm | AS30: 96 | AU30: 100 | AW30: 97 | AY30: 100 | BA30: 101 | BC30: 98.8 | BE30: =IF($X30="",0,VLOOKUP($X30,Test_Procedure!$A:$F,3,FALSE)) -> 90 | BG30: =IF($X30="",0,VLOOKUP($X30,Test_Procedure!$A:$F,4,FALSE)) -> 95 | BI30: =IF($X30="",0,VLOOKUP($X30,Test_Procedure!$A:$F,5,FALSE)) -> 88 | BK30: =IF($X30="",0,VLOOKUP($X30,Test_Procedure!$A:$F,6,FALSE)) -> 97 | BM30: failed | XEX30: =IF(ISERROR(VLOOKUP('Testing Report'!$G$8,$AG30:$BD30,13,FALSE)),"",VLOOKUP('Testing Report'!$G$8,$AG30:$BD30,13,FALSE)) ->  | XEY30: =IF(ISERROR(VLOOKUP('Testing Report'!$G$8,$AG30:$BD30,15,FALSE)),"",VLOOKUP('Testing Report'!$G$8,$AG30:$BD30,15,FALSE)) ->  | XEZ30: =IF(COUNTIF($X30:$X$5000,'Testing Report'!$G$8)=0,"",COUNTIF($X30:$X$5000,'Testing Report'!$G$8)) -> 11 | XFA30: =IF(ISERROR(VLOOKUP('Testing Report'!$G$8,$AG30:$BD30,19,FALSE)),"",VLOOKUP('Testing Report'!$G$8,$AG30:$BD30,19,FALSE)) ->  | XFB30: =IF(ISERROR(VLOOKUP('Testing Report'!$G$8,$X30:$BD30,32,FALSE)),"",VLOOKUP('Testing Report'!$G$8,$X30:$BD30,32,FALSE)) -> 98.8 | XFD30: Procedure 1failed
A31: 0021 | C31: Example21 | S31: 2013-10-25 | X31: Procedure 1 | AP31: =IF($X31="","",VLOOKUP($X31,Test_Procedure!$A:$F,2,FALSE)) -> mm | AS31: 97 | AU31: 85 | AW31: 98 | AY31: 91 | BA31: 102 | BC31: 94.6 | BE31: =IF($X31="",0,VLOOKUP($X31,Test_Procedure!$A:$F,3,FALSE)) -> 90 | BG31: =IF($X31="",0,VLOOKUP($X31,Test_Procedure!$A:$F,4,FALSE)) -> 95 | BI31: =IF($X31="",0,VLOOKUP($X31,Test_Procedure!$A:$F,5,FALSE)) -> 88 | BK31: =IF($X31="",0,VLOOKUP($X31,Test_Procedure!$A:$F,6,FALSE)) -> 97 | BM31: passed | XEX31: =IF(ISERROR(VLOOKUP('Testing Report'!$G$8,$AG31:$BD31,13,FALSE)),"",VLOOKUP('Testing Report'!$G$8,$AG31:$BD31,13,FALSE)) ->  | XEY31: =IF(ISERROR(VLOOKUP('Testing Report'!$G$8,$AG31:$BD31,15,FALSE)),"",VLOOKUP('Testing Report'!$G$8,$AG31:$BD31,15,FALSE)) ->  | XEZ31: =IF(COUNTIF($X31:$X$5000,'Testing Report'!$G$8)=0,"",COUNTIF($X31:$X$5000,'Testing Report'!$G$8)) -> 10 | XFA31: =IF(ISERROR(VLOOKUP('Testing Report'!$G$8,$AG31:$BD31,19,FALSE)),"",VLOOKUP('Testing Report'!$G$8,$AG31:$BD31,19,FALSE)) ->  | XFB31: =IF(ISERROR(VLOOKUP('Testing Report'!$G$8,$X31:$BD31,32,FALSE)),"",VLOOKUP('Testing Report'!$G$8,$X31:$BD31,32,FALSE)) -> 94.6 | XFD31: Procedure 1passed
A32: 0022 | C32: Example22 | S32: 2013-10-26 | X32: Procedure 1 | AP32: =IF($X32="","",VLOOKUP($X32,Test_Procedure!$A:$F,2,FALSE)) -> mm | AS32: 85 | AU32: 86 | AW32: 99 | AY32: 92 | BA32: 103 | BC32: 93 | BE32: =IF($X32="",0,VLOOKUP($X32,Test_Procedure!$A:$F,3,FALSE)) -> 90 | BG32: =IF($X32="",0,VLOOKUP($X32,Test_Procedure!$A:$F,4,FALSE)) -> 95 | BI32: =IF($X32="",0,VLOOKUP($X32,Test_Procedure!$A:$F,5,FALSE)) -> 88 | BK32: =IF($X32="",0,VLOOKUP($X32,Test_Procedure!$A:$F,6,FALSE)) -> 97 | BM32: passed | XEX32: =IF(ISERROR(VLOOKUP('Testing Report'!$G$8,$AG32:$BD32,13,FALSE)),"",VLOOKUP('Testing Report'!$G$8,$AG32:$BD32,13,FALSE)) ->  | XEY32: =IF(ISERROR(VLOOKUP('Testing Report'!$G$8,$AG32:$BD32,15,FALSE)),"",VLOOKUP('Testing Report'!$G$8,$AG32:$BD32,15,FALSE)) ->  | XEZ32: =IF(COUNTIF($X32:$X$5000,'Testing Report'!$G$8)=0,"",COUNTIF($X32:$X$5000,'Testing Report'!$G$8)) -> 9 | XFA32: =IF(ISERROR(VLOOKUP('Testing Report'!$G$8,$AG32:$BD32,19,FALSE)),"",VLOOKUP('Testing Report'!$G$8,$AG32:$BD32,19,FALSE)) ->  | XFB32: =IF(ISERROR(VLOOKUP('Testing Report'!$G$8,$X32:$BD32,32,FALSE)),"",VLOOKUP('Testing Report'!$G$8,$X32:$BD32,32,FALSE)) -> 93 | XFD32: Procedure 1passed
A33: 0023 | C33: Example23 | S33: 2013-10-27 | X33: Procedure 1 | AP33: =IF($X33="","",VLOOKUP($X33,Test_Procedure!$A:$F,2,FALSE)) -> mm | AS33: 86 | AU33: 87 | AW33: 85 | AY33: 93 | BA33: 104 | BC33: 91 | BE33: =IF($X33="",0,VLOOKUP($X33,Test_Procedure!$A:$F,3,FALSE)) -> 90 | BG33: =IF($X33="",0,VLOOKUP($X33,Test_Procedure!$A:$F,4,FALSE)) -> 95 | BI33: =IF($X33="",0,VLOOKUP($X33,Test_Procedure!$A:$F,5,FALSE)) -> 88 | BK33: =IF($X33="",0,VLOOKUP($X33,Test_Procedure!$A:$F,6,FALSE)) -> 97 | BM33: passed | XEX33: =IF(ISERROR(VLOOKUP('Testing Report'!$G$8,$AG33:$BD33,13,FALSE)),"",VLOOKUP('Testing Report'!$G$8,$AG33:$BD33,13,FALSE)) ->  | XEY33: =IF(ISERROR(VLOOKUP('Testing Report'!$G$8,$AG33:$BD33,15,FALSE)),"",VLOOKUP('Testing Report'!$G$8,$AG33:$BD33,15,FALSE)) ->  | XEZ33: =IF(COUNTIF($X33:$X$5000,'Testing Report'!$G$8)=0,"",COUNTIF($X33:$X$5000,'Testing Report'!$G$8)) -> 8 | XFA33: =IF(ISERROR(VLOOKUP('Testing Report'!$G$8,$AG33:$BD33,19,FALSE)),"",VLOOKUP('Testing Report'!$G$8,$AG33:$BD33,19,FALSE)) ->  | XFB33: =IF(ISERROR(VLOOKUP('Testing Report'!$G$8,$X33:$BD33,32,FALSE)),"",VLOOKUP('Testing Report'!$G$8,$X33:$BD33,32,FALSE)) -> 91 | XFD33: Procedure 1passed
A34: 0024 | C34: Example24 | S34: 2013-10-28 | X34: Procedure 1 | AP34: =IF($X34="","",VLOOKUP($X34,Test_Procedure!$A:$F,2,FALSE)) -> mm | AS34: 87 | AU34: 88 | AW34: 86 | AY34: 94 | BA34: 105 | BC34: 92 | BE34: =IF($X34="",0,VLOOKUP($X34,Test_Procedure!$A:$F,3,FALSE)) -> 90 | BG34: =IF($X34="",0,VLOOKUP($X34,Test_Procedure!$A:$F,4,FALSE)) -> 95 | BI34: =IF($X34="",0,VLOOKUP($X34,Test_Procedure!$A:$F,5,FALSE)) -> 88 | BK34: =IF($X34="",0,VLOOKUP($X34,Test_Procedure!$A:$F,6,FALSE)) -> 97 | BM34: passed | XEX34: =IF(ISERROR(VLOOKUP('Testing Report'!$G$8,$AG34:$BD34,13,FALSE)),"",VLOOKUP('Testing Report'!$G$8,$AG34:$BD34,13,FALSE)) ->  | XEY34: =IF(ISERROR(VLOOKUP('Testing Report'!$G$8,$AG34:$BD34,15,FALSE)),"",VLOOKUP('Testing Report'!$G$8,$AG34:$BD34,15,FALSE)) ->  | XEZ34: =IF(COUNTIF($X34:$X$5000,'Testing Report'!$G$8)=0,"",COUNTIF($X34:$X$5000,'Testing Report'!$G$8)) -> 7 | XFA34: =IF(ISERROR(VLOOKUP('Testing Report'!$G$8,$AG34:$BD34,19,FALSE)),"",VLOOKUP('Testing Report'!$G$8,$AG34:$BD34,19,FALSE)) ->  | XFB34: =IF(ISERROR(VLOOKUP('Testing Report'!$G$8,$X34:$BD34,32,FALSE)),"",VLOOKUP('Testing Report'!$G$8,$X34:$BD34,32,FALSE)) -> 92 | XFD34: Procedure 1passed
A35: 0025 | C35: Example25 | S35: 2013-10-29 | X35: Procedure 1 | AP35: =IF($X35="","",VLOOKUP($X35,Test_Procedure!$A:$F,2,FALSE)) -> mm | AS35: 88 | AU35: 89 | AW35: 87 | AY35: 95 | BA35: 106 | BC35: 93 | BE35: =IF($X35="",0,VLOOKUP($X35,Test_Procedure!$A:$F,3,FALSE)) -> 90 | BG35: =IF($X35="",0,VLOOKUP($X35,Test_Procedure!$A:$F,4,FALSE)) -> 95 | BI35: =IF($X35="",0,VLOOKUP($X35,Test_Procedure!$A:$F,5,FALSE)) -> 88 | BK35: =IF($X35="",0,VLOOKUP($X35,Test_Procedure!$A:$F,6,FALSE)) -> 97 | BM35: passed | XEX35: =IF(ISERROR(VLOOKUP('Testing Report'!$G$8,$AG35:$BD35,13,FALSE)),"",VLOOKUP('Testing Report'!$G$8,$AG35:$BD35,13,FALSE)) ->  | XEY35: =IF(ISERROR(VLOOKUP('Testing Report'!$G$8,$AG35:$BD35,15,FALSE)),"",VLOOKUP('Testing Report'!$G$8,$AG35:$BD35,15,FALSE)) ->  | XEZ35: =IF(COUNTIF($X35:$X$5000,'Testing Report'!$G$8)=0,"",COUNTIF($X35:$X$5000,'Testing Report'!$G$8)) -> 6 | XFA35: =IF(ISERROR(VLOOKUP('Testing Report'!$G$8,$AG35:$BD35,19,FALSE)),"",VLOOKUP('Testing Report'!$G$8,$AG35:$BD35,19,FALSE)) ->  | XFB35: =IF(ISERROR(VLOOKUP('Testing Report'!$G$8,$X35:$BD35,32,FALSE)),"",VLOOKUP('Testing Report'!$G$8,$X35:$BD35,32,FALSE)) -> 93 | XFD35: Procedure 1passed
A36: 0026 | C36: Example26 | S36: 2013-10-30 | X36: Procedure 1 | AP36: =IF($X36="","",VLOOKUP($X36,Test_Procedure!$A:$F,2,FALSE)) -> mm | AS36: 89 | AU36: 90 | AW36: 88 | AY36: 96 | BA36: 107 | BC36: 94 | BE36: =IF($X36="",0,VLOOKUP($X36,Test_Procedure!$A:$F,3,FALSE)) -> 90 | BG36: =IF($X36="",0,VLOOKUP($X36,Test_Procedure!$A:$F,4,FALSE)) -> 95 | BI36: =IF($X36="",0,VLOOKUP($X36,Test_Procedure!$A:$F,5,FALSE)) -> 88 | BK36: =IF($X36="",0,VLOOKUP($X36,Test_Procedure!$A:$F,6,FALSE)) -> 97 | BM36: passed | XEX36: =IF(ISERROR(VLOOKUP('Testing Report'!$G$8,$AG36:$BD36,13,FALSE)),"",VLOOKUP('Testing Report'!$G$8,$AG36:$BD36,13,FALSE)) ->  | XEY36: =IF(ISERROR(VLOOKUP('Testing Report'!$G$8,$AG36:$BD36,15,FALSE)),"",VLOOKUP('Testing Report'!$G$8,$AG36:$BD36,15,FALSE)) ->  | XEZ36: =IF(COUNTIF($X36:$X$5000,'Testing Report'!$G$8)=0,"",COUNTIF($X36:$X$5000,'Testing Report'!$G$8)) -> 5 | XFA36: =IF(ISERROR(VLOOKUP('Testing Report'!$G$8,$AG36:$BD36,19,FALSE)),"",VLOOKUP('Testing Report'!$G$8,$AG36:$BD36,19,FALSE)) ->  | XFB36: =IF(ISERROR(VLOOKUP('Testing Report'!$G$8,$X36:$BD36,32,FALSE)),"",VLOOKUP('Testing Report'!$G$8,$X36:$BD36,32,FALSE)) -> 94 | XFD36: Procedure 1passed
A37: 0027 | C37: Example27 | S37: 2013-10-31 | X37: Procedure 1 | AP37: =IF($X37="","",VLOOKUP($X37,Test_Procedure!$A:$F,2,FALSE)) -> mm | AS37: 90 | AU37: 91 | AW37: 89 | AY37: 97 | BA37: 108 | BC37: 95 | BE37: =IF($X37="",0,VLOOKUP($X37,Test_Procedure!$A:$F,3,FALSE)) -> 90 | BG37: =IF($X37="",0,VLOOKUP($X37,Test_Procedure!$A:$F,4,FALSE)) -> 95 | BI37: =IF($X37="",0,VLOOKUP($X37,Test_Procedure!$A:$F,5,FALSE)) -> 88 | BK37: =IF($X37="",0,VLOOKUP($X37,Test_Procedure!$A:$F,6,FALSE)) -> 97 | BM37: passed | XEX37: =IF(ISERROR(VLOOKUP('Testing Report'!$G$8,$AG37:$BD37,13,FALSE)),"",VLOOKUP('Testing Report'!$G$8,$AG37:$BD37,13,FALSE)) ->  | XEY37: =IF(ISERROR(VLOOKUP('Testing Report'!$G$8,$AG37:$BD37,15,FALSE)),"",VLOOKUP('Testing Report'!$G$8,$AG37:$BD37,15,FALSE)) ->  | XEZ37: =IF(COUNTIF($X37:$X$5000,'Testing Report'!$G$8)=0,"",COUNTIF($X37:$X$5000,'Testing Report'!$G$8)) -> 4 | XFA37: =IF(ISERROR(VLOOKUP('Testing Report'!$G$8,$AG37:$BD37,19,FALSE)),"",VLOOKUP('Testing Report'!$G$8,$AG37:$BD37,19,FALSE)) ->  | XFB37: =IF(ISERROR(VLOOKUP('Testing Report'!$G$8,$X37:$BD37,32,FALSE)),"",VLOOKUP('Testing Report'!$G$8,$X37:$BD37,32,FALSE)) -> 95 | XFD37: Procedure 1passed
A38: 0028 | C38: Example28 | S38: 2013-11-01 | X38: Procedure 1 | AP38: =IF($X38="","",VLOOKUP($X38,Test_Procedure!$A:$F,2,FALSE)) -> mm | AS38: 91 | AU38: 92 | AW38: 90 | AY38: 98 | BA38: 109 | BC38: 96 | BE38: =IF($X38="",0,VLOOKUP($X38,Test_Procedure!$A:$F,3,FALSE)) -> 90 | BG38: =IF($X38="",0,VLOOKUP($X38,Test_Procedure!$A:$F,4,FALSE)) -> 95 | BI38: =IF($X38="",0,VLOOKUP($X38,Test_Procedure!$A:$F,5,FALSE)) -> 88 | BK38: =IF($X38="",0,VLOOKUP($X38,Test_Procedure!$A:$F,6,FALSE)) -> 97 | BM38: passed | XEX38: =IF(ISERROR(VLOOKUP('Testing Report'!$G$8,$AG38:$BD38,13,FALSE)),"",VLOOKUP('Testing Report'!$G$8,$AG38:$BD38,13,FALSE)) ->  | XEY38: =IF(ISERROR(VLOOKUP('Testing Report'!$G$8,$AG38:$BD38,15,FALSE)),"",VLOOKUP('Testing Report'!$G$8,$AG38:$BD38,15,FALSE)) ->  | XEZ38: =IF(COUNTIF($X38:$X$5000,'Testing Report'!$G$8)=0,"",COUNTIF($X38:$X$5000,'Testing Report'!$G$8)) -> 3 | XFA38: =IF(ISERROR(VLOOKUP('Testing Report'!$G$8,$AG38:$BD38,19,FALSE)),"",VLOOKUP('Testing Report'!$G$8,$AG38:$BD38,19,FALSE)) ->  | XFB38: =IF(ISERROR(VLOOKUP('Testing Report'!$G$8,$X38:$BD38,32,FALSE)),"",VLOOKUP('Testing Report'!$G$8,$X38:$BD38,32,FALSE)) -> 96 | XFD38: Procedure 1passed
A39: 0029 | C39: Example29 | S39: 2013-11-02 | X39: Procedure 1 | AP39: =IF($X39="","",VLOOKUP($X39,Test_Procedure!$A:$F,2,FALSE)) -> mm | AS39: 100 | AU39: 93 | AW39: 91 | AY39: 99 | BA39: 110 | BC39: 98.6 | BE39: =IF($X39="",0,VLOOKUP($X39,Test_Procedure!$A:$F,3,FALSE)) -> 90 | BG39: =IF($X39="",0,VLOOKUP($X39,Test_Procedure!$A:$F,4,FALSE)) -> 95 | BI39: =IF($X39="",0,VLOOKUP($X39,Test_Procedure!$A:$F,5,FALSE)) -> 88 | BK39: =IF($X39="",0,VLOOKUP($X39,Test_Procedure!$A:$F,6,FALSE)) -> 97 | BM39: failed | XEX39: =IF(ISERROR(VLOOKUP('Testing Report'!$G$8,$AG39:$BD39,13,FALSE)),"",VLOOKUP('Testing Report'!$G$8,$AG39:$BD39,13,FALSE)) ->  | XEY39: =IF(ISERROR(VLOOKUP('Testing Report'!$G$8,$AG39:$BD39,15,FALSE)),"",VLOOKUP('Testing Report'!$G$8,$AG39:$BD39,15,FALSE)) ->  | XEZ39: =IF(COUNTIF($X39:$X$5000,'Testing Report'!$G$8)=0,"",COUNTIF($X39:$X$5000,'Testing Report'!$G$8)) -> 2 | XFA39: =IF(ISERROR(VLOOKUP('Testing Report'!$G$8,$AG39:$BD39,19,FALSE)),"",VLOOKUP('Testing Report'!$G$8,$AG39:$BD39,19,FALSE)) ->  | XFB39: =IF(ISERROR(VLOOKUP('Testing Report'!$G$8,$X39:$BD39,32,FALSE)),"",VLOOKUP('Testing Report'!$G$8,$X39:$BD39,32,FALSE)) -> 98.6 | XFD39: Procedure 1failed
A40: 0030 | C40: Example30 | S40: 2013-11-03 | X40: Procedure 1 | AP40: =IF($X40="","",VLOOKUP($X40,Test_Procedure!$A:$F,2,FALSE)) -> mm | AS40: 93 | AU40: 94 | AW40: 92 | AY40: 100 | BA40: 110 | BC40: 97.8 | BE40: =IF($X40="",0,VLOOKUP($X40,Test_Procedure!$A:$F,3,FALSE)) -> 90 | BG40: =IF($X40="",0,VLOOKUP($X40,Test_Procedure!$A:$F,4,FALSE)) -> 95 | BI40: =IF($X40="",0,VLOOKUP($X40,Test_Procedure!$A:$F,5,FALSE)) -> 88 | BK40: =IF($X40="",0,VLOOKUP($X40,Test_Procedure!$A:$F,6,FALSE)) -> 97 | BM40: failed | XEX40: =IF(ISERROR(VLOOKUP('Testing Report'!$G$8,$AG40:$BD40,13,FALSE)),"",VLOOKUP('Testing Report'!$G$8,$AG40:$BD40,13,FALSE)) ->  | XEY40: =IF(ISERROR(VLOOKUP('Testing Report'!$G$8,$AG40:$BD40,15,FALSE)),"",VLOOKUP('Testing Report'!$G$8,$AG40:$BD40,15,FALSE)) ->  | XEZ40: =IF(COUNTIF($X40:$X$5000,'Testing Report'!$G$8)=0,"",COUNTIF($X40:$X$5000,'Testing Report'!$G$8)) -> 1 | XFA40: =IF(ISERROR(VLOOKUP('Testing Report'!$G$8,$AG40:$BD40,19,FALSE)),"",VLOOKUP('Testing Report'!$G$8,$AG40:$BD40,19,FALSE)) ->  | XFB40: =IF(ISERROR(VLOOKUP('Testing Report'!$G$8,$X40:$BD40,32,FALSE)),"",VLOOKUP('Testing Report'!$G$8,$X40:$BD40,32,FALSE)) -> 97.8 | XFD40: Procedure 1failed
A41: 0031 | AP41: =IF($X41="","",VLOOKUP($X41,Test_Procedure!$A:$F,2,FALSE)) ->  | BE41: =IF($AG41="",0,VLOOKUP($AG41,Test_Procedure!$A:$F,3,FALSE)) -> 0 | BG41: =IF($AG41="",0,VLOOKUP($AG41,Test_Procedure!$A:$F,4,FALSE)) -> 0 | BI41: =IF($AG41="",0,VLOOKUP($AG41,Test_Procedure!$A:$F,5,FALSE)) -> 0 | BK41: =IF($AG41="",0,VLOOKUP($AG41,Test_Procedure!$A:$F,6,FALSE)) -> 0 | XEX41: =IF(ISERROR(VLOOKUP('Testing Report'!$G$8,$AG41:$BD41,13,FALSE)),"",VLOOKUP('Testing Report'!$G$8,$AG41:$BD41,13,FALSE)) ->  | XEY41: =IF(ISERROR(VLOOKUP('Testing Report'!$G$8,$AG41:$BD41,15,FALSE)),"",VLOOKUP('Testing Report'!$G$8,$AG41:$BD41,15,FALSE)) ->  | XEZ41: =IF(COUNTIF($X41:$X$5000,'Testing Report'!$G$8)=0,"",COUNTIF($X41:$X$5000,'Testing Report'!$G$8)) ->  | XFA41: =IF(ISERROR(VLOOKUP('Testing Report'!$G$8,$AG41:$BD41,19,FALSE)),"",VLOOKUP('Testing Report'!$G$8,$AG41:$BD41,19,FALSE)) ->  | XFB41: =IF(ISERROR(VLOOKUP('Testing Report'!$G$8,$X41:$BD41,32,FALSE)),"",VLOOKUP('Testing Report'!$G$8,$X41:$BD41,32,FALSE)) ->  | XFD41: =X41&BM41 -> 
AP42: =IF($AG42="","",VLOOKUP($AG42,Test_Procedure!$A:$F,2,FALSE)) ->  | BE42: =IF($AG42="",0,VLOOKUP($AG42,Test_Procedure!$A:$F,3,FALSE)) -> 0 | BG42: =IF($AG42="",0,VLOOKUP($AG42,Test_Procedure!$A:$F,4,FALSE)) -> 0 | BI42: =IF($AG42="",0,VLOOKUP($AG42,Test_Procedure!$A:$F,5,FALSE)) -> 0 | BK42: =IF($AG42="",0,VLOOKUP($AG42,Test_Procedure!$A:$F,6,FALSE)) -> 0 | XEX42: =IF(ISERROR(VLOOKUP('Testing Report'!$G$8,$AG42:$BD42,13,FALSE)),"",VLOOKUP('Testing Report'!$G$8,$AG42:$BD42,13,FALSE)) ->  | XEY42: =IF(ISERROR(VLOOKUP('Testing Report'!$G$8,$AG42:$BD42,15,FALSE)),"",VLOOKUP('Testing Report'!$G$8,$AG42:$BD42,15,FALSE)) ->  | XEZ42: =IF(COUNTIF($X42:$X$5000,'Testing Report'!$G$8)=0,"",COUNTIF($X42:$X$5000,'Testing Report'!$G$8)) ->  | XFA42: =IF(ISERROR(VLOOKUP('Testing Report'!$G$8,$AG42:$BD42,19,FALSE)),"",VLOOKUP('Testing Report'!$G$8,$AG42:$BD42,19,FALSE)) ->  | XFB42: =IF(ISERROR(VLOOKUP('Testing Report'!$G$8,$X42:$BD42,32,FALSE)),"",VLOOKUP('Testing Report'!$G$8,$X42:$BD42,32,FALSE)) -> 
AP43: =IF($AG43="","",VLOOKUP($AG43,Test_Procedure!$A:$F,2,FALSE)) ->  | BE43: =IF($AG43="",0,VLOOKUP($AG43,Test_Procedure!$A:$F,3,FALSE)) -> 0 | BG43: =IF($AG43="",0,VLOOKUP($AG43,Test_Procedure!$A:$F,4,FALSE)) -> 0 | BI43: =IF($AG43="",0,VLOOKUP($AG43,Test_Procedure!$A:$F,5,FALSE)) -> 0 | BK43: =IF($AG43="",0,VLOOKUP($AG43,Test_Procedure!$A:$F,6,FALSE)) -> 0 | XEX43: =IF(ISERROR(VLOOKUP('Testing Report'!$G$8,$AG43:$BD43,13,FALSE)),"",VLOOKUP('Testing Report'!$G$8,$AG43:$BD43,13,FALSE)) ->  | XEY43: =IF(ISERROR(VLOOKUP('Testing Report'!$G$8,$AG43:$BD43,15,FALSE)),"",VLOOKUP('Testing Report'!$G$8,$AG43:$BD43,15,FALSE)) ->  | XEZ43: =IF(COUNTIF($X43:$X$5000,'Testing Report'!$G$8)=0,"",COUNTIF($X43:$X$5000,'Testing Report'!$G$8)) ->  | XFA43: =IF(ISERROR(VLOOKUP('Testing Report'!$G$8,$AG43:$BD43,19,FALSE)),"",VLOOKUP('Testing Report'!$G$8,$AG43:$BD43,19,FALSE)) ->  | XFB43: =IF(ISERROR(VLOOKUP('Testing Report'!$G$8,$X43:$BD43,32,FALSE)),"",VLOOKUP('Testing Report'!$G$8,$X43:$BD43,32,FALSE)) -> 
AP44: =IF($AG44="","",VLOOKUP($AG44,Test_Procedure!$A:$F,2,FALSE)) ->  | BE44: =IF($AG44="",0,VLOOKUP($AG44,Test_Procedure!$A:$F,3,FALSE)) -> 0 | BG44: =IF($AG44="",0,VLOOKUP($AG44,Test_Procedure!$A:$F,4,FALSE)) -> 0 | BI44: =IF($AG44="",0,VLOOKUP($AG44,Test_Procedure!$A:$F,5,FALSE)) -> 0 | BK44: =IF($AG44="",0,VLOOKUP($AG44,Test_Procedure!$A:$F,6,FALSE)) -> 0 | XEX44: =IF(ISERROR(VLOOKUP('Testing Report'!$G$8,$AG44:$BD44,13,FALSE)),"",VLOOKUP('Testing Report'!$G$8,$AG44:$BD44,13,FALSE)) ->  | XEY44: =IF(ISERROR(VLOOKUP('Testing Report'!$G$8,$AG44:$BD44,15,FALSE)),"",VLOOKUP('Testing Report'!$G$8,$AG44:$BD44,15,FALSE)) ->  | XEZ44: =IF(COUNTIF($X44:$X$5000,'Testing Report'!$G$8)=0,"",COUNTIF($X44:$X$5000,'Testing Report'!$G$8)) ->  | XFA44: =IF(ISERROR(VLOOKUP('Testing Report'!$G$8,$AG44:$BD44,19,FALSE)),"",VLOOKUP('Testing Report'!$G$8,$AG44:$BD44,19,FALSE)) ->  | XFB44: =IF(ISERROR(VLOOKUP('Testing Report'!$G$8,$X44:$BD44,32,FALSE)),"",VLOOKUP('Testing Report'!$G$8,$X44:$BD44,32,FALSE)) -> 
AP45: =IF($AG45="","",VLOOKUP($AG45,Test_Procedure!$A:$F,2,FALSE)) ->  | BE45: =IF($AG45="",0,VLOOKUP($AG45,Test_Procedure!$A:$F,3,FALSE)) -> 0 | BG45: =IF($AG45="",0,VLOOKUP($AG45,Test_Procedure!$A:$F,4,FALSE)) -> 0 | BI45: =IF($AG45="",0,VLOOKUP($AG45,Test_Procedure!$A:$F,5,FALSE)) -> 0 | BK45: =IF($AG45="",0,VLOOKUP($AG45,Test_Procedure!$A:$F,6,FALSE)) -> 0 | XEX45: =IF(ISERROR(VLOOKUP('Testing Report'!$G$8,$AG45:$BD45,13,FALSE)),"",VLOOKUP('Testing Report'!$G$8,$AG45:$BD45,13,FALSE)) ->  | XEY45: =IF(ISERROR(VLOOKUP('Testing Report'!$G$8,$AG45:$BD45,15,FALSE)),"",VLOOKUP('Testing Report'!$G$8,$AG45:$BD45,15,FALSE)) ->  | XEZ45: =IF(COUNTIF($X45:$X$5000,'Testing Report'!$G$8)=0,"",COUNTIF($X45:$X$5000,'Testing Report'!$G$8)) ->  | XFA45: =IF(ISERROR(VLOOKUP('Testing Report'!$G$8,$AG45:$BD45,19,FALSE)),"",VLOOKUP('Testing Report'!$G$8,$AG45:$BD45,19,FALSE)) ->  | XFB45: =IF(ISERROR(VLOOKUP('Testing Report'!$G$8,$X45:$BD45,32,FALSE)),"",VLOOKUP('Testing Report'!$G$8,$X45:$BD45,32,FALSE)) -> 
AP46: =IF($AG46="","",VLOOKUP($AG46,Test_Procedure!$A:$F,2,FALSE)) ->  | BE46: =IF($AG46="",0,VLOOKUP($AG46,Test_Procedure!$A:$F,3,FALSE)) -> 0 | BG46: =IF($AG46="",0,VLOOKUP($AG46,Test_Procedure!$A:$F,4,FALSE)) -> 0 | BI46: =IF($AG46="",0,VLOOKUP($AG46,Test_Procedure!$A:$F,5,FALSE)) -> 0 | BK46: =IF($AG46="",0,VLOOKUP($AG46,Test_Procedure!$A:$F,6,FALSE)) -> 0 | XEX46: =IF(ISERROR(VLOOKUP('Testing Report'!$G$8,$AG46:$BD46,13,FALSE)),"",VLOOKUP('Testing Report'!$G$8,$AG46:$BD46,13,FALSE)) ->  | XEY46: =IF(ISERROR(VLOOKUP('Testing Report'!$G$8,$AG46:$BD46,15,FALSE)),"",VLOOKUP('Testing Report'!$G$8,$AG46:$BD46,15,FALSE)) ->  | XEZ46: =IF(COUNTIF($X46:$X$5000,'Testing Report'!$G$8)=0,"",COUNTIF($X46:$X$5000,'Testing Report'!$G$8)) ->  | XFA46: =IF(ISERROR(VLOOKUP('Testing Report'!$G$8,$AG46:$BD46,19,FALSE)),"",VLOOKUP('Testing Report'!$G$8,$AG46:$BD46,19,FALSE)) ->  | XFB46: =IF(ISERROR(VLOOKUP('Testing Report'!$G$8,$X46:$BD46,32,FALSE)),"",VLOOKUP('Testing Report'!$G$8,$X46:$BD46,32,FALSE)) -> 
AP47: =IF($AG47="","",VLOOKUP($AG47,Test_Procedure!$A:$F,2,FALSE)) ->  | BE47: =IF($AG47="",0,VLOOKUP($AG47,Test_Procedure!$A:$F,3,FALSE)) -> 0 | BG47: =IF($AG47="",0,VLOOKUP($AG47,Test_Procedure!$A:$F,4,FALSE)) -> 0 | BI47: =IF($AG47="",0,VLOOKUP($AG47,Test_Procedure!$A:$F,5,FALSE)) -> 0 | BK47: =IF($AG47="",0,VLOOKUP($AG47,Test_Procedure!$A:$F,6,FALSE)) -> 0 | XEX47: =IF(ISERROR(VLOOKUP('Testing Report'!$G$8,$AG47:$BD47,13,FALSE)),"",VLOOKUP('Testing Report'!$G$8,$AG47:$BD47,13,FALSE)) ->  | XEY47: =IF(ISERROR(VLOOKUP('Testing Report'!$G$8,$AG47:$BD47,15,FALSE)),"",VLOOKUP('Testing Report'!$G$8,$AG47:$BD47,15,FALSE)) ->  | XEZ47: =IF(COUNTIF($X47:$X$5000,'Testing Report'!$G$8)=0,"",COUNTIF($X47:$X$5000,'Testing Report'!$G$8)) ->  | XFA47: =IF(ISERROR(VLOOKUP('Testing Report'!$G$8,$AG47:$BD47,19,FALSE)),"",VLOOKUP('Testing Report'!$G$8,$AG47:$BD47,19,FALSE)) ->  | XFB47: =IF(ISERROR(VLOOKUP('Testing Report'!$G$8,$X47:$BD47,32,FALSE)),"",VLOOKUP('Testing Report'!$G$8,$X47:$BD47,32,FALSE)) -> 
AP48: =IF($AG48="","",VLOOKUP($AG48,Test_Procedure!$A:$F,2,FALSE)) ->  | BE48: =IF($AG48="",0,VLOOKUP($AG48,Test_Procedure!$A:$F,3,FALSE)) -> 0 | BG48: =IF($AG48="",0,VLOOKUP($AG48,Test_Procedure!$A:$F,4,FALSE)) -> 0 | BI48: =IF($AG48="",0,VLOOKUP($AG48,Test_Procedure!$A:$F,5,FALSE)) -> 0 | BK48: =IF($AG48="",0,VLOOKUP($AG48,Test_Procedure!$A:$F,6,FALSE)) -> 0 | XEX48: =IF(ISERROR(VLOOKUP('Testing Report'!$G$8,$AG48:$BD48,13,FALSE)),"",VLOOKUP('Testing Report'!$G$8,$AG48:$BD48,13,FALSE)) ->  | XEY48: =IF(ISERROR(VLOOKUP('Testing Report'!$G$8,$AG48:$BD48,15,FALSE)),"",VLOOKUP('Testing Report'!$G$8,$AG48:$BD48,15,FALSE)) ->  | XEZ48: =IF(COUNTIF($X48:$X$5000,'Testing Report'!$G$8)=0,"",COUNTIF($X48:$X$5000,'Testing Report'!$G$8)) ->  | XFA48: =IF(ISERROR(VLOOKUP('Testing Report'!$G$8,$AG48:$BD48,19,FALSE)),"",VLOOKUP('Testing Report'!$G$8,$AG48:$BD48,19,FALSE)) ->  | XFB48: =IF(ISERROR(VLOOKUP('Testing Report'!$G$8,$X48:$BD48,32,FALSE)),"",VLOOKUP('Testing Report'!$G$8,$X48:$BD48,32,FALSE)) -> 
AP49: =IF($AG49="","",VLOOKUP($AG49,Test_Procedure!$A:$F,2,FALSE)) ->  | BE49: =IF($AG49="",0,VLOOKUP($AG49,Test_Procedure!$A:$F,3,FALSE)) -> 0 | BG49: =IF($AG49="",0,VLOOKUP($AG49,Test_Procedure!$A:$F,4,FALSE)) -> 0 | BI49: =IF($AG49="",0,VLOOKUP($AG49,Test_Procedure!$A:$F,5,FALSE)) -> 0 | BK49: =IF($AG49="",0,VLOOKUP($AG49,Test_Procedure!$A:$F,6,FALSE)) -> 0 | XEX49: =IF(ISERROR(VLOOKUP('Testing Report'!$G$8,$AG49:$BD49,13,FALSE)),"",VLOOKUP('Testing Report'!$G$8,$AG49:$BD49,13,FALSE)) ->  | XEY49: =IF(ISERROR(VLOOKUP('Testing Report'!$G$8,$AG49:$BD49,15,FALSE)),"",VLOOKUP('Testing Report'!$G$8,$AG49:$BD49,15,FALSE)) ->  | XEZ49: =IF(COUNTIF($X49:$X$5000,'Testing Report'!$G$8)=0,"",COUNTIF($X49:$X$5000,'Testing Report'!$G$8)) ->  | XFA49: =IF(ISERROR(VLOOKUP('Testing Report'!$G$8,$AG49:$BD49,19,FALSE)),"",VLOOKUP('Testing Report'!$G$8,$AG49:$BD49,19,FALSE)) ->  | XFB49: =IF(ISERROR(VLOOKUP('Testing Report'!$G$8,$X49:$BD49,32,FALSE)),"",VLOOKUP('Testing Report'!$G$8,$X49:$BD49,32,FALSE)) -> 
AP50: =IF($AG50="","",VLOOKUP($AG50,Test_Procedure!$A:$F,2,FALSE)) ->  | BE50: =IF($AG50="",0,VLOOKUP($AG50,Test_Procedure!$A:$F,3,FALSE)) -> 0 | BG50: =IF($AG50="",0,VLOOKUP($AG50,Test_Procedure!$A:$F,4,FALSE)) -> 0 | BI50: =IF($AG50="",0,VLOOKUP($AG50,Test_Procedure!$A:$F,5,FALSE)) -> 0 | BK50: =IF($AG50="",0,VLOOKUP($AG50,Test_Procedure!$A:$F,6,FALSE)) -> 0 | XEX50: =IF(ISERROR(VLOOKUP('Testing Report'!$G$8,$AG50:$BD50,13,FALSE)),"",VLOOKUP('Testing Report'!$G$8,$AG50:$BD50,13,FALSE)) ->  | XEY50: =IF(ISERROR(VLOOKUP('Testing Report'!$G$8,$AG50:$BD50,15,FALSE)),"",VLOOKUP('Testing Report'!$G$8,$AG50:$BD50,15,FALSE)) ->  | XEZ50: =IF(COUNTIF($X50:$X$5000,'Testing Report'!$G$8)=0,"",COUNTIF($X50:$X$5000,'Testing Report'!$G$8)) ->  | XFA50: =IF(ISERROR(VLOOKUP('Testing Report'!$G$8,$AG50:$BD50,19,FALSE)),"",VLOOKUP('Testing Report'!$G$8,$AG50:$BD50,19,FALSE)) ->  | XFB50: =IF(ISERROR(VLOOKUP('Testing Report'!$G$8,$X50:$BD50,32,FALSE)),"",VLOOKUP('Testing Report'!$G$8,$X50:$BD50,32,FALSE)) -> 
AP51: =IF($AG51="","",VLOOKUP($AG51,Test_Procedure!$A:$F,2,FALSE)) ->  | BE51: =IF($AG51="",0,VLOOKUP($AG51,Test_Procedure!$A:$F,3,FALSE)) -> 0 | BG51: =IF($AG51="",0,VLOOKUP($AG51,Test_Procedure!$A:$F,4,FALSE)) -> 0 | BI51: =IF($AG51="",0,VLOOKUP($AG51,Test_Procedure!$A:$F,5,FALSE)) -> 0 | BK51: =IF($AG51="",0,VLOOKUP($AG51,Test_Procedure!$A:$F,6,FALSE)) -> 0 | XEX51: =IF(ISERROR(VLOOKUP('Testing Report'!$G$8,$AG51:$BD51,13,FALSE)),"",VLOOKUP('Testing Report'!$G$8,$AG51:$BD51,13,FALSE)) ->  | XEY51: =IF(ISERROR(VLOOKUP('Testing Report'!$G$8,$AG51:$BD51,15,FALSE)),"",VLOOKUP('Testing Report'!$G$8,$AG51:$BD51,15,FALSE)) ->  | XEZ51: =IF(COUNTIF($X51:$X$5000,'Testing Report'!$G$8)=0,"",COUNTIF($X51:$X$5000,'Testing Report'!$G$8)) ->  | XFA51: =IF(ISERROR(VLOOKUP('Testing Report'!$G$8,$AG51:$BD51,19,FALSE)),"",VLOOKUP('Testing Report'!$G$8,$AG51:$BD51,19,FALSE)) ->  | XFB51: =IF(ISERROR(VLOOKUP('Testing Report'!$G$8,$X51:$BD51,32,FALSE)),"",VLOOKUP('Testing Report'!$G$8,$X51:$BD51,32,FALSE)) -> 
AP52: =IF($AG52="","",VLOOKUP($AG52,Test_Procedure!$A:$F,2,FALSE)) ->  | BE52: =IF($AG52="",0,VLOOKUP($AG52,Test_Procedure!$A:$F,3,FALSE)) -> 0 | BG52: =IF($AG52="",0,VLOOKUP($AG52,Test_Procedure!$A:$F,4,FALSE)) -> 0 | BI52: =IF($AG52="",0,VLOOKUP($AG52,Test_Procedure!$A:$F,5,FALSE)) -> 0 | BK52: =IF($AG52="",0,VLOOKUP($AG52,Test_Procedure!$A:$F,6,FALSE)) -> 0 | XEX52: =IF(ISERROR(VLOOKUP('Testing Report'!$G$8,$AG52:$BD52,13,FALSE)),"",VLOOKUP('Testing Report'!$G$8,$AG52:$BD52,13,FALSE)) ->  | XEY52: =IF(ISERROR(VLOOKUP('Testing Report'!$G$8,$AG52:$BD52,15,FALSE)),"",VLOOKUP('Testing Report'!$G$8,$AG52:$BD52,15,FALSE)) ->  | XEZ52: =IF(COUNTIF($X52:$X$5000,'Testing Report'!$G$8)=0,"",COUNTIF($X52:$X$5000,'Testing Report'!$G$8)) ->  | XFA52: =IF(ISERROR(VLOOKUP('Testing Report'!$G$8,$AG52:$BD52,19,FALSE)),"",VLOOKUP('Testing Report'!$G$8,$AG52:$BD52,19,FALSE)) ->  | XFB52: =IF(ISERROR(VLOOKUP('Testing Report'!$G$8,$X52:$BD52,32,FALSE)),"",VLOOKUP('Testing Report'!$G$8,$X52:$BD52,32,FALSE)) -> 
AP53: =IF($AG53="","",VLOOKUP($AG53,Test_Procedure!$A:$F,2,FALSE)) ->  | BE53: =IF($AG53="",0,VLOOKUP($AG53,Test_Procedure!$A:$F,3,FALSE)) -> 0 | BG53: =IF($AG53="",0,VLOOKUP($AG53,Test_Procedure!$A:$F,4,FALSE)) -> 0 | BI53: =IF($AG53="",0,VLOOKUP($AG53,Test_Procedure!$A:$F,5,FALSE)) -> 0 | BK53: =IF($AG53="",0,VLOOKUP($AG53,Test_Procedure!$A:$F,6,FALSE)) -> 0 | XEX53: =IF(ISERROR(VLOOKUP('Testing Report'!$G$8,$AG53:$BD53,13,FALSE)),"",VLOOKUP('Testing Report'!$G$8,$AG53:$BD53,13,FALSE)) ->  | XEY53: =IF(ISERROR(VLOOKUP('Testing Report'!$G$8,$AG53:$BD53,15,FALSE)),"",VLOOKUP('Testing Report'!$G$8,$AG53:$BD53,15,FALSE)) ->  | XEZ53: =IF(COUNTIF($X53:$X$5000,'Testing Report'!$G$8)=0,"",COUNTIF($X53:$X$5000,'Testing Report'!$G$8)) ->  | XFA53: =IF(ISERROR(VLOOKUP('Testing Report'!$G$8,$AG53:$BD53,19,FALSE)),"",VLOOKUP('Testing Report'!$G$8,$AG53:$BD53,19,FALSE)) ->  | XFB53: =IF(ISERROR(VLOOKUP('Testing Report'!$G$8,$X53:$BD53,32,FALSE)),"",VLOOKUP('Testing Report'!$G$8,$X53:$BD53,32,FALSE)) -> 
AP54: =IF($AG54="","",VLOOKUP($AG54,Test_Procedure!$A:$F,2,FALSE)) ->  | BE54: =IF($AG54="",0,VLOOKUP($AG54,Test_Procedure!$A:$F,3,FALSE)) -> 0 | BG54: =IF($AG54="",0,VLOOKUP($AG54,Test_Procedure!$A:$F,4,FALSE)) -> 0 | BI54: =IF($AG54="",0,VLOOKUP($AG54,Test_Procedure!$A:$F,5,FALSE)) -> 0 | BK54: =IF($AG54="",0,VLOOKUP($AG54,Test_Procedure!$A:$F,6,FALSE)) -> 0 | XEX54: =IF(ISERROR(VLOOKUP('Testing Report'!$G$8,$AG54:$BD54,13,FALSE)),"",VLOOKUP('Testing Report'!$G$8,$AG54:$BD54,13,FALSE)) ->  | XEY54: =IF(ISERROR(VLOOKUP('Testing Report'!$G$8,$AG54:$BD54,15,FALSE)),"",VLOOKUP('Testing Report'!$G$8,$AG54:$BD54,15,FALSE)) ->  | XEZ54: =IF(COUNTIF($X54:$X$5000,'Testing Report'!$G$8)=0,"",COUNTIF($X54:$X$5000,'Testing Report'!$G$8)) ->  | XFA54: =IF(ISERROR(VLOOKUP('Testing Report'!$G$8,$AG54:$BD54,19,FALSE)),"",VLOOKUP('Testing Report'!$G$8,$AG54:$BD54,19,FALSE)) ->  | XFB54: =IF(ISERROR(VLOOKUP('Testing Report'!$G$8,$X54:$BD54,32,FALSE)),"",VLOOKUP('Testing Report'!$G$8,$X54:$BD54,32,FALSE)) -> 
AP55: =IF($AG55="","",VLOOKUP($AG55,Test_Procedure!$A:$F,2,FALSE)) ->  | BE55: =IF($AG55="",0,VLOOKUP($AG55,Test_Procedure!$A:$F,3,FALSE)) -> 0 | BG55: =IF($AG55="",0,VLOOKUP($AG55,Test_Procedure!$A:$F,4,FALSE)) -> 0 | BI55: =IF($AG55="",0,VLOOKUP($AG55,Test_Procedure!$A:$F,5,FALSE)) -> 0 | BK55: =IF($AG55="",0,VLOOKUP($AG55,Test_Procedure!$A:$F,6,FALSE)) -> 0 | XEX55: =IF(ISERROR(VLOOKUP('Testing Report'!$G$8,$AG55:$BD55,13,FALSE)),"",VLOOKUP('Testing Report'!$G$8,$AG55:$BD55,13,FALSE)) ->  | XEY55: =IF(ISERROR(VLOOKUP('Testing Report'!$G$8,$AG55:$BD55,15,FALSE)),"",VLOOKUP('Testing Report'!$G$8,$AG55:$BD55,15,FALSE)) ->  | XEZ55: =IF(COUNTIF($X55:$X$5000,'Testing Report'!$G$8)=0,"",COUNTIF($X55:$X$5000,'Testing Report'!$G$8)) ->  | XFA55: =IF(ISERROR(VLOOKUP('Testing Report'!$G$8,$AG55:$BD55,19,FALSE)),"",VLOOKUP('Testing Report'!$G$8,$AG55:$BD55,19,FALSE)) ->  | XFB55: =IF(ISERROR(VLOOKUP('Testing Report'!$G$8,$X55:$BD55,32,FALSE)),"",VLOOKUP('Testing Report'!$G$8,$X55:$BD55,32,FALSE)) -> 
AP56: =IF($AG56="","",VLOOKUP($AG56,Test_Procedure!$A:$F,2,FALSE)) ->  | BE56: =IF($AG56="",0,VLOOKUP($AG56,Test_Procedure!$A:$F,3,FALSE)) -> 0 | BG56: =IF($AG56="",0,VLOOKUP($AG56,Test_Procedure!$A:$F,4,FALSE)) -> 0 | BI56: =IF($AG56="",0,VLOOKUP($AG56,Test_Procedure!$A:$F,5,FALSE)) -> 0 | BK56: =IF($AG56="",0,VLOOKUP($AG56,Test_Procedure!$A:$F,6,FALSE)) -> 0 | XEX56: =IF(ISERROR(VLOOKUP('Testing Report'!$G$8,$AG56:$BD56,13,FALSE)),"",VLOOKUP('Testing Report'!$G$8,$AG56:$BD56,13,FALSE)) ->  | XEY56: =IF(ISERROR(VLOOKUP('Testing Report'!$G$8,$AG56:$BD56,15,FALSE)),"",VLOOKUP('Testing Report'!$G$8,$AG56:$BD56,15,FALSE)) ->  | XEZ56: =IF(COUNTIF($X56:$X$5000,'Testing Report'!$G$8)=0,"",COUNTIF($X56:$X$5000,'Testing Report'!$G$8)) ->  | XFA56: =IF(ISERROR(VLOOKUP('Testing Report'!$G$8,$AG56:$BD56,19,FALSE)),"",VLOOKUP('Testing Report'!$G$8,$AG56:$BD56,19,FALSE)) ->  | XFB56: =IF(ISERROR(VLOOKUP('Testing Report'!$G$8,$X56:$BD56,32,FALSE)),"",VLOOKUP('Testing Report'!$G$8,$X56:$BD56,32,FALSE)) -> 
AP57: =IF($AG57="","",VLOOKUP($AG57,Test_Procedure!$A:$F,2,FALSE)) ->  | BE57: =IF($AG57="",0,VLOOKUP($AG57,Test_Procedure!$A:$F,3,FALSE)) -> 0 | BG57: =IF($AG57="",0,VLOOKUP($AG57,Test_Procedure!$A:$F,4,FALSE)) -> 0 | BI57: =IF($AG57="",0,VLOOKUP($AG57,Test_Procedure!$A:$F,5,FALSE)) -> 0 | BK57: =IF($AG57="",0,VLOOKUP($AG57,Test_Procedure!$A:$F,6,FALSE)) -> 0 | XEX57: =IF(ISERROR(VLOOKUP('Testing Report'!$G$8,$AG57:$BD57,13,FALSE)),"",VLOOKUP('Testing Report'!$G$8,$AG57:$BD57,13,FALSE)) ->  | XEY57: =IF(ISERROR(VLOOKUP('Testing Report'!$G$8,$AG57:$BD57,15,FALSE)),"",VLOOKUP('Testing Report'!$G$8,$AG57:$BD57,15,FALSE)) ->  | XEZ57: =IF(COUNTIF($X57:$X$5000,'Testing Report'!$G$8)=0,"",COUNTIF($X57:$X$5000,'Testing Report'!$G$8)) ->  | XFA57: =IF(ISERROR(VLOOKUP('Testing Report'!$G$8,$AG57:$BD57,19,FALSE)),"",VLOOKUP('Testing Report'!$G$8,$AG57:$BD57,19,FALSE)) ->  | XFB57: =IF(ISERROR(VLOOKUP('Testing Report'!$G$8,$X57:$BD57,32,FALSE)),"",VLOOKUP('Testing Report'!$G$8,$X57:$BD57,32,FALSE)) -> 
AP58: =IF($AG58="","",VLOOKUP($AG58,Test_Procedure!$A:$F,2,FALSE)) ->  | BE58: =IF($AG58="",0,VLOOKUP($AG58,Test_Procedure!$A:$F,3,FALSE)) -> 0 | BG58: =IF($AG58="",0,VLOOKUP($AG58,Test_Procedure!$A:$F,4,FALSE)) -> 0 | BI58: =IF($AG58="",0,VLOOKUP($AG58,Test_Procedure!$A:$F,5,FALSE)) -> 0 | BK58: =IF($AG58="",0,VLOOKUP($AG58,Test_Procedure!$A:$F,6,FALSE)) -> 0 | XEX58: =IF(ISERROR(VLOOKUP('Testing Report'!$G$8,$AG58:$BD58,13,FALSE)),"",VLOOKUP('Testing Report'!$G$8,$AG58:$BD58,13,FALSE)) ->  | XEY58: =IF(ISERROR(VLOOKUP('Testing Report'!$G$8,$AG58:$BD58,15,FALSE)),"",VLOOKUP('Testing Report'!$G$8,$AG58:$BD58,15,FALSE)) ->  | XEZ58: =IF(COUNTIF($X58:$X$5000,'Testing Report'!$G$8)=0,"",COUNTIF($X58:$X$5000,'Testing Report'!$G$8)) ->  | XFA58: =IF(ISERROR(VLOOKUP('Testing Report'!$G$8,$AG58:$BD58,19,FALSE)),"",VLOOKUP('Testing Report'!$G$8,$AG58:$BD58,19,FALSE)) ->  | XFB58: =IF(ISERROR(VLOOKUP('Testing Report'!$G$8,$X58:$BD58,32,FALSE)),"",VLOOKUP('Testing Report'!$G$8,$X58:$BD58,32,FALSE)) -> 
AP59: =IF($AG59="","",VLOOKUP($AG59,Test_Procedure!$A:$F,2,FALSE)) ->  | BE59: =IF($AG59="",0,VLOOKUP($AG59,Test_Procedure!$A:$F,3,FALSE)) -> 0 | BG59: =IF($AG59="",0,VLOOKUP($AG59,Test_Procedure!$A:$F,4,FALSE)) -> 0 | BI59: =IF($AG59="",0,VLOOKUP($AG59,Test_Procedure!$A:$F,5,FALSE)) -> 0 | BK59: =IF($AG59="",0,VLOOKUP($AG59,Test_Procedure!$A:$F,6,FALSE)) -> 0 | XEX59: =IF(ISERROR(VLOOKUP('Testing Report'!$G$8,$AG59:$BD59,13,FALSE)),"",VLOOKUP('Testing Report'!$G$8,$AG59:$BD59,13,FALSE)) ->  | XEY59: =IF(ISERROR(VLOOKUP('Testing Report'!$G$8,$AG59:$BD59,15,FALSE)),"",VLOOKUP('Testing Report'!$G$8,$AG59:$BD59,15,FALSE)) ->  | XEZ59: =IF(COUNTIF($X59:$X$5000,'Testing Report'!$G$8)=0,"",COUNTIF($X59:$X$5000,'Testing Report'!$G$8)) ->  | XFA59: =IF(ISERROR(VLOOKUP('Testing Report'!$G$8,$AG59:$BD59,19,FALSE)),"",VLOOKUP('Testing Report'!$G$8,$AG59:$BD59,19,FALSE)) ->  | XFB59: =IF(ISERROR(VLOOKUP('Testing Report'!$G$8,$X59:$BD59,32,FALSE)),"",VLOOKUP('Testing Report'!$G$8,$X59:$BD59,32,FALSE)) -> 
AP60: =IF($AG60="","",VLOOKUP($AG60,Test_Procedure!$A:$F,2,FALSE)) ->  | BE60: =IF($AG60="",0,VLOOKUP($AG60,Test_Procedure!$A:$F,3,FALSE)) -> 0 | BG60: =IF($AG60="",0,VLOOKUP($AG60,Test_Procedure!$A:$F,4,FALSE)) -> 0 | BI60: =IF($AG60="",0,VLOOKUP($AG60,Test_Procedure!$A:$F,5,FALSE)) -> 0 | BK60: =IF($AG60="",0,VLOOKUP($AG60,Test_Procedure!$A:$F,6,FALSE)) -> 0 | XEX60: =IF(ISERROR(VLOOKUP('Testing Report'!$G$8,$AG60:$BD60,13,FALSE)),"",VLOOKUP('Testing Report'!$G$8,$AG60:$BD60,13,FALSE)) ->  | XEY60: =IF(ISERROR(VLOOKUP('Testing Report'!$G$8,$AG60:$BD60,15,FALSE)),"",VLOOKUP('Testing Report'!$G$8,$AG60:$BD60,15,FALSE)) ->  | XEZ60: =IF(COUNTIF($X60:$X$5000,'Testing Report'!$G$8)=0,"",COUNTIF($X60:$X$5000,'Testing Report'!$G$8)) ->  | XFA60: =IF(ISERROR(VLOOKUP('Testing Report'!$G$8,$AG60:$BD60,19,FALSE)),"",VLOOKUP('Testing Report'!$G$8,$AG60:$BD60,19,FALSE)) ->  | XFB60: =IF(ISERROR(VLOOKUP('Testing Report'!$G$8,$X60:$BD60,32,FALSE)),"",VLOOKUP('Testing Report'!$G$8,$X60:$BD60,32,FALSE)) -> 
AP61: =IF($AG61="","",VLOOKUP($AG61,Test_Procedure!$A:$F,2,FALSE)) ->  | BE61: =IF($AG61="",0,VLOOKUP($AG61,Test_Procedure!$A:$F,3,FALSE)) -> 0 | BG61: =IF($AG61="",0,VLOOKUP($AG61,Test_Procedure!$A:$F,4,FALSE)) -> 0 | BI61: =IF($AG61="",0,VLOOKUP($AG61,Test_Procedure!$A:$F,5,FALSE)) -> 0 | BK61: =IF($AG61="",0,VLOOKUP($AG61,Test_Procedure!$A:$F,6,FALSE)) -> 0 | XEX61: =IF(ISERROR(VLOOKUP('Testing Report'!$G$8,$AG61:$BD61,13,FALSE)),"",VLOOKUP('Testing Report'!$G$8,$AG61:$BD61,13,FALSE)) ->  | XEY61: =IF(ISERROR(VLOOKUP('Testing Report'!$G$8,$AG61:$BD61,15,FALSE)),"",VLOOKUP('Testing Report'!$G$8,$AG61:$BD61,15,FALSE)) ->  | XEZ61: =IF(COUNTIF($X61:$X$5000,'Testing Report'!$G$8)=0,"",COUNTIF($X61:$X$5000,'Testing Report'!$G$8)) ->  | XFA61: =IF(ISERROR(VLOOKUP('Testing Report'!$G$8,$AG61:$BD61,19,FALSE)),"",VLOOKUP('Testing Report'!$G$8,$AG61:$BD61,19,FALSE)) ->  | XFB61: =IF(ISERROR(VLOOKUP('Testing Report'!$G$8,$X61:$BD61,32,FALSE)),"",VLOOKUP('Testing Report'!$G$8,$X61:$BD61,32,FALSE)) -> 
AP62: =IF($AG62="","",VLOOKUP($AG62,Test_Procedure!$A:$F,2,FALSE)) ->  | BE62: =IF($AG62="",0,VLOOKUP($AG62,Test_Procedure!$A:$F,3,FALSE)) -> 0 | BG62: =IF($AG62="",0,VLOOKUP($AG62,Test_Procedure!$A:$F,4,FALSE)) -> 0 | BI62: =IF($AG62="",0,VLOOKUP($AG62,Test_Procedure!$A:$F,5,FALSE)) -> 0 | BK62: =IF($AG62="",0,VLOOKUP($AG62,Test_Procedure!$A:$F,6,FALSE)) -> 0 | XEX62: =IF(ISERROR(VLOOKUP('Testing Report'!$G$8,$AG62:$BD62,13,FALSE)),"",VLOOKUP('Testing Report'!$G$8,$AG62:$BD62,13,FALSE)) ->  | XEY62: =IF(ISERROR(VLOOKUP('Testing Report'!$G$8,$AG62:$BD62,15,FALSE)),"",VLOOKUP('Testing Report'!$G$8,$AG62:$BD62,15,FALSE)) ->  | XEZ62: =IF(COUNTIF($X62:$X$5000,'Testing Report'!$G$8)=0,"",COUNTIF($X62:$X$5000,'Testing Report'!$G$8)) ->  | XFA62: =IF(ISERROR(VLOOKUP('Testing Report'!$G$8,$AG62:$BD62,19,FALSE)),"",VLOOKUP('Testing Report'!$G$8,$AG62:$BD62,19,FALSE)) ->  | XFB62: =IF(ISERROR(VLOOKUP('Testing Report'!$G$8,$X62:$BD62,32,FALSE)),"",VLOOKUP('Testing Report'!$G$8,$X62:$BD62,32,FALSE)) -> 
AP63: =IF($AG63="","",VLOOKUP($AG63,Test_Procedure!$A:$F,2,FALSE)) ->  | BE63: =IF($AG63="",0,VLOOKUP($AG63,Test_Procedure!$A:$F,3,FALSE)) -> 0 | BG63: =IF($AG63="",0,VLOOKUP($AG63,Test_Procedure!$A:$F,4,FALSE)) -> 0 | BI63: =IF($AG63="",0,VLOOKUP($AG63,Test_Procedure!$A:$F,5,FALSE)) -> 0 | BK63: =IF($AG63="",0,VLOOKUP($AG63,Test_Procedure!$A:$F,6,FALSE)) -> 0 | XEX63: =IF(ISERROR(VLOOKUP('Testing Report'!$G$8,$AG63:$BD63,13,FALSE)),"",VLOOKUP('Testing Report'!$G$8,$AG63:$BD63,13,FALSE)) ->  | XEY63: =IF(ISERROR(VLOOKUP('Testing Report'!$G$8,$AG63:$BD63,15,FALSE)),"",VLOOKUP('Testing Report'!$G$8,$AG63:$BD63,15,FALSE)) ->  | XEZ63: =IF(COUNTIF($X63:$X$5000,'Testing Report'!$G$8)=0,"",COUNTIF($X63:$X$5000,'Testing Report'!$G$8)) ->  | XFA63: =IF(ISERROR(VLOOKUP('Testing Report'!$G$8,$AG63:$BD63,19,FALSE)),"",VLOOKUP('Testing Report'!$G$8,$AG63:$BD63,19,FALSE)) ->  | XFB63: =IF(ISERROR(VLOOKUP('Testing Report'!$G$8,$X63:$BD63,32,FALSE)),"",VLOOKUP('Testing Report'!$G$8,$X63:$BD63,32,FALSE)) -> 
AP64: =IF($AG64="","",VLOOKUP($AG64,Test_Procedure!$A:$F,2,FALSE)) ->  | BE64: =IF($AG64="",0,VLOOKUP($AG64,Test_Procedure!$A:$F,3,FALSE)) -> 0 | BG64: =IF($AG64="",0,VLOOKUP($AG64,Test_Procedure!$A:$F,4,FALSE)) -> 0 | BI64: =IF($AG64="",0,VLOOKUP($AG64,Test_Procedure!$A:$F,5,FALSE)) -> 0 | BK64: =IF($AG64="",0,VLOOKUP($AG64,Test_Procedure!$A:$F,6,FALSE)) -> 0 | XEX64: =IF(ISERROR(VLOOKUP('Testing Report'!$G$8,$AG64:$BD64,13,FALSE)),"",VLOOKUP('Testing Report'!$G$8,$AG64:$BD64,13,FALSE)) ->  | XEY64: =IF(ISERROR(VLOOKUP('Testing Report'!$G$8,$AG64:$BD64,15,FALSE)),"",VLOOKUP('Testing Report'!$G$8,$AG64:$BD64,15,FALSE)) ->  | XEZ64: =IF(COUNTIF($X64:$X$5000,'Testing Report'!$G$8)=0,"",COUNTIF($X64:$X$5000,'Testing Report'!$G$8)) ->  | XFA64: =IF(ISERROR(VLOOKUP('Testing Report'!$G$8,$AG64:$BD64,19,FALSE)),"",VLOOKUP('Testing Report'!$G$8,$AG64:$BD64,19,FALSE)) ->  | XFB64: =IF(ISERROR(VLOOKUP('Testing Report'!$G$8,$X64:$BD64,32,FALSE)),"",VLOOKUP('Testing Report'!$G$8,$X64:$BD64,32,FALSE)) -> 
AP65: =IF($AG65="","",VLOOKUP($AG65,Test_Procedure!$A:$F,2,FALSE)) ->  | BE65: =IF($AG65="",0,VLOOKUP($AG65,Test_Procedure!$A:$F,3,FALSE)) -> 0 | BG65: =IF($AG65="",0,VLOOKUP($AG65,Test_Procedure!$A:$F,4,FALSE)) -> 0 | BI65: =IF($AG65="",0,VLOOKUP($AG65,Test_Procedure!$A:$F,5,FALSE)) -> 0 | BK65: =IF($AG65="",0,VLOOKUP($AG65,Test_Procedure!$A:$F,6,FALSE)) -> 0 | XEX65: =IF(ISERROR(VLOOKUP('Testing Report'!$G$8,$AG65:$BD65,13,FALSE)),"",VLOOKUP('Testing Report'!$G$8,$AG65:$BD65,13,FALSE)) ->  | XEY65: =IF(ISERROR(VLOOKUP('Testing Report'!$G$8,$AG65:$BD65,15,FALSE)),"",VLOOKUP('Testing Report'!$G$8,$AG65:$BD65,15,FALSE)) ->  | XEZ65: =IF(COUNTIF($X65:$X$5000,'Testing Report'!$G$8)=0,"",COUNTIF($X65:$X$5000,'Testing Report'!$G$8)) ->  | XFA65: =IF(ISERROR(VLOOKUP('Testing Report'!$G$8,$AG65:$BD65,19,FALSE)),"",VLOOKUP('Testing Report'!$G$8,$AG65:$BD65,19,FALSE)) ->  | XFB65: =IF(ISERROR(VLOOKUP('Testing Report'!$G$8,$X65:$BD65,32,FALSE)),"",VLOOKUP('Testing Report'!$G$8,$X65:$BD65,32,FALSE)) -> 
AP66: =IF($AG66="","",VLOOKUP($AG66,Test_Procedure!$A:$F,2,FALSE)) ->  | BE66: =IF($AG66="",0,VLOOKUP($AG66,Test_Procedure!$A:$F,3,FALSE)) -> 0 | BG66: =IF($AG66="",0,VLOOKUP($AG66,Test_Procedure!$A:$F,4,FALSE)) -> 0 | BI66: =IF($AG66="",0,VLOOKUP($AG66,Test_Procedure!$A:$F,5,FALSE)) -> 0 | BK66: =IF($AG66="",0,VLOOKUP($AG66,Test_Procedure!$A:$F,6,FALSE)) -> 0 | XEX66: =IF(ISERROR(VLOOKUP('Testing Report'!$G$8,$AG66:$BD66,13,FALSE)),"",VLOOKUP('Testing Report'!$G$8,$AG66:$BD66,13,FALSE)) ->  | XEY66: =IF(ISERROR(VLOOKUP('Testing Report'!$G$8,$AG66:$BD66,15,FALSE)),"",VLOOKUP('Testing Report'!$G$8,$AG66:$BD66,15,FALSE)) ->  | XEZ66: =IF(COUNTIF($X66:$X$5000,'Testing Report'!$G$8)=0,"",COUNTIF($X66:$X$5000,'Testing Report'!$G$8)) ->  | XFA66: =IF(ISERROR(VLOOKUP('Testing Report'!$G$8,$AG66:$BD66,19,FALSE)),"",VLOOKUP('Testing Report'!$G$8,$AG66:$BD66,19,FALSE)) ->  | XFB66: =IF(ISERROR(VLOOKUP('Testing Report'!$G$8,$X66:$BD66,32,FALSE)),"",VLOOKUP('Testing Report'!$G$8,$X66:$BD66,32,FALSE)) -> 
AP67: =IF($AG67="","",VLOOKUP($AG67,Test_Procedure!$A:$F,2,FALSE)) ->  | BE67: =IF($AG67="",0,VLOOKUP($AG67,Test_Procedure!$A:$F,3,FALSE)) -> 0 | BG67: =IF($AG67="",0,VLOOKUP($AG67,Test_Procedure!$A:$F,4,FALSE)) -> 0 | BI67: =IF($AG67="",0,VLOOKUP($AG67,Test_Procedure!$A:$F,5,FALSE)) -> 0 | BK67: =IF($AG67="",0,VLOOKUP($AG67,Test_Procedure!$A:$F,6,FALSE)) -> 0 | XEX67: =IF(ISERROR(VLOOKUP('Testing Report'!$G$8,$AG67:$BD67,13,FALSE)),"",VLOOKUP('Testing Report'!$G$8,$AG67:$BD67,13,FALSE)) ->  | XEY67: =IF(ISERROR(VLOOKUP('Testing Report'!$G$8,$AG67:$BD67,15,FALSE)),"",VLOOKUP('Testing Report'!$G$8,$AG67:$BD67,15,FALSE)) ->  | XEZ67: =IF(COUNTIF($X67:$X$5000,'Testing Report'!$G$8)=0,"",COUNTIF($X67:$X$5000,'Testing Report'!$G$8)) ->  | XFA67: =IF(ISERROR(VLOOKUP('Testing Report'!$G$8,$AG67:$BD67,19,FALSE)),"",VLOOKUP('Testing Report'!$G$8,$AG67:$BD67,19,FALSE)) ->  | XFB67: =IF(ISERROR(VLOOKUP('Testing Report'!$G$8,$X67:$BD67,32,FALSE)),"",VLOOKUP('Testing Report'!$G$8,$X67:$BD67,32,FALSE)) -> 
AP68: =IF($AG68="","",VLOOKUP($AG68,Test_Procedure!$A:$F,2,FALSE)) ->  | BE68: =IF($AG68="",0,VLOOKUP($AG68,Test_Procedure!$A:$F,3,FALSE)) -> 0 | BG68: =IF($AG68="",0,VLOOKUP($AG68,Test_Procedure!$A:$F,4,FALSE)) -> 0 | BI68: =IF($AG68="",0,VLOOKUP($AG68,Test_Procedure!$A:$F,5,FALSE)) -> 0 | BK68: =IF($AG68="",0,VLOOKUP($AG68,Test_Procedure!$A:$F,6,FALSE)) -> 0 | XEX68: =IF(ISERROR(VLOOKUP('Testing Report'!$G$8,$AG68:$BD68,13,FALSE)),"",VLOOKUP('Testing Report'!$G$8,$AG68:$BD68,13,FALSE)) ->  | XEY68: =IF(ISERROR(VLOOKUP('Testing Report'!$G$8,$AG68:$BD68,15,FALSE)),"",VLOOKUP('Testing Report'!$G$8,$AG68:$BD68,15,FALSE)) ->  | XEZ68: =IF(COUNTIF($X68:$X$5000,'Testing Report'!$G$8)=0,"",COUNTIF($X68:$X$5000,'Testing Report'!$G$8)) ->  | XFA68: =IF(ISERROR(VLOOKUP('Testing Report'!$G$8,$AG68:$BD68,19,FALSE)),"",VLOOKUP('Testing Report'!$G$8,$AG68:$BD68,19,FALSE)) ->  | XFB68: =IF(ISERROR(VLOOKUP('Testing Report'!$G$8,$X68:$BD68,32,FALSE)),"",VLOOKUP('Testing Report'!$G$8,$X68:$BD68,32,FALSE)) -> 
AP69: =IF($AG69="","",VLOOKUP($AG69,Test_Procedure!$A:$F,2,FALSE)) ->  | BE69: =IF($AG69="",0,VLOOKUP($AG69,Test_Procedure!$A:$F,3,FALSE)) -> 0 | BG69: =IF($AG69="",0,VLOOKUP($AG69,Test_Procedure!$A:$F,4,FALSE)) -> 0 | BI69: =IF($AG69="",0,VLOOKUP($AG69,Test_Procedure!$A:$F,5,FALSE)) -> 0 | BK69: =IF($AG69="",0,VLOOKUP($AG69,Test_Procedure!$A:$F,6,FALSE)) -> 0 | XEX69: =IF(ISERROR(VLOOKUP('Testing Report'!$G$8,$AG69:$BD69,13,FALSE)),"",VLOOKUP('Testing Report'!$G$8,$AG69:$BD69,13,FALSE)) ->  | XEY69: =IF(ISERROR(VLOOKUP('Testing Report'!$G$8,$AG69:$BD69,15,FALSE)),"",VLOOKUP('Testing Report'!$G$8,$AG69:$BD69,15,FALSE)) ->  | XEZ69: =IF(COUNTIF($X69:$X$5000,'Testing Report'!$G$8)=0,"",COUNTIF($X69:$X$5000,'Testing Report'!$G$8)) ->  | XFA69: =IF(ISERROR(VLOOKUP('Testing Report'!$G$8,$AG69:$BD69,19,FALSE)),"",VLOOKUP('Testing Report'!$G$8,$AG69:$BD69,19,FALSE)) ->  | XFB69: =IF(ISERROR(VLOOKUP('Testing Report'!$G$8,$X69:$BD69,32,FALSE)),"",VLOOKUP('Testing Report'!$G$8,$X69:$BD69,32,FALSE)) -> 
AP70: =IF($AG70="","",VLOOKUP($AG70,Test_Procedure!$A:$F,2,FALSE)) ->  | BE70: =IF($AG70="",0,VLOOKUP($AG70,Test_Procedure!$A:$F,3,FALSE)) -> 0 | BG70: =IF($AG70="",0,VLOOKUP($AG70,Test_Procedure!$A:$F,4,FALSE)) -> 0 | BI70: =IF($AG70="",0,VLOOKUP($AG70,Test_Procedure!$A:$F,5,FALSE)) -> 0 | BK70: =IF($AG70="",0,VLOOKUP($AG70,Test_Procedure!$A:$F,6,FALSE)) -> 0 | XEX70: =IF(ISERROR(VLOOKUP('Testing Report'!$G$8,$AG70:$BD70,13,FALSE)),"",VLOOKUP('Testing Report'!$G$8,$AG70:$BD70,13,FALSE)) ->  | XEY70: =IF(ISERROR(VLOOKUP('Testing Report'!$G$8,$AG70:$BD70,15,FALSE)),"",VLOOKUP('Testing Report'!$G$8,$AG70:$BD70,15,FALSE)) ->  | XEZ70: =IF(COUNTIF($X70:$X$5000,'Testing Report'!$G$8)=0,"",COUNTIF($X70:$X$5000,'Testing Report'!$G$8)) ->  | XFA70: =IF(ISERROR(VLOOKUP('Testing Report'!$G$8,$AG70:$BD70,19,FALSE)),"",VLOOKUP('Testing Report'!$G$8,$AG70:$BD70,19,FALSE)) ->  | XFB70: =IF(ISERROR(VLOOKUP('Testing Report'!$G$8,$X70:$BD70,32,FALSE)),"",VLOOKUP('Testing Report'!$G$8,$X70:$BD70,32,FALSE)) -> 
AP71: =IF($AG71="","",VLOOKUP($AG71,Test_Procedure!$A:$F,2,FALSE)) ->  | BE71: =IF($AG71="",0,VLOOKUP($AG71,Test_Procedure!$A:$F,3,FALSE)) -> 0 | BG71: =IF($AG71="",0,VLOOKUP($AG71,Test_Procedure!$A:$F,4,FALSE)) -> 0 | BI71: =IF($AG71="",0,VLOOKUP($AG71,Test_Procedure!$A:$F,5,FALSE)) -> 0 | BK71: =IF($AG71="",0,VLOOKUP($AG71,Test_Procedure!$A:$F,6,FALSE)) -> 0 | XEX71: =IF(ISERROR(VLOOKUP('Testing Report'!$G$8,$AG71:$BD71,13,FALSE)),"",VLOOKUP('Testing Report'!$G$8,$AG71:$BD71,13,FALSE)) ->  | XEY71: =IF(ISERROR(VLOOKUP('Testing Report'!$G$8,$AG71:$BD71,15,FALSE)),"",VLOOKUP('Testing Report'!$G$8,$AG71:$BD71,15,FALSE)) ->  | XEZ71: =IF(COUNTIF($X71:$X$5000,'Testing Report'!$G$8)=0,"",COUNTIF($X71:$X$5000,'Testing Report'!$G$8)) ->  | XFA71: =IF(ISERROR(VLOOKUP('Testing Report'!$G$8,$AG71:$BD71,19,FALSE)),"",VLOOKUP('Testing Report'!$G$8,$AG71:$BD71,19,FALSE)) ->  | XFB71: =IF(ISERROR(VLOOKUP('Testing Report'!$G$8,$X71:$BD71,32,FALSE)),"",VLOOKUP('Testing Report'!$G$8,$X71:$BD71,32,FALSE)) -> 
AP72: =IF($AG72="","",VLOOKUP($AG72,Test_Procedure!$A:$F,2,FALSE)) ->  | BE72: =IF($AG72="",0,VLOOKUP($AG72,Test_Procedure!$A:$F,3,FALSE)) -> 0 | BG72: =IF($AG72="",0,VLOOKUP($AG72,Test_Procedure!$A:$F,4,FALSE)) -> 0 | BI72: =IF($AG72="",0,VLOOKUP($AG72,Test_Procedure!$A:$F,5,FALSE)) -> 0 | BK72: =IF($AG72="",0,VLOOKUP($AG72,Test_Procedure!$A:$F,6,FALSE)) -> 0 | XEX72: =IF(ISERROR(VLOOKUP('Testing Report'!$G$8,$AG72:$BD72,13,FALSE)),"",VLOOKUP('Testing Report'!$G$8,$AG72:$BD72,13,FALSE)) ->  | XEY72: =IF(ISERROR(VLOOKUP('Testing Report'!$G$8,$AG72:$BD72,15,FALSE)),"",VLOOKUP('Testing Report'!$G$8,$AG72:$BD72,15,FALSE)) ->  | XEZ72: =IF(COUNTIF($X72:$X$5000,'Testing Report'!$G$8)=0,"",COUNTIF($X72:$X$5000,'Testing Report'!$G$8)) ->  | XFA72: =IF(ISERROR(VLOOKUP('Testing Report'!$G$8,$AG72:$BD72,19,FALSE)),"",VLOOKUP('Testing Report'!$G$8,$AG72:$BD72,19,FALSE)) ->  | XFB72: =IF(ISERROR(VLOOKUP('Testing Report'!$G$8,$X72:$BD72,32,FALSE)),"",VLOOKUP('Testing Report'!$G$8,$X72:$BD72,32,FALSE)) -> 
AP73: =IF($AG73="","",VLOOKUP($AG73,Test_Procedure!$A:$F,2,FALSE)) ->  | BE73: =IF($AG73="",0,VLOOKUP($AG73,Test_Procedure!$A:$F,3,FALSE)) -> 0 | BG73: =IF($AG73="",0,VLOOKUP($AG73,Test_Procedure!$A:$F,4,FALSE)) -> 0 | BI73: =IF($AG73="",0,VLOOKUP($AG73,Test_Procedure!$A:$F,5,FALSE)) -> 0 | BK73: =IF($AG73="",0,VLOOKUP($AG73,Test_Procedure!$A:$F,6,FALSE)) -> 0 | XEX73: =IF(ISERROR(VLOOKUP('Testing Report'!$G$8,$AG73:$BD73,13,FALSE)),"",VLOOKUP('Testing Report'!$G$8,$AG73:$BD73,13,FALSE)) ->  | XEY73: =IF(ISERROR(VLOOKUP('Testing Report'!$G$8,$AG73:$BD73,15,FALSE)),"",VLOOKUP('Testing Report'!$G$8,$AG73:$BD73,15,FALSE)) ->  | XEZ73: =IF(COUNTIF($X73:$X$5000,'Testing Report'!$G$8)=0,"",COUNTIF($X73:$X$5000,'Testing Report'!$G$8)) ->  | XFA73: =IF(ISERROR(VLOOKUP('Testing Report'!$G$8,$AG73:$BD73,19,FALSE)),"",VLOOKUP('Testing Report'!$G$8,$AG73:$BD73,19,FALSE)) ->  | XFB73: =IF(ISERROR(VLOOKUP('Testing Report'!$G$8,$X73:$BD73,32,FALSE)),"",VLOOKUP('Testing Report'!$G$8,$X73:$BD73,32,FALSE)) -> 
AP74: =IF($AG74="","",VLOOKUP($AG74,Test_Procedure!$A:$F,2,FALSE)) ->  | BE74: =IF($AG74="",0,VLOOKUP($AG74,Test_Procedure!$A:$F,3,FALSE)) -> 0 | BG74: =IF($AG74="",0,VLOOKUP($AG74,Test_Procedure!$A:$F,4,FALSE)) -> 0 | BI74: =IF($AG74="",0,VLOOKUP($AG74,Test_Procedure!$A:$F,5,FALSE)) -> 0 | BK74: =IF($AG74="",0,VLOOKUP($AG74,Test_Procedure!$A:$F,6,FALSE)) -> 0 | XEX74: =IF(ISERROR(VLOOKUP('Testing Report'!$G$8,$AG74:$BD74,13,FALSE)),"",VLOOKUP('Testing Report'!$G$8,$AG74:$BD74,13,FALSE)) ->  | XEY74: =IF(ISERROR(VLOOKUP('Testing Report'!$G$8,$AG74:$BD74,15,FALSE)),"",VLOOKUP('Testing Report'!$G$8,$AG74:$BD74,15,FALSE)) ->  | XEZ74: =IF(COUNTIF($X74:$X$5000,'Testing Report'!$G$8)=0,"",COUNTIF($X74:$X$5000,'Testing Report'!$G$8)) ->  | XFA74: =IF(ISERROR(VLOOKUP('Testing Report'!$G$8,$AG74:$BD74,19,FALSE)),"",VLOOKUP('Testing Report'!$G$8,$AG74:$BD74,19,FALSE)) ->  | XFB74: =IF(ISERROR(VLOOKUP('Testing Report'!$G$8,$X74:$BD74,32,FALSE)),"",VLOOKUP('Testing Report'!$G$8,$X74:$BD74,32,FALSE)) -> 
AP75: =IF($AG75="","",VLOOKUP($AG75,Test_Procedure!$A:$F,2,FALSE)) ->  | BE75: =IF($AG75="",0,VLOOKUP($AG75,Test_Procedure!$A:$F,3,FALSE)) -> 0 | BG75: =IF($AG75="",0,VLOOKUP($AG75,Test_Procedure!$A:$F,4,FALSE)) -> 0 | BI75: =IF($AG75="",0,VLOOKUP($AG75,Test_Procedure!$A:$F,5,FALSE)) -> 0 | BK75: =IF($AG75="",0,VLOOKUP($AG75,Test_Procedure!$A:$F,6,FALSE)) -> 0 | XEX75: =IF(ISERROR(VLOOKUP('Testing Report'!$G$8,$AG75:$BD75,13,FALSE)),"",VLOOKUP('Testing Report'!$G$8,$AG75:$BD75,13,FALSE)) ->  | XEY75: =IF(ISERROR(VLOOKUP('Testing Report'!$G$8,$AG75:$BD75,15,FALSE)),"",VLOOKUP('Testing Report'!$G$8,$AG75:$BD75,15,FALSE)) ->  | XEZ75: =IF(COUNTIF($X75:$X$5000,'Testing Report'!$G$8)=0,"",COUNTIF($X75:$X$5000,'Testing Report'!$G$8)) ->  | XFA75: =IF(ISERROR(VLOOKUP('Testing Report'!$G$8,$AG75:$BD75,19,FALSE)),"",VLOOKUP('Testing Report'!$G$8,$AG75:$BD75,19,FALSE)) ->  | XFB75: =IF(ISERROR(VLOOKUP('Testing Report'!$G$8,$X75:$BD75,32,FALSE)),"",VLOOKUP('Testing Report'!$G$8,$X75:$BD75,32,FALSE)) -> 
AP76: =IF($AG76="","",VLOOKUP($AG76,Test_Procedure!$A:$F,2,FALSE)) ->  | BE76: =IF($AG76="",0,VLOOKUP($AG76,Test_Procedure!$A:$F,3,FALSE)) -> 0 | BG76: =IF($AG76="",0,VLOOKUP($AG76,Test_Procedure!$A:$F,4,FALSE)) -> 0 | BI76: =IF($AG76="",0,VLOOKUP($AG76,Test_Procedure!$A:$F,5,FALSE)) -> 0 | BK76: =IF($AG76="",0,VLOOKUP($AG76,Test_Procedure!$A:$F,6,FALSE)) -> 0 | XEX76: =IF(ISERROR(VLOOKUP('Testing Report'!$G$8,$AG76:$BD76,13,FALSE)),"",VLOOKUP('Testing Report'!$G$8,$AG76:$BD76,13,FALSE)) ->  | XEY76: =IF(ISERROR(VLOOKUP('Testing Report'!$G$8,$AG76:$BD76,15,FALSE)),"",VLOOKUP('Testing Report'!$G$8,$AG76:$BD76,15,FALSE)) ->  | XEZ76: =IF(COUNTIF($X76:$X$5000,'Testing Report'!$G$8)=0,"",COUNTIF($X76:$X$5000,'Testing Report'!$G$8)) ->  | XFA76: =IF(ISERROR(VLOOKUP('Testing Report'!$G$8,$AG76:$BD76,19,FALSE)),"",VLOOKUP('Testing Report'!$G$8,$AG76:$BD76,19,FALSE)) ->  | XFB76: =IF(ISERROR(VLOOKUP('Testing Report'!$G$8,$X76:$BD76,32,FALSE)),"",VLOOKUP('Testing Report'!$G$8,$X76:$BD76,32,FALSE)) -> 
AP77: =IF($AG77="","",VLOOKUP($AG77,Test_Procedure!$A:$F,2,FALSE)) ->  | BE77: =IF($AG77="",0,VLOOKUP($AG77,Test_Procedure!$A:$F,3,FALSE)) -> 0 | BG77: =IF($AG77="",0,VLOOKUP($AG77,Test_Procedure!$A:$F,4,FALSE)) -> 0 | BI77: =IF($AG77="",0,VLOOKUP($AG77,Test_Procedure!$A:$F,5,FALSE)) -> 0 | BK77: =IF($AG77="",0,VLOOKUP($AG77,Test_Procedure!$A:$F,6,FALSE)) -> 0 | XEX77: =IF(ISERROR(VLOOKUP('Testing Report'!$G$8,$AG77:$BD77,13,FALSE)),"",VLOOKUP('Testing Report'!$G$8,$AG77:$BD77,13,FALSE)) ->  | XEY77: =IF(ISERROR(VLOOKUP('Testing Report'!$G$8,$AG77:$BD77,15,FALSE)),"",VLOOKUP('Testing Report'!$G$8,$AG77:$BD77,15,FALSE)) ->  | XEZ77: =IF(COUNTIF($X77:$X$5000,'Testing Report'!$G$8)=0,"",COUNTIF($X77:$X$5000,'Testing Report'!$G$8)) ->  | XFA77: =IF(ISERROR(VLOOKUP('Testing Report'!$G$8,$AG77:$BD77,19,FALSE)),"",VLOOKUP('Testing Report'!$G$8,$AG77:$BD77,19,FALSE)) ->  | XFB77: =IF(ISERROR(VLOOKUP('Testing Report'!$G$8,$X77:$BD77,32,FALSE)),"",VLOOKUP('Testing Report'!$G$8,$X77:$BD77,32,FALSE)) -> 
AP78: =IF($AG78="","",VLOOKUP($AG78,Test_Procedure!$A:$F,2,FALSE)) ->  | BE78: =IF($AG78="",0,VLOOKUP($AG78,Test_Procedure!$A:$F,3,FALSE)) -> 0 | BG78: =IF($AG78="",0,VLOOKUP($AG78,Test_Procedure!$A:$F,4,FALSE)) -> 0 | BI78: =IF($AG78="",0,VLOOKUP($AG78,Test_Procedure!$A:$F,5,FALSE)) -> 0 | BK78: =IF($AG78="",0,VLOOKUP($AG78,Test_Procedure!$A:$F,6,FALSE)) -> 0 | XEX78: =IF(ISERROR(VLOOKUP('Testing Report'!$G$8,$AG78:$BD78,13,FALSE)),"",VLOOKUP('Testing Report'!$G$8,$AG78:$BD78,13,FALSE)) ->  | XEY78: =IF(ISERROR(VLOOKUP('Testing Report'!$G$8,$AG78:$BD78,15,FALSE)),"",VLOOKUP('Testing Report'!$G$8,$AG78:$BD78,15,FALSE)) ->  | XEZ78: =IF(COUNTIF($X78:$X$5000,'Testing Report'!$G$8)=0,"",COUNTIF($X78:$X$5000,'Testing Report'!$G$8)) ->  | XFA78: =IF(ISERROR(VLOOKUP('Testing Report'!$G$8,$AG78:$BD78,19,FALSE)),"",VLOOKUP('Testing Report'!$G$8,$AG78:$BD78,19,FALSE)) ->  | XFB78: =IF(ISERROR(VLOOKUP('Testing Report'!$G$8,$X78:$BD78,32,FALSE)),"",VLOOKUP('Testing Report'!$G$8,$X78:$BD78,32,FALSE)) -> 
AP79: =IF($AG79="","",VLOOKUP($AG79,Test_Procedure!$A:$F,2,FALSE)) ->  | BE79: =IF($AG79="",0,VLOOKUP($AG79,Test_Procedure!$A:$F,3,FALSE)) -> 0 | BG79: =IF($AG79="",0,VLOOKUP($AG79,Test_Procedure!$A:$F,4,FALSE)) -> 0 | BI79: =IF($AG79="",0,VLOOKUP($AG79,Test_Procedure!$A:$F,5,FALSE)) -> 0 | BK79: =IF($AG79="",0,VLOOKUP($AG79,Test_Procedure!$A:$F,6,FALSE)) -> 0 | XEX79: =IF(ISERROR(VLOOKUP('Testing Report'!$G$8,$AG79:$BD79,13,FALSE)),"",VLOOKUP('Testing Report'!$G$8,$AG79:$BD79,13,FALSE)) ->  | XEY79: =IF(ISERROR(VLOOKUP('Testing Report'!$G$8,$AG79:$BD79,15,FALSE)),"",VLOOKUP('Testing Report'!$G$8,$AG79:$BD79,15,FALSE)) ->  | XEZ79: =IF(COUNTIF($X79:$X$5000,'Testing Report'!$G$8)=0,"",COUNTIF($X79:$X$5000,'Testing Report'!$G$8)) ->  | XFA79: =IF(ISERROR(VLOOKUP('Testing Report'!$G$8,$AG79:$BD79,19,FALSE)),"",VLOOKUP('Testing Report'!$G$8,$AG79:$BD79,19,FALSE)) ->  | XFB79: =IF(ISERROR(VLOOKUP('Testing Report'!$G$8,$X79:$BD79,32,FALSE)),"",VLOOKUP('Testing Report'!$G$8,$X79:$BD79,32,FALSE)) -> 
AP80: =IF($AG80="","",VLOOKUP($AG80,Test_Procedure!$A:$F,2,FALSE)) ->  | BE80: =IF($AG80="",0,VLOOKUP($AG80,Test_Procedure!$A:$F,3,FALSE)) -> 0 | BG80: =IF($AG80="",0,VLOOKUP($AG80,Test_Procedure!$A:$F,4,FALSE)) -> 0 | BI80: =IF($AG80="",0,VLOOKUP($AG80,Test_Procedure!$A:$F,5,FALSE)) -> 0 | BK80: =IF($AG80="",0,VLOOKUP($AG80,Test_Procedure!$A:$F,6,FALSE)) -> 0 | XEX80: =IF(ISERROR(VLOOKUP('Testing Report'!$G$8,$AG80:$BD80,13,FALSE)),"",VLOOKUP('Testing Report'!$G$8,$AG80:$BD80,13,FALSE)) ->  | XEY80: =IF(ISERROR(VLOOKUP('Testing Report'!$G$8,$AG80:$BD80,15,FALSE)),"",VLOOKUP('Testing Report'!$G$8,$AG80:$BD80,15,FALSE)) ->  | XEZ80: =IF(COUNTIF($X80:$X$5000,'Testing Report'!$G$8)=0,"",COUNTIF($X80:$X$5000,'Testing Report'!$G$8)) ->  | XFA80: =IF(ISERROR(VLOOKUP('Testing Report'!$G$8,$AG80:$BD80,19,FALSE)),"",VLOOKUP('Testing Report'!$G$8,$AG80:$BD80,19,FALSE)) ->  | XFB80: =IF(ISERROR(VLOOKUP('Testing Report'!$G$8,$X80:$BD80,32,FALSE)),"",VLOOKUP('Testing Report'!$G$8,$X80:$BD80,32,FALSE)) -> 
AP81: =IF($AG81="","",VLOOKUP($AG81,Test_Procedure!$A:$F,2,FALSE)) ->  | BE81: =IF($AG81="",0,VLOOKUP($AG81,Test_Procedure!$A:$F,3,FALSE)) -> 0 | BG81: =IF($AG81="",0,VLOOKUP($AG81,Test_Procedure!$A:$F,4,FALSE)) -> 0 | BI81: =IF($AG81="",0,VLOOKUP($AG81,Test_Procedure!$A:$F,5,FALSE)) -> 0 | BK81: =IF($AG81="",0,VLOOKUP($AG81,Test_Procedure!$A:$F,6,FALSE)) -> 0 | XEX81: =IF(ISERROR(VLOOKUP('Testing Report'!$G$8,$AG81:$BD81,13,FALSE)),"",VLOOKUP('Testing Report'!$G$8,$AG81:$BD81,13,FALSE)) ->  | XEY81: =IF(ISERROR(VLOOKUP('Testing Report'!$G$8,$AG81:$BD81,15,FALSE)),"",VLOOKUP('Testing Report'!$G$8,$AG81:$BD81,15,FALSE)) ->  | XEZ81: =IF(COUNTIF($X81:$X$5000,'Testing Report'!$G$8)=0,"",COUNTIF($X81:$X$5000,'Testing Report'!$G$8)) ->  | XFA81: =IF(ISERROR(VLOOKUP('Testing Report'!$G$8,$AG81:$BD81,19,FALSE)),"",VLOOKUP('Testing Report'!$G$8,$AG81:$BD81,19,FALSE)) ->  | XFB81: =IF(ISERROR(VLOOKUP('Testing Report'!$G$8,$X81:$BD81,32,FALSE)),"",VLOOKUP('Testing Report'!$G$8,$X81:$BD81,32,FALSE)) -> 
AP82: =IF($AG82="","",VLOOKUP($AG82,Test_Procedure!$A:$F,2,FALSE)) ->  | BE82: =IF($AG82="",0,VLOOKUP($AG82,Test_Procedure!$A:$F,3,FALSE)) -> 0 | BG82: =IF($AG82="",0,VLOOKUP($AG82,Test_Procedure!$A:$F,4,FALSE)) -> 0 | BI82: =IF($AG82="",0,VLOOKUP($AG82,Test_Procedure!$A:$F,5,FALSE)) -> 0 | BK82: =IF($AG82="",0,VLOOKUP($AG82,Test_Procedure!$A:$F,6,FALSE)) -> 0 | XEX82: =IF(ISERROR(VLOOKUP('Testing Report'!$G$8,$AG82:$BD82,13,FALSE)),"",VLOOKUP('Testing Report'!$G$8,$AG82:$BD82,13,FALSE)) ->  | XEY82: =IF(ISERROR(VLOOKUP('Testing Report'!$G$8,$AG82:$BD82,15,FALSE)),"",VLOOKUP('Testing Report'!$G$8,$AG82:$BD82,15,FALSE)) ->  | XEZ82: =IF(COUNTIF($X82:$X$5000,'Testing Report'!$G$8)=0,"",COUNTIF($X82:$X$5000,'Testing Report'!$G$8)) ->  | XFA82: =IF(ISERROR(VLOOKUP('Testing Report'!$G$8,$AG82:$BD82,19,FALSE)),"",VLOOKUP('Testing Report'!$G$8,$AG82:$BD82,19,FALSE)) ->  | XFB82: =IF(ISERROR(VLOOKUP('Testing Report'!$G$8,$X82:$BD82,32,FALSE)),"",VLOOKUP('Testing Report'!$G$8,$X82:$BD82,32,FALSE)) -> 
AP83: =IF($AG83="","",VLOOKUP($AG83,Test_Procedure!$A:$F,2,FALSE)) ->  | BE83: =IF($AG83="",0,VLOOKUP($AG83,Test_Procedure!$A:$F,3,FALSE)) -> 0 | BG83: =IF($AG83="",0,VLOOKUP($AG83,Test_Procedure!$A:$F,4,FALSE)) -> 0 | BI83: =IF($AG83="",0,VLOOKUP($AG83,Test_Procedure!$A:$F,5,FALSE)) -> 0 | BK83: =IF($AG83="",0,VLOOKUP($AG83,Test_Procedure!$A:$F,6,FALSE)) -> 0 | XEX83: =IF(ISERROR(VLOOKUP('Testing Report'!$G$8,$AG83:$BD83,13,FALSE)),"",VLOOKUP('Testing Report'!$G$8,$AG83:$BD83,13,FALSE)) ->  | XEY83: =IF(ISERROR(VLOOKUP('Testing Report'!$G$8,$AG83:$BD83,15,FALSE)),"",VLOOKUP('Testing Report'!$G$8,$AG83:$BD83,15,FALSE)) ->  | XEZ83: =IF(COUNTIF($X83:$X$5000,'Testing Report'!$G$8)=0,"",COUNTIF($X83:$X$5000,'Testing Report'!$G$8)) ->  | XFA83: =IF(ISERROR(VLOOKUP('Testing Report'!$G$8,$AG83:$BD83,19,FALSE)),"",VLOOKUP('Testing Report'!$G$8,$AG83:$BD83,19,FALSE)) ->  | XFB83: =IF(ISERROR(VLOOKUP('Testing Report'!$G$8,$X83:$BD83,32,FALSE)),"",VLOOKUP('Testing Report'!$G$8,$X83:$BD83,32,FALSE)) -> 
AP84: =IF($AG84="","",VLOOKUP($AG84,Test_Procedure!$A:$F,2,FALSE)) ->  | BE84: =IF($AG84="",0,VLOOKUP($AG84,Test_Procedure!$A:$F,3,FALSE)) -> 0 | BG84: =IF($AG84="",0,VLOOKUP($AG84,Test_Procedure!$A:$F,4,FALSE)) -> 0 | BI84: =IF($AG84="",0,VLOOKUP($AG84,Test_Procedure!$A:$F,5,FALSE)) -> 0 | BK84: =IF($AG84="",0,VLOOKUP($AG84,Test_Procedure!$A:$F,6,FALSE)) -> 0 | XEX84: =IF(ISERROR(VLOOKUP('Testing Report'!$G$8,$AG84:$BD84,13,FALSE)),"",VLOOKUP('Testing Report'!$G$8,$AG84:$BD84,13,FALSE)) ->  | XEY84: =IF(ISERROR(VLOOKUP('Testing Report'!$G$8,$AG84:$BD84,15,FALSE)),"",VLOOKUP('Testing Report'!$G$8,$AG84:$BD84,15,FALSE)) ->  | XEZ84: =IF(COUNTIF($X84:$X$5000,'Testing Report'!$G$8)=0,"",COUNTIF($X84:$X$5000,'Testing Report'!$G$8)) ->  | XFA84: =IF(ISERROR(VLOOKUP('Testing Report'!$G$8,$AG84:$BD84,19,FALSE)),"",VLOOKUP('Testing Report'!$G$8,$AG84:$BD84,19,FALSE)) ->  | XFB84: =IF(ISERROR(VLOOKUP('Testing Report'!$G$8,$X84:$BD84,32,FALSE)),"",VLOOKUP('Testing Report'!$G$8,$X84:$BD84,32,FALSE)) -> 
AP85: =IF($AG85="","",VLOOKUP($AG85,Test_Procedure!$A:$F,2,FALSE)) ->  | BE85: =IF($AG85="",0,VLOOKUP($AG85,Test_Procedure!$A:$F,3,FALSE)) -> 0 | BG85: =IF($AG85="",0,VLOOKUP($AG85,Test_Procedure!$A:$F,4,FALSE)) -> 0 | BI85: =IF($AG85="",0,VLOOKUP($AG85,Test_Procedure!$A:$F,5,FALSE)) -> 0 | BK85: =IF($AG85="",0,VLOOKUP($AG85,Test_Procedure!$A:$F,6,FALSE)) -> 0 | XEX85: =IF(ISERROR(VLOOKUP('Testing Report'!$G$8,$AG85:$BD85,13,FALSE)),"",VLOOKUP('Testing Report'!$G$8,$AG85:$BD85,13,FALSE)) ->  | XEY85: =IF(ISERROR(VLOOKUP('Testing Report'!$G$8,$AG85:$BD85,15,FALSE)),"",VLOOKUP('Testing Report'!$G$8,$AG85:$BD85,15,FALSE)) ->  | XEZ85: =IF(COUNTIF($X85:$X$5000,'Testing Report'!$G$8)=0,"",COUNTIF($X85:$X$5000,'Testing Report'!$G$8)) ->  | XFA85: =IF(ISERROR(VLOOKUP('Testing Report'!$G$8,$AG85:$BD85,19,FALSE)),"",VLOOKUP('Testing Report'!$G$8,$AG85:$BD85,19,FALSE)) ->  | XFB85: =IF(ISERROR(VLOOKUP('Testing Report'!$G$8,$X85:$BD85,32,FALSE)),"",VLOOKUP('Testing Report'!$G$8,$X85:$BD85,32,FALSE)) -> 
A86: =IF(C85="","",A85+1) ->  | AP86: =IF($AG86="","",VLOOKUP($AG86,Test_Procedure!$A:$F,2,FALSE)) ->  | BC86: =IF(AS86="","",AVERAGE(AS86:BB86)) ->  | BE86: =IF($AG86="",0,VLOOKUP($AG86,Test_Procedure!$A:$F,3,FALSE)) -> 0 | BG86: =IF($AG86="",0,VLOOKUP($AG86,Test_Procedure!$A:$F,4,FALSE)) -> 0 | BI86: =IF($AG86="",0,VLOOKUP($AG86,Test_Procedure!$A:$F,5,FALSE)) -> 0 | BK86: =IF($AG86="",0,VLOOKUP($AG86,Test_Procedure!$A:$F,6,FALSE)) -> 0 | XEX86: =IF(ISERROR(VLOOKUP('Testing Report'!$G$8,$AG86:$BD86,13,FALSE)),"",VLOOKUP('Testing Report'!$G$8,$AG86:$BD86,13,FALSE)) ->  | XEY86: =IF(ISERROR(VLOOKUP('Testing Report'!$G$8,$AG86:$BD86,15,FALSE)),"",VLOOKUP('Testing Report'!$G$8,$AG86:$BD86,15,FALSE)) ->  | XEZ86: =IF(COUNTIF($X86:$X$5000,'Testing Report'!$G$8)=0,"",COUNTIF($X86:$X$5000,'Testing Report'!$G$8)) ->  | XFA86: =IF(ISERROR(VLOOKUP('Testing Report'!$G$8,$AG86:$BD86,19,FALSE)),"",VLOOKUP('Testing Report'!$G$8,$AG86:$BD86,19,FALSE)) ->  | XFB86: =IF(ISERROR(VLOOKUP('Testing Report'!$G$8,$X86:$BD86,32,FALSE)),"",VLOOKUP('Testing Report'!$G$8,$X86:$BD86,32,FALSE)) -> 
AP87: =IF($AG87="","",VLOOKUP($AG87,Test_Procedure!$A:$F,2,FALSE)) ->  | BE87: =IF($AG87="",0,VLOOKUP($AG87,Test_Procedure!$A:$F,3,FALSE)) -> 0 | BG87: =IF($AG87="",0,VLOOKUP($AG87,Test_Procedure!$A:$F,4,FALSE)) -> 0 | BI87: =IF($AG87="",0,VLOOKUP($AG87,Test_Procedure!$A:$F,5,FALSE)) -> 0 | BK87: =IF($AG87="",0,VLOOKUP($AG87,Test_Procedure!$A:$F,6,FALSE)) -> 0 | XEX87: =IF(ISERROR(VLOOKUP('Testing Report'!$G$8,$AG87:$BD87,13,FALSE)),"",VLOOKUP('Testing Report'!$G$8,$AG87:$BD87,13,FALSE)) ->  | XEY87: =IF(ISERROR(VLOOKUP('Testing Report'!$G$8,$AG87:$BD87,15,FALSE)),"",VLOOKUP('Testing Report'!$G$8,$AG87:$BD87,15,FALSE)) ->  | XEZ87: =IF(COUNTIF($X87:$X$5000,'Testing Report'!$G$8)=0,"",COUNTIF($X87:$X$5000,'Testing Report'!$G$8)) ->  | XFA87: =IF(ISERROR(VLOOKUP('Testing Report'!$G$8,$AG87:$BD87,19,FALSE)),"",VLOOKUP('Testing Report'!$G$8,$AG87:$BD87,19,FALSE)) ->  | XFB87: =IF(ISERROR(VLOOKUP('Testing Report'!$G$8,$X87:$BD87,32,FALSE)),"",VLOOKUP('Testing Report'!$G$8,$X87:$BD87,32,FALSE)) -> 
AP88: =IF($AG88="","",VLOOKUP($AG88,Test_Procedure!$A:$F,2,FALSE)) ->  | BE88: =IF($AG88="",0,VLOOKUP($AG88,Test_Procedure!$A:$F,3,FALSE)) -> 0 | BG88: =IF($AG88="",0,VLOOKUP($AG88,Test_Procedure!$A:$F,4,FALSE)) -> 0 | BI88: =IF($AG88="",0,VLOOKUP($AG88,Test_Procedure!$A:$F,5,FALSE)) -> 0 | BK88: =IF($AG88="",0,VLOOKUP($AG88,Test_Procedure!$A:$F,6,FALSE)) -> 0 | XEX88: =IF(ISERROR(VLOOKUP('Testing Report'!$G$8,$AG88:$BD88,13,FALSE)),"",VLOOKUP('Testing Report'!$G$8,$AG88:$BD88,13,FALSE)) ->  | XEY88: =IF(ISERROR(VLOOKUP('Testing Report'!$G$8,$AG88:$BD88,15,FALSE)),"",VLOOKUP('Testing Report'!$G$8,$AG88:$BD88,15,FALSE)) ->  | XEZ88: =IF(COUNTIF($X88:$X$5000,'Testing Report'!$G$8)=0,"",COUNTIF($X88:$X$5000,'Testing Report'!$G$8)) ->  | XFA88: =IF(ISERROR(VLOOKUP('Testing Report'!$G$8,$AG88:$BD88,19,FALSE)),"",VLOOKUP('Testing Report'!$G$8,$AG88:$BD88,19,FALSE)) ->  | XFB88: =IF(ISERROR(VLOOKUP('Testing Report'!$G$8,$X88:$BD88,32,FALSE)),"",VLOOKUP('Testing Report'!$G$8,$X88:$BD88,32,FALSE)) -> 
AP89: =IF($AG89="","",VLOOKUP($AG89,Test_Procedure!$A:$F,2,FALSE)) ->  | BE89: =IF($AG89="",0,VLOOKUP($AG89,Test_Procedure!$A:$F,3,FALSE)) -> 0 | BG89: =IF($AG89="",0,VLOOKUP($AG89,Test_Procedure!$A:$F,4,FALSE)) -> 0 | BI89: =IF($AG89="",0,VLOOKUP($AG89,Test_Procedure!$A:$F,5,FALSE)) -> 0 | BK89: =IF($AG89="",0,VLOOKUP($AG89,Test_Procedure!$A:$F,6,FALSE)) -> 0 | XEX89: =IF(ISERROR(VLOOKUP('Testing Report'!$G$8,$AG89:$BD89,13,FALSE)),"",VLOOKUP('Testing Report'!$G$8,$AG89:$BD89,13,FALSE)) ->  | XEY89: =IF(ISERROR(VLOOKUP('Testing Report'!$G$8,$AG89:$BD89,15,FALSE)),"",VLOOKUP('Testing Report'!$G$8,$AG89:$BD89,15,FALSE)) ->  | XEZ89: =IF(COUNTIF($X89:$X$5000,'Testing Report'!$G$8)=0,"",COUNTIF($X89:$X$5000,'Testing Report'!$G$8)) ->  | XFA89: =IF(ISERROR(VLOOKUP('Testing Report'!$G$8,$AG89:$BD89,19,FALSE)),"",VLOOKUP('Testing Report'!$G$8,$AG89:$BD89,19,FALSE)) ->  | XFB89: =IF(ISERROR(VLOOKUP('Testing Report'!$G$8,$X89:$BD89,32,FALSE)),"",VLOOKUP('Testing Report'!$G$8,$X89:$BD89,32,FALSE)) -> 
AP90: =IF($AG90="","",VLOOKUP($AG90,Test_Procedure!$A:$F,2,FALSE)) ->  | BE90: =IF($AG90="",0,VLOOKUP($AG90,Test_Procedure!$A:$F,3,FALSE)) -> 0 | BG90: =IF($AG90="",0,VLOOKUP($AG90,Test_Procedure!$A:$F,4,FALSE)) -> 0 | BI90: =IF($AG90="",0,VLOOKUP($AG90,Test_Procedure!$A:$F,5,FALSE)) -> 0 | BK90: =IF($AG90="",0,VLOOKUP($AG90,Test_Procedure!$A:$F,6,FALSE)) -> 0 | XEX90: =IF(ISERROR(VLOOKUP('Testing Report'!$G$8,$AG90:$BD90,13,FALSE)),"",VLOOKUP('Testing Report'!$G$8,$AG90:$BD90,13,FALSE)) ->  | XEY90: =IF(ISERROR(VLOOKUP('Testing Report'!$G$8,$AG90:$BD90,15,FALSE)),"",VLOOKUP('Testing Report'!$G$8,$AG90:$BD90,15,FALSE)) ->  | XEZ90: =IF(COUNTIF($X90:$X$5000,'Testing Report'!$G$8)=0,"",COUNTIF($X90:$X$5000,'Testing Report'!$G$8)) ->  | XFA90: =IF(ISERROR(VLOOKUP('Testing Report'!$G$8,$AG90:$BD90,19,FALSE)),"",VLOOKUP('Testing Report'!$G$8,$AG90:$BD90,19,FALSE)) ->  | XFB90: =IF(ISERROR(VLOOKUP('Testing Report'!$G$8,$X90:$BD90,32,FALSE)),"",VLOOKUP('Testing Report'!$G$8,$X90:$BD90,32,FALSE)) -> 
AP91: =IF($AG91="","",VLOOKUP($AG91,Test_Procedure!$A:$F,2,FALSE)) ->  | BE91: =IF($AG91="",0,VLOOKUP($AG91,Test_Procedure!$A:$F,3,FALSE)) -> 0 | BG91: =IF($AG91="",0,VLOOKUP($AG91,Test_Procedure!$A:$F,4,FALSE)) -> 0 | BI91: =IF($AG91="",0,VLOOKUP($AG91,Test_Procedure!$A:$F,5,FALSE)) -> 0 | BK91: =IF($AG91="",0,VLOOKUP($AG91,Test_Procedure!$A:$F,6,FALSE)) -> 0 | XEX91: =IF(ISERROR(VLOOKUP('Testing Report'!$G$8,$AG91:$BD91,13,FALSE)),"",VLOOKUP('Testing Report'!$G$8,$AG91:$BD91,13,FALSE)) ->  | XEY91: =IF(ISERROR(VLOOKUP('Testing Report'!$G$8,$AG91:$BD91,15,FALSE)),"",VLOOKUP('Testing Report'!$G$8,$AG91:$BD91,15,FALSE)) ->  | XEZ91: =IF(COUNTIF($X91:$X$5000,'Testing Report'!$G$8)=0,"",COUNTIF($X91:$X$5000,'Testing Report'!$G$8)) ->  | XFA91: =IF(ISERROR(VLOOKUP('Testing Report'!$G$8,$AG91:$BD91,19,FALSE)),"",VLOOKUP('Testing Report'!$G$8,$AG91:$BD91,19,FALSE)) ->  | XFB91: =IF(ISERROR(VLOOKUP('Testing Report'!$G$8,$X91:$BD91,32,FALSE)),"",VLOOKUP('Testing Report'!$G$8,$X91:$BD91,32,FALSE)) -> 
AP92: =IF($AG92="","",VLOOKUP($AG92,Test_Procedure!$A:$F,2,FALSE)) ->  | BE92: =IF($AG92="",0,VLOOKUP($AG92,Test_Procedure!$A:$F,3,FALSE)) -> 0 | BG92: =IF($AG92="",0,VLOOKUP($AG92,Test_Procedure!$A:$F,4,FALSE)) -> 0 | BI92: =IF($AG92="",0,VLOOKUP($AG92,Test_Procedure!$A:$F,5,FALSE)) -> 0 | BK92: =IF($AG92="",0,VLOOKUP($AG92,Test_Procedure!$A:$F,6,FALSE)) -> 0 | XEX92: =IF(ISERROR(VLOOKUP('Testing Report'!$G$8,$AG92:$BD92,13,FALSE)),"",VLOOKUP('Testing Report'!$G$8,$AG92:$BD92,13,FALSE)) ->  | XEY92: =IF(ISERROR(VLOOKUP('Testing Report'!$G$8,$AG92:$BD92,15,FALSE)),"",VLOOKUP('Testing Report'!$G$8,$AG92:$BD92,15,FALSE)) ->  | XEZ92: =IF(COUNTIF($X92:$X$5000,'Testing Report'!$G$8)=0,"",COUNTIF($X92:$X$5000,'Testing Report'!$G$8)) ->  | XFA92: =IF(ISERROR(VLOOKUP('Testing Report'!$G$8,$AG92:$BD92,19,FALSE)),"",VLOOKUP('Testing Report'!$G$8,$AG92:$BD92,19,FALSE)) ->  | XFB92: =IF(ISERROR(VLOOKUP('Testing Report'!$G$8,$X92:$BD92,32,FALSE)),"",VLOOKUP('Testing Report'!$G$8,$X92:$BD92,32,FALSE)) -> 
AP93: =IF($AG93="","",VLOOKUP($AG93,Test_Procedure!$A:$F,2,FALSE)) ->  | BE93: =IF($AG93="",0,VLOOKUP($AG93,Test_Procedure!$A:$F,3,FALSE)) -> 0 | BG93: =IF($AG93="",0,VLOOKUP($AG93,Test_Procedure!$A:$F,4,FALSE)) -> 0 | BI93: =IF($AG93="",0,VLOOKUP($AG93,Test_Procedure!$A:$F,5,FALSE)) -> 0 | BK93: =IF($AG93="",0,VLOOKUP($AG93,Test_Procedure!$A:$F,6,FALSE)) -> 0 | XEX93: =IF(ISERROR(VLOOKUP('Testing Report'!$G$8,$AG93:$BD93,13,FALSE)),"",VLOOKUP('Testing Report'!$G$8,$AG93:$BD93,13,FALSE)) ->  | XEY93: =IF(ISERROR(VLOOKUP('Testing Report'!$G$8,$AG93:$BD93,15,FALSE)),"",VLOOKUP('Testing Report'!$G$8,$AG93:$BD93,15,FALSE)) ->  | XEZ93: =IF(COUNTIF($X93:$X$5000,'Testing Report'!$G$8)=0,"",COUNTIF($X93:$X$5000,'Testing Report'!$G$8)) ->  | XFA93: =IF(ISERROR(VLOOKUP('Testing Report'!$G$8,$AG93:$BD93,19,FALSE)),"",VLOOKUP('Testing Report'!$G$8,$AG93:$BD93,19,FALSE)) ->  | XFB93: =IF(ISERROR(VLOOKUP('Testing Report'!$G$8,$X93:$BD93,32,FALSE)),"",VLOOKUP('Testing Report'!$G$8,$X93:$BD93,32,FALSE)) -> 
AP94: =IF($AG94="","",VLOOKUP($AG94,Test_Procedure!$A:$F,2,FALSE)) ->  | BE94: =IF($AG94="",0,VLOOKUP($AG94,Test_Procedure!$A:$F,3,FALSE)) -> 0 | BG94: =IF($AG94="",0,VLOOKUP($AG94,Test_Procedure!$A:$F,4,FALSE)) -> 0 | BI94: =IF($AG94="",0,VLOOKUP($AG94,Test_Procedure!$A:$F,5,FALSE)) -> 0 | BK94: =IF($AG94="",0,VLOOKUP($AG94,Test_Procedure!$A:$F,6,FALSE)) -> 0 | XEX94: =IF(ISERROR(VLOOKUP('Testing Report'!$G$8,$AG94:$BD94,13,FALSE)),"",VLOOKUP('Testing Report'!$G$8,$AG94:$BD94,13,FALSE)) ->  | XEY94: =IF(ISERROR(VLOOKUP('Testing Report'!$G$8,$AG94:$BD94,15,FALSE)),"",VLOOKUP('Testing Report'!$G$8,$AG94:$BD94,15,FALSE)) ->  | XEZ94: =IF(COUNTIF($X94:$X$5000,'Testing Report'!$G$8)=0,"",COUNTIF($X94:$X$5000,'Testing Report'!$G$8)) ->  | XFA94: =IF(ISERROR(VLOOKUP('Testing Report'!$G$8,$AG94:$BD94,19,FALSE)),"",VLOOKUP('Testing Report'!$G$8,$AG94:$BD94,19,FALSE)) ->  | XFB94: =IF(ISERROR(VLOOKUP('Testing Report'!$G$8,$X94:$BD94,32,FALSE)),"",VLOOKUP('Testing Report'!$G$8,$X94:$BD94,32,FALSE)) -> 
AP95: =IF($AG95="","",VLOOKUP($AG95,Test_Procedure!$A:$F,2,FALSE)) ->  | BE95: =IF($AG95="",0,VLOOKUP($AG95,Test_Procedure!$A:$F,3,FALSE)) -> 0 | BG95: =IF($AG95="",0,VLOOKUP($AG95,Test_Procedure!$A:$F,4,FALSE)) -> 0 | BI95: =IF($AG95="",0,VLOOKUP($AG95,Test_Procedure!$A:$F,5,FALSE)) -> 0 | BK95: =IF($AG95="",0,VLOOKUP($AG95,Test_Procedure!$A:$F,6,FALSE)) -> 0 | XEX95: =IF(ISERROR(VLOOKUP('Testing Report'!$G$8,$AG95:$BD95,13,FALSE)),"",VLOOKUP('Testing Report'!$G$8,$AG95:$BD95,13,FALSE)) ->  | XEY95: =IF(ISERROR(VLOOKUP('Testing Report'!$G$8,$AG95:$BD95,15,FALSE)),"",VLOOKUP('Testing Report'!$G$8,$AG95:$BD95,15,FALSE)) ->  | XEZ95: =IF(COUNTIF($X95:$X$5000,'Testing Report'!$G$8)=0,"",COUNTIF($X95:$X$5000,'Testing Report'!$G$8)) ->  | XFA95: =IF(ISERROR(VLOOKUP('Testing Report'!$G$8,$AG95:$BD95,19,FALSE)),"",VLOOKUP('Testing Report'!$G$8,$AG95:$BD95,19,FALSE)) ->  | XFB95: =IF(ISERROR(VLOOKUP('Testing Report'!$G$8,$X95:$BD95,32,FALSE)),"",VLOOKUP('Testing Report'!$G$8,$X95:$BD95,32,FALSE)) -> 
AP96: =IF($AG96="","",VLOOKUP($AG96,Test_Procedure!$A:$F,2,FALSE)) ->  | BE96: =IF($AG96="",0,VLOOKUP($AG96,Test_Procedure!$A:$F,3,FALSE)) -> 0 | BG96: =IF($AG96="",0,VLOOKUP($AG96,Test_Procedure!$A:$F,4,FALSE)) -> 0 | BI96: =IF($AG96="",0,VLOOKUP($AG96,Test_Procedure!$A:$F,5,FALSE)) -> 0 | BK96: =IF($AG96="",0,VLOOKUP($AG96,Test_Procedure!$A:$F,6,FALSE)) -> 0 | XEX96: =IF(ISERROR(VLOOKUP('Testing Report'!$G$8,$AG96:$BD96,13,FALSE)),"",VLOOKUP('Testing Report'!$G$8,$AG96:$BD96,13,FALSE)) ->  | XEY96: =IF(ISERROR(VLOOKUP('Testing Report'!$G$8,$AG96:$BD96,15,FALSE)),"",VLOOKUP('Testing Report'!$G$8,$AG96:$BD96,15,FALSE)) ->  | XEZ96: =IF(COUNTIF($X96:$X$5000,'Testing Report'!$G$8)=0,"",COUNTIF($X96:$X$5000,'Testing Report'!$G$8)) ->  | XFA96: =IF(ISERROR(VLOOKUP('Testing Report'!$G$8,$AG96:$BD96,19,FALSE)),"",VLOOKUP('Testing Report'!$G$8,$AG96:$BD96,19,FALSE)) ->  | XFB96: =IF(ISERROR(VLOOKUP('Testing Report'!$G$8,$X96:$BD96,32,FALSE)),"",VLOOKUP('Testing Report'!$G$8,$X96:$BD96,32,FALSE)) -> 
AP97: =IF($AG97="","",VLOOKUP($AG97,Test_Procedure!$A:$F,2,FALSE)) ->  | BE97: =IF($AG97="",0,VLOOKUP($AG97,Test_Procedure!$A:$F,3,FALSE)) -> 0 | BG97: =IF($AG97="",0,VLOOKUP($AG97,Test_Procedure!$A:$F,4,FALSE)) -> 0 | BI97: =IF($AG97="",0,VLOOKUP($AG97,Test_Procedure!$A:$F,5,FALSE)) -> 0 | BK97: =IF($AG97="",0,VLOOKUP($AG97,Test_Procedure!$A:$F,6,FALSE)) -> 0 | XEX97: =IF(ISERROR(VLOOKUP('Testing Report'!$G$8,$AG97:$BD97,13,FALSE)),"",VLOOKUP('Testing Report'!$G$8,$AG97:$BD97,13,FALSE)) ->  | XEY97: =IF(ISERROR(VLOOKUP('Testing Report'!$G$8,$AG97:$BD97,15,FALSE)),"",VLOOKUP('Testing Report'!$G$8,$AG97:$BD97,15,FALSE)) ->  | XEZ97: =IF(COUNTIF($X97:$X$5000,'Testing Report'!$G$8)=0,"",COUNTIF($X97:$X$5000,'Testing Report'!$G$8)) ->  | XFA97: =IF(ISERROR(VLOOKUP('Testing Report'!$G$8,$AG97:$BD97,19,FALSE)),"",VLOOKUP('Testing Report'!$G$8,$AG97:$BD97,19,FALSE)) ->  | XFB97: =IF(ISERROR(VLOOKUP('Testing Report'!$G$8,$X97:$BD97,32,FALSE)),"",VLOOKUP('Testing Report'!$G$8,$X97:$BD97,32,FALSE)) -> 
AP98: =IF($AG98="","",VLOOKUP($AG98,Test_Procedure!$A:$F,2,FALSE)) ->  | BE98: =IF($AG98="",0,VLOOKUP($AG98,Test_Procedure!$A:$F,3,FALSE)) -> 0 | BG98: =IF($AG98="",0,VLOOKUP($AG98,Test_Procedure!$A:$F,4,FALSE)) -> 0 | BI98: =IF($AG98="",0,VLOOKUP($AG98,Test_Procedure!$A:$F,5,FALSE)) -> 0 | BK98: =IF($AG98="",0,VLOOKUP($AG98,Test_Procedure!$A:$F,6,FALSE)) -> 0 | XEX98: =IF(ISERROR(VLOOKUP('Testing Report'!$G$8,$AG98:$BD98,13,FALSE)),"",VLOOKUP('Testing Report'!$G$8,$AG98:$BD98,13,FALSE)) ->  | XEY98: =IF(ISERROR(VLOOKUP('Testing Report'!$G$8,$AG98:$BD98,15,FALSE)),"",VLOOKUP('Testing Report'!$G$8,$AG98:$BD98,15,FALSE)) ->  | XEZ98: =IF(COUNTIF($X98:$X$5000,'Testing Report'!$G$8)=0,"",COUNTIF($X98:$X$5000,'Testing Report'!$G$8)) ->  | XFA98: =IF(ISERROR(VLOOKUP('Testing Report'!$G$8,$AG98:$BD98,19,FALSE)),"",VLOOKUP('Testing Report'!$G$8,$AG98:$BD98,19,FALSE)) ->  | XFB98: =IF(ISERROR(VLOOKUP('Testing Report'!$G$8,$X98:$BD98,32,FALSE)),"",VLOOKUP('Testing Report'!$G$8,$X98:$BD98,32,FALSE)) -> 
AP99: =IF($AG99="","",VLOOKUP($AG99,Test_Procedure!$A:$F,2,FALSE)) ->  | BE99: =IF($AG99="",0,VLOOKUP($AG99,Test_Procedure!$A:$F,3,FALSE)) -> 0 | BG99: =IF($AG99="",0,VLOOKUP($AG99,Test_Procedure!$A:$F,4,FALSE)) -> 0 | BI99: =IF($AG99="",0,VLOOKUP($AG99,Test_Procedure!$A:$F,5,FALSE)) -> 0 | BK99: =IF($AG99="",0,VLOOKUP($AG99,Test_Procedure!$A:$F,6,FALSE)) -> 0 | XEX99: =IF(ISERROR(VLOOKUP('Testing Report'!$G$8,$AG99:$BD99,13,FALSE)),"",VLOOKUP('Testing Report'!$G$8,$AG99:$BD99,13,FALSE)) ->  | XEY99: =IF(ISERROR(VLOOKUP('Testing Report'!$G$8,$AG99:$BD99,15,FALSE)),"",VLOOKUP('Testing Report'!$G$8,$AG99:$BD99,15,FALSE)) ->  | XEZ99: =IF(COUNTIF($X99:$X$5000,'Testing Report'!$G$8)=0,"",COUNTIF($X99:$X$5000,'Testing Report'!$G$8)) ->  | XFA99: =IF(ISERROR(VLOOKUP('Testing Report'!$G$8,$AG99:$BD99,19,FALSE)),"",VLOOKUP('Testing Report'!$G$8,$AG99:$BD99,19,FALSE)) ->  | XFB99: =IF(ISERROR(VLOOKUP('Testing Report'!$G$8,$X99:$BD99,32,FALSE)),"",VLOOKUP('Testing Report'!$G$8,$X99:$BD99,32,FALSE)) -> 
AP100: =IF($AG100="","",VLOOKUP($AG100,Test_Procedure!$A:$F,2,FALSE)) ->  | BE100: =IF($AG100="",0,VLOOKUP($AG100,Test_Procedure!$A:$F,3,FALSE)) -> 0 | BG100: =IF($AG100="",0,VLOOKUP($AG100,Test_Procedure!$A:$F,4,FALSE)) -> 0 | BI100: =IF($AG100="",0,VLOOKUP($AG100,Test_Procedure!$A:$F,5,FALSE)) -> 0 | BK100: =IF($AG100="",0,VLOOKUP($AG100,Test_Procedure!$A:$F,6,FALSE)) -> 0 | XEX100: =IF(ISERROR(VLOOKUP('Testing Report'!$G$8,$AG100:$BD100,13,FALSE)),"",VLOOKUP('Testing Report'!$G$8,$AG100:$BD100,13,FALSE)) ->  | XEY100: =IF(ISERROR(VLOOKUP('Testing Report'!$G$8,$AG100:$BD100,15,FALSE)),"",VLOOKUP('Testing Report'!$G$8,$AG100:$BD100,15,FALSE)) ->  | XEZ100: =IF(COUNTIF($X100:$X$5000,'Testing Report'!$G$8)=0,"",COUNTIF($X100:$X$5000,'Testing Report'!$G$8)) ->  | XFA100: =IF(ISERROR(VLOOKUP('Testing Report'!$G$8,$AG100:$BD100,19,FALSE)),"",VLOOKUP('Testing Report'!$G$8,$AG100:$BD100,19,FALSE)) ->  | XFB100: =IF(ISERROR(VLOOKUP('Testing Report'!$G$8,$X100:$BD100,32,FALSE)),"",VLOOKUP('Testing Report'!$G$8,$X100:$BD100,32,FALSE)) -> 
AP101: =IF($AG101="","",VLOOKUP($AG101,Test_Procedure!$A:$F,2,FALSE)) ->  | BE101: =IF($AG101="",0,VLOOKUP($AG101,Test_Procedure!$A:$F,3,FALSE)) -> 0 | BG101: =IF($AG101="",0,VLOOKUP($AG101,Test_Procedure!$A:$F,4,FALSE)) -> 0 | BI101: =IF($AG101="",0,VLOOKUP($AG101,Test_Procedure!$A:$F,5,FALSE)) -> 0 | BK101: =IF($AG101="",0,VLOOKUP($AG101,Test_Procedure!$A:$F,6,FALSE)) -> 0 | XEX101: =IF(ISERROR(VLOOKUP('Testing Report'!$G$8,$AG101:$BD101,13,FALSE)),"",VLOOKUP('Testing Report'!$G$8,$AG101:$BD101,13,FALSE)) ->  | XEY101: =IF(ISERROR(VLOOKUP('Testing Report'!$G$8,$AG101:$BD101,15,FALSE)),"",VLOOKUP('Testing Report'!$G$8,$AG101:$BD101,15,FALSE)) ->  | XEZ101: =IF(COUNTIF($X101:$X$5000,'Testing Report'!$G$8)=0,"",COUNTIF($X101:$X$5000,'Testing Report'!$G$8)) ->  | XFA101: =IF(ISERROR(VLOOKUP('Testing Report'!$G$8,$AG101:$BD101,19,FALSE)),"",VLOOKUP('Testing Report'!$G$8,$AG101:$BD101,19,FALSE)) ->  | XFB101: =IF(ISERROR(VLOOKUP('Testing Report'!$G$8,$X101:$BD101,32,FALSE)),"",VLOOKUP('Testing Report'!$G$8,$X101:$BD101,32,FALSE)) -> 
AP102: =IF($AG102="","",VLOOKUP($AG102,Test_Procedure!$A:$F,2,FALSE)) ->  | BE102: =IF($AG102="",0,VLOOKUP($AG102,Test_Procedure!$A:$F,3,FALSE)) -> 0 | BG102: =IF($AG102="",0,VLOOKUP($AG102,Test_Procedure!$A:$F,4,FALSE)) -> 0 | BI102: =IF($AG102="",0,VLOOKUP($AG102,Test_Procedure!$A:$F,5,FALSE)) -> 0 | BK102: =IF($AG102="",0,VLOOKUP($AG102,Test_Procedure!$A:$F,6,FALSE)) -> 0 | XEX102: =IF(ISERROR(VLOOKUP('Testing Report'!$G$8,$AG102:$BD102,13,FALSE)),"",VLOOKUP('Testing Report'!$G$8,$AG102:$BD102,13,FALSE)) ->  | XEY102: =IF(ISERROR(VLOOKUP('Testing Report'!$G$8,$AG102:$BD102,15,FALSE)),"",VLOOKUP('Testing Report'!$G$8,$AG102:$BD102,15,FALSE)) ->  | XEZ102: =IF(COUNTIF($X102:$X$5000,'Testing Report'!$G$8)=0,"",COUNTIF($X102:$X$5000,'Testing Report'!$G$8)) ->  | XFA102: =IF(ISERROR(VLOOKUP('Testing Report'!$G$8,$AG102:$BD102,19,FALSE)),"",VLOOKUP('Testing Report'!$G$8,$AG102:$BD102,19,FALSE)) ->  | XFB102: =IF(ISERROR(VLOOKUP('Testing Report'!$G$8,$X102:$BD102,32,FALSE)),"",VLOOKUP('Testing Report'!$G$8,$X102:$BD102,32,FALSE)) -> 
AP103: =IF($AG103="","",VLOOKUP($AG103,Test_Procedure!$A:$F,2,FALSE)) ->  | BE103: =IF($AG103="",0,VLOOKUP($AG103,Test_Procedure!$A:$F,3,FALSE)) -> 0 | BG103: =IF($AG103="",0,VLOOKUP($AG103,Test_Procedure!$A:$F,4,FALSE)) -> 0 | BI103: =IF($AG103="",0,VLOOKUP($AG103,Test_Procedure!$A:$F,5,FALSE)) -> 0 | BK103: =IF($AG103="",0,VLOOKUP($AG103,Test_Procedure!$A:$F,6,FALSE)) -> 0 | XEX103: =IF(ISERROR(VLOOKUP('Testing Report'!$G$8,$AG103:$BD103,13,FALSE)),"",VLOOKUP('Testing Report'!$G$8,$AG103:$BD103,13,FALSE)) ->  | XEY103: =IF(ISERROR(VLOOKUP('Testing Report'!$G$8,$AG103:$BD103,15,FALSE)),"",VLOOKUP('Testing Report'!$G$8,$AG103:$BD103,15,FALSE)) ->  | XEZ103: =IF(COUNTIF($X103:$X$5000,'Testing Report'!$G$8)=0,"",COUNTIF($X103:$X$5000,'Testing Report'!$G$8)) ->  | XFA103: =IF(ISERROR(VLOOKUP('Testing Report'!$G$8,$AG103:$BD103,19,FALSE)),"",VLOOKUP('Testing Report'!$G$8,$AG103:$BD103,19,FALSE)) ->  | XFB103: =IF(ISERROR(VLOOKUP('Testing Report'!$G$8,$X103:$BD103,32,FALSE)),"",VLOOKUP('Testing Report'!$G$8,$X103:$BD103,32,FALSE)) -> 
AP104: =IF($AG104="","",VLOOKUP($AG104,Test_Procedure!$A:$F,2,FALSE)) ->  | BE104: =IF($AG104="",0,VLOOKUP($AG104,Test_Procedure!$A:$F,3,FALSE)) -> 0 | BG104: =IF($AG104="",0,VLOOKUP($AG104,Test_Procedure!$A:$F,4,FALSE)) -> 0 | BI104: =IF($AG104="",0,VLOOKUP($AG104,Test_Procedure!$A:$F,5,FALSE)) -> 0 | BK104: =IF($AG104="",0,VLOOKUP($AG104,Test_Procedure!$A:$F,6,FALSE)) -> 0 | XEX104: =IF(ISERROR(VLOOKUP('Testing Report'!$G$8,$AG104:$BD104,13,FALSE)),"",VLOOKUP('Testing Report'!$G$8,$AG104:$BD104,13,FALSE)) ->  | XEY104: =IF(ISERROR(VLOOKUP('Testing Report'!$G$8,$AG104:$BD104,15,FALSE)),"",VLOOKUP('Testing Report'!$G$8,$AG104:$BD104,15,FALSE)) ->  | XEZ104: =IF(COUNTIF($X104:$X$5000,'Testing Report'!$G$8)=0,"",COUNTIF($X104:$X$5000,'Testing Report'!$G$8)) ->  | XFA104: =IF(ISERROR(VLOOKUP('Testing Report'!$G$8,$AG104:$BD104,19,FALSE)),"",VLOOKUP('Testing Report'!$G$8,$AG104:$BD104,19,FALSE)) ->  | XFB104: =IF(ISERROR(VLOOKUP('Testing Report'!$G$8,$X104:$BD104,32,FALSE)),"",VLOOKUP('Testing Report'!$G$8,$X104:$BD104,32,FALSE)) -> 
AP105: =IF($AG105="","",VLOOKUP($AG105,Test_Procedure!$A:$F,2,FALSE)) ->  | BE105: =IF($AG105="",0,VLOOKUP($AG105,Test_Procedure!$A:$F,3,FALSE)) -> 0 | BG105: =IF($AG105="",0,VLOOKUP($AG105,Test_Procedure!$A:$F,4,FALSE)) -> 0 | BI105: =IF($AG105="",0,VLOOKUP($AG105,Test_Procedure!$A:$F,5,FALSE)) -> 0 | BK105: =IF($AG105="",0,VLOOKUP($AG105,Test_Procedure!$A:$F,6,FALSE)) -> 0 | XEX105: =IF(ISERROR(VLOOKUP('Testing Report'!$G$8,$AG105:$BD105,13,FALSE)),"",VLOOKUP('Testing Report'!$G$8,$AG105:$BD105,13,FALSE)) ->  | XEY105: =IF(ISERROR(VLOOKUP('Testing Report'!$G$8,$AG105:$BD105,15,FALSE)),"",VLOOKUP('Testing Report'!$G$8,$AG105:$BD105,15,FALSE)) ->  | XEZ105: =IF(COUNTIF($X105:$X$5000,'Testing Report'!$G$8)=0,"",COUNTIF($X105:$X$5000,'Testing Report'!$G$8)) ->  | XFA105: =IF(ISERROR(VLOOKUP('Testing Report'!$G$8,$AG105:$BD105,19,FALSE)),"",VLOOKUP('Testing Report'!$G$8,$AG105:$BD105,19,FALSE)) ->  | XFB105: =IF(ISERROR(VLOOKUP('Testing Report'!$G$8,$X105:$BD105,32,FALSE)),"",VLOOKUP('Testing Report'!$G$8,$X105:$BD105,32,FALSE)) ->  | XFD105: =X105&BM105 -> 
AP106: =IF($AG106="","",VLOOKUP($AG106,Test_Procedure!$A:$F,2,FALSE)) ->  | BE106: =IF($AG106="",0,VLOOKUP($AG106,Test_Procedure!$A:$F,3,FALSE)) -> 0 | BG106: =IF($AG106="",0,VLOOKUP($AG106,Test_Procedure!$A:$F,4,FALSE)) -> 0 | BI106: =IF($AG106="",0,VLOOKUP($AG106,Test_Procedure!$A:$F,5,FALSE)) -> 0 | BK106: =IF($AG106="",0,VLOOKUP($AG106,Test_Procedure!$A:$F,6,FALSE)) -> 0 | XEX106: =IF(ISERROR(VLOOKUP('Testing Report'!$G$8,$AG106:$BD106,13,FALSE)),"",VLOOKUP('Testing Report'!$G$8,$AG106:$BD106,13,FALSE)) ->  | XEY106: =IF(ISERROR(VLOOKUP('Testing Report'!$G$8,$AG106:$BD106,15,FALSE)),"",VLOOKUP('Testing Report'!$G$8,$AG106:$BD106,15,FALSE)) ->  | XEZ106: =IF(COUNTIF($X106:$X$5000,'Testing Report'!$G$8)=0,"",COUNTIF($X106:$X$5000,'Testing Report'!$G$8)) ->  | XFA106: =IF(ISERROR(VLOOKUP('Testing Report'!$G$8,$AG106:$BD106,19,FALSE)),"",VLOOKUP('Testing Report'!$G$8,$AG106:$BD106,19,FALSE)) ->  | XFB106: =IF(ISERROR(VLOOKUP('Testing Report'!$G$8,$X106:$BD106,32,FALSE)),"",VLOOKUP('Testing Report'!$G$8,$X106:$BD106,32,FALSE)) -> 
AP107: =IF($AG107="","",VLOOKUP($AG107,Test_Procedure!$A:$F,2,FALSE)) ->  | BE107: =IF($AG107="",0,VLOOKUP($AG107,Test_Procedure!$A:$F,3,FALSE)) -> 0 | BG107: =IF($AG107="",0,VLOOKUP($AG107,Test_Procedure!$A:$F,4,FALSE)) -> 0 | BI107: =IF($AG107="",0,VLOOKUP($AG107,Test_Procedure!$A:$F,5,FALSE)) -> 0 | BK107: =IF($AG107="",0,VLOOKUP($AG107,Test_Procedure!$A:$F,6,FALSE)) -> 0 | XEX107: =IF(ISERROR(VLOOKUP('Testing Report'!$G$8,$AG107:$BD107,13,FALSE)),"",VLOOKUP('Testing Report'!$G$8,$AG107:$BD107,13,FALSE)) ->  | XEY107: =IF(ISERROR(VLOOKUP('Testing Report'!$G$8,$AG107:$BD107,15,FALSE)),"",VLOOKUP('Testing Report'!$G$8,$AG107:$BD107,15,FALSE)) ->  | XEZ107: =IF(COUNTIF($X107:$X$5000,'Testing Report'!$G$8)=0,"",COUNTIF($X107:$X$5000,'Testing Report'!$G$8)) ->  | XFA107: =IF(ISERROR(VLOOKUP('Testing Report'!$G$8,$AG107:$BD107,19,FALSE)),"",VLOOKUP('Testing Report'!$G$8,$AG107:$BD107,19,FALSE)) ->  | XFB107: =IF(ISERROR(VLOOKUP('Testing Report'!$G$8,$X107:$BD107,32,FALSE)),"",VLOOKUP('Testing Report'!$G$8,$X107:$BD107,32,FALSE)) -> 
AP108: =IF($AG108="","",VLOOKUP($AG108,Test_Procedure!$A:$F,2,FALSE)) ->  | BE108: =IF($AG108="",0,VLOOKUP($AG108,Test_Procedure!$A:$F,3,FALSE)) -> 0 | BG108: =IF($AG108="",0,VLOOKUP($AG108,Test_Procedure!$A:$F,4,FALSE)) -> 0 | BI108: =IF($AG108="",0,VLOOKUP($AG108,Test_Procedure!$A:$F,5,FALSE)) -> 0 | BK108: =IF($AG108="",0,VLOOKUP($AG108,Test_Procedure!$A:$F,6,FALSE)) -> 0 | XEX108: =IF(ISERROR(VLOOKUP('Testing Report'!$G$8,$AG108:$BD108,13,FALSE)),"",VLOOKUP('Testing Report'!$G$8,$AG108:$BD108,13,FALSE)) ->  | XEY108: =IF(ISERROR(VLOOKUP('Testing Report'!$G$8,$AG108:$BD108,15,FALSE)),"",VLOOKUP('Testing Report'!$G$8,$AG108:$BD108,15,FALSE)) ->  | XEZ108: =IF(COUNTIF($X108:$X$5000,'Testing Report'!$G$8)=0,"",COUNTIF($X108:$X$5000,'Testing Report'!$G$8)) ->  | XFA108: =IF(ISERROR(VLOOKUP('Testing Report'!$G$8,$AG108:$BD108,19,FALSE)),"",VLOOKUP('Testing Report'!$G$8,$AG108:$BD108,19,FALSE)) ->  | XFB108: =IF(ISERROR(VLOOKUP('Testing Report'!$G$8,$X108:$BD108,32,FALSE)),"",VLOOKUP('Testing Report'!$G$8,$X108:$BD108,32,FALSE)) -> 
AP109: =IF($AG109="","",VLOOKUP($AG109,Test_Procedure!$A:$F,2,FALSE)) ->  | BE109: =IF($AG109="",0,VLOOKUP($AG109,Test_Procedure!$A:$F,3,FALSE)) -> 0 | BG109: =IF($AG109="",0,VLOOKUP($AG109,Test_Procedure!$A:$F,4,FALSE)) -> 0 | BI109: =IF($AG109="",0,VLOOKUP($AG109,Test_Procedure!$A:$F,5,FALSE)) -> 0 | BK109: =IF($AG109="",0,VLOOKUP($AG109,Test_Procedure!$A:$F,6,FALSE)) -> 0 | XEX109: =IF(ISERROR(VLOOKUP('Testing Report'!$G$8,$AG109:$BD109,13,FALSE)),"",VLOOKUP('Testing Report'!$G$8,$AG109:$BD109,13,FALSE)) ->  | XEY109: =IF(ISERROR(VLOOKUP('Testing Report'!$G$8,$AG109:$BD109,15,FALSE)),"",VLOOKUP('Testing Report'!$G$8,$AG109:$BD109,15,FALSE)) ->  | XEZ109: =IF(COUNTIF($X109:$X$5000,'Testing Report'!$G$8)=0,"",COUNTIF($X109:$X$5000,'Testing Report'!$G$8)) ->  | XFA109: =IF(ISERROR(VLOOKUP('Testing Report'!$G$8,$AG109:$BD109,19,FALSE)),"",VLOOKUP('Testing Report'!$G$8,$AG109:$BD109,19,FALSE)) ->  | XFB109: =IF(ISERROR(VLOOKUP('Testing Report'!$G$8,$X109:$BD109,32,FALSE)),"",VLOOKUP('Testing Report'!$G$8,$X109:$BD109,32,FALSE)) -> 
AP110: =IF($AG110="","",VLOOKUP($AG110,Test_Procedure!$A:$F,2,FALSE)) ->  | BE110: =IF($AG110="",0,VLOOKUP($AG110,Test_Procedure!$A:$F,3,FALSE)) -> 0 | BG110: =IF($AG110="",0,VLOOKUP($AG110,Test_Procedure!$A:$F,4,FALSE)) -> 0 | BI110: =IF($AG110="",0,VLOOKUP($AG110,Test_Procedure!$A:$F,5,FALSE)) -> 0 | BK110: =IF($AG110="",0,VLOOKUP($AG110,Test_Procedure!$A:$F,6,FALSE)) -> 0 | XEX110: =IF(ISERROR(VLOOKUP('Testing Report'!$G$8,$AG110:$BD110,13,FALSE)),"",VLOOKUP('Testing Report'!$G$8,$AG110:$BD110,13,FALSE)) ->  | XEY110: =IF(ISERROR(VLOOKUP('Testing Report'!$G$8,$AG110:$BD110,15,FALSE)),"",VLOOKUP('Testing Report'!$G$8,$AG110:$BD110,15,FALSE)) ->  | XEZ110: =IF(COUNTIF($X110:$X$5000,'Testing Report'!$G$8)=0,"",COUNTIF($X110:$X$5000,'Testing Report'!$G$8)) ->  | XFA110: =IF(ISERROR(VLOOKUP('Testing Report'!$G$8,$AG110:$BD110,19,FALSE)),"",VLOOKUP('Testing Report'!$G$8,$AG110:$BD110,19,FALSE)) ->  | XFB110: =IF(ISERROR(VLOOKUP('Testing Report'!$G$8,$X110:$BD110,32,FALSE)),"",VLOOKUP('Testing Report'!$G$8,$X110:$BD110,32,FALSE)) -> 
AP111: =IF($AG111="","",VLOOKUP($AG111,Test_Procedure!$A:$F,2,FALSE)) ->  | BE111: =IF($AG111="",0,VLOOKUP($AG111,Test_Procedure!$A:$F,3,FALSE)) -> 0 | BG111: =IF($AG111="",0,VLOOKUP($AG111,Test_Procedure!$A:$F,4,FALSE)) -> 0 | BI111: =IF($AG111="",0,VLOOKUP($AG111,Test_Procedure!$A:$F,5,FALSE)) -> 0 | BK111: =IF($AG111="",0,VLOOKUP($AG111,Test_Procedure!$A:$F,6,FALSE)) -> 0 | XEX111: =IF(ISERROR(VLOOKUP('Testing Report'!$G$8,$AG111:$BD111,13,FALSE)),"",VLOOKUP('Testing Report'!$G$8,$AG111:$BD111,13,FALSE)) ->  | XEY111: =IF(ISERROR(VLOOKUP('Testing Report'!$G$8,$AG111:$BD111,15,FALSE)),"",VLOOKUP('Testing Report'!$G$8,$AG111:$BD111,15,FALSE)) ->  | XEZ111: =IF(COUNTIF($X111:$X$5000,'Testing Report'!$G$8)=0,"",COUNTIF($X111:$X$5000,'Testing Report'!$G$8)) ->  | XFA111: =IF(ISERROR(VLOOKUP('Testing Report'!$G$8,$AG111:$BD111,19,FALSE)),"",VLOOKUP('Testing Report'!$G$8,$AG111:$BD111,19,FALSE)) ->  | XFB111: =IF(ISERROR(VLOOKUP('Testing Report'!$G$8,$X111:$BD111,32,FALSE)),"",VLOOKUP('Testing Report'!$G$8,$X111:$BD111,32,FALSE)) -> 
AP112: =IF($AG112="","",VLOOKUP($AG112,Test_Procedure!$A:$F,2,FALSE)) ->  | BE112: =IF($AG112="",0,VLOOKUP($AG112,Test_Procedure!$A:$F,3,FALSE)) -> 0 | BG112: =IF($AG112="",0,VLOOKUP($AG112,Test_Procedure!$A:$F,4,FALSE)) -> 0 | BI112: =IF($AG112="",0,VLOOKUP($AG112,Test_Procedure!$A:$F,5,FALSE)) -> 0 | BK112: =IF($AG112="",0,VLOOKUP($AG112,Test_Procedure!$A:$F,6,FALSE)) -> 0 | XEX112: =IF(ISERROR(VLOOKUP('Testing Report'!$G$8,$AG112:$BD112,13,FALSE)),"",VLOOKUP('Testing Report'!$G$8,$AG112:$BD112,13,FALSE)) ->  | XEY112: =IF(ISERROR(VLOOKUP('Testing Report'!$G$8,$AG112:$BD112,15,FALSE)),"",VLOOKUP('Testing Report'!$G$8,$AG112:$BD112,15,FALSE)) ->  | XEZ112: =IF(COUNTIF($X112:$X$5000,'Testing Report'!$G$8)=0,"",COUNTIF($X112:$X$5000,'Testing Report'!$G$8)) ->  | XFA112: =IF(ISERROR(VLOOKUP('Testing Report'!$G$8,$AG112:$BD112,19,FALSE)),"",VLOOKUP('Testing Report'!$G$8,$AG112:$BD112,19,FALSE)) ->  | XFB112: =IF(ISERROR(VLOOKUP('Testing Report'!$G$8,$X112:$BD112,32,FALSE)),"",VLOOKUP('Testing Report'!$G$8,$X112:$BD112,32,FALSE)) -> 
AP113: =IF($AG113="","",VLOOKUP($AG113,Test_Procedure!$A:$F,2,FALSE)) ->  | BE113: =IF($AG113="",0,VLOOKUP($AG113,Test_Procedure!$A:$F,3,FALSE)) -> 0 | BG113: =IF($AG113="",0,VLOOKUP($AG113,Test_Procedure!$A:$F,4,FALSE)) -> 0 | BI113: =IF($AG113="",0,VLOOKUP($AG113,Test_Procedure!$A:$F,5,FALSE)) -> 0 | BK113: =IF($AG113="",0,VLOOKUP($AG113,Test_Procedure!$A:$F,6,FALSE)) -> 0 | XEX113: =IF(ISERROR(VLOOKUP('Testing Report'!$G$8,$AG113:$BD113,13,FALSE)),"",VLOOKUP('Testing Report'!$G$8,$AG113:$BD113,13,FALSE)) ->  | XEY113: =IF(ISERROR(VLOOKUP('Testing Report'!$G$8,$AG113:$BD113,15,FALSE)),"",VLOOKUP('Testing Report'!$G$8,$AG113:$BD113,15,FALSE)) ->  | XEZ113: =IF(COUNTIF($X113:$X$5000,'Testing Report'!$G$8)=0,"",COUNTIF($X113:$X$5000,'Testing Report'!$G$8)) ->  | XFA113: =IF(ISERROR(VLOOKUP('Testing Report'!$G$8,$AG113:$BD113,19,FALSE)),"",VLOOKUP('Testing Report'!$G$8,$AG113:$BD113,19,FALSE)) ->  | XFB113: =IF(ISERROR(VLOOKUP('Testing Report'!$G$8,$X113:$BD113,32,FALSE)),"",VLOOKUP('Testing Report'!$G$8,$X113:$BD113,32,FALSE)) -> 
AP114: =IF($AG114="","",VLOOKUP($AG114,Test_Procedure!$A:$F,2,FALSE)) ->  | BE114: =IF($AG114="",0,VLOOKUP($AG114,Test_Procedure!$A:$F,3,FALSE)) -> 0 | BG114: =IF($AG114="",0,VLOOKUP($AG114,Test_Procedure!$A:$F,4,FALSE)) -> 0 | BI114: =IF($AG114="",0,VLOOKUP($AG114,Test_Procedure!$A:$F,5,FALSE)) -> 0 | BK114: =IF($AG114="",0,VLOOKUP($AG114,Test_Procedure!$A:$F,6,FALSE)) -> 0 | XEX114: =IF(ISERROR(VLOOKUP('Testing Report'!$G$8,$AG114:$BD114,13,FALSE)),"",VLOOKUP('Testing Report'!$G$8,$AG114:$BD114,13,FALSE)) ->  | XEY114: =IF(ISERROR(VLOOKUP('Testing Report'!$G$8,$AG114:$BD114,15,FALSE)),"",VLOOKUP('Testing Report'!$G$8,$AG114:$BD114,15,FALSE)) ->  | XEZ114: =IF(COUNTIF($X114:$X$5000,'Testing Report'!$G$8)=0,"",COUNTIF($X114:$X$5000,'Testing Report'!$G$8)) ->  | XFA114: =IF(ISERROR(VLOOKUP('Testing Report'!$G$8,$AG114:$BD114,19,FALSE)),"",VLOOKUP('Testing Report'!$G$8,$AG114:$BD114,19,FALSE)) ->  | XFB114: =IF(ISERROR(VLOOKUP('Testing Report'!$G$8,$X114:$BD114,32,FALSE)),"",VLOOKUP('Testing Report'!$G$8,$X114:$BD114,32,FALSE)) -> 
AP115: =IF($AG115="","",VLOOKUP($AG115,Test_Procedure!$A:$F,2,FALSE)) ->  | BE115: =IF($AG115="",0,VLOOKUP($AG115,Test_Procedure!$A:$F,3,FALSE)) -> 0 | BG115: =IF($AG115="",0,VLOOKUP($AG115,Test_Procedure!$A:$F,4,FALSE)) -> 0 | BI115: =IF($AG115="",0,VLOOKUP($AG115,Test_Procedure!$A:$F,5,FALSE)) -> 0 | BK115: =IF($AG115="",0,VLOOKUP($AG115,Test_Procedure!$A:$F,6,FALSE)) -> 0 | XEX115: =IF(ISERROR(VLOOKUP('Testing Report'!$G$8,$AG115:$BD115,13,FALSE)),"",VLOOKUP('Testing Report'!$G$8,$AG115:$BD115,13,FALSE)) ->  | XEY115: =IF(ISERROR(VLOOKUP('Testing Report'!$G$8,$AG115:$BD115,15,FALSE)),"",VLOOKUP('Testing Report'!$G$8,$AG115:$BD115,15,FALSE)) ->  | XEZ115: =IF(COUNTIF($X115:$X$5000,'Testing Report'!$G$8)=0,"",COUNTIF($X115:$X$5000,'Testing Report'!$G$8)) ->  | XFA115: =IF(ISERROR(VLOOKUP('Testing Report'!$G$8,$AG115:$BD115,19,FALSE)),"",VLOOKUP('Testing Report'!$G$8,$AG115:$BD115,19,FALSE)) ->  | XFB115: =IF(ISERROR(VLOOKUP('Testing Report'!$G$8,$X115:$BD115,32,FALSE)),"",VLOOKUP('Testing Report'!$G$8,$X115:$BD115,32,FALSE)) -> 
AP116: =IF($AG116="","",VLOOKUP($AG116,Test_Procedure!$A:$F,2,FALSE)) ->  | BE116: =IF($AG116="",0,VLOOKUP($AG116,Test_Procedure!$A:$F,3,FALSE)) -> 0 | BG116: =IF($AG116="",0,VLOOKUP($AG116,Test_Procedure!$A:$F,4,FALSE)) -> 0 | BI116: =IF($AG116="",0,VLOOKUP($AG116,Test_Procedure!$A:$F,5,FALSE)) -> 0 | BK116: =IF($AG116="",0,VLOOKUP($AG116,Test_Procedure!$A:$F,6,FALSE)) -> 0 | XEX116: =IF(ISERROR(VLOOKUP('Testing Report'!$G$8,$AG116:$BD116,13,FALSE)),"",VLOOKUP('Testing Report'!$G$8,$AG116:$BD116,13,FALSE)) ->  | XEY116: =IF(ISERROR(VLOOKUP('Testing Report'!$G$8,$AG116:$BD116,15,FALSE)),"",VLOOKUP('Testing Report'!$G$8,$AG116:$BD116,15,FALSE)) ->  | XEZ116: =IF(COUNTIF($X116:$X$5000,'Testing Report'!$G$8)=0,"",COUNTIF($X116:$X$5000,'Testing Report'!$G$8)) ->  | XFA116: =IF(ISERROR(VLOOKUP('Testing Report'!$G$8,$AG116:$BD116,19,FALSE)),"",VLOOKUP('Testing Report'!$G$8,$AG116:$BD116,19,FALSE)) ->  | XFB116: =IF(ISERROR(VLOOKUP('Testing Report'!$G$8,$X116:$BD116,32,FALSE)),"",VLOOKUP('Testing Report'!$G$8,$X116:$BD116,32,FALSE)) -> 
AP117: =IF($AG117="","",VLOOKUP($AG117,Test_Procedure!$A:$F,2,FALSE)) ->  | BE117: =IF($AG117="",0,VLOOKUP($AG117,Test_Procedure!$A:$F,3,FALSE)) -> 0 | BG117: =IF($AG117="",0,VLOOKUP($AG117,Test_Procedure!$A:$F,4,FALSE)) -> 0 | BI117: =IF($AG117="",0,VLOOKUP($AG117,Test_Procedure!$A:$F,5,FALSE)) -> 0 | BK117: =IF($AG117="",0,VLOOKUP($AG117,Test_Procedure!$A:$F,6,FALSE)) -> 0 | XEX117: =IF(ISERROR(VLOOKUP('Testing Report'!$G$8,$AG117:$BD117,13,FALSE)),"",VLOOKUP('Testing Report'!$G$8,$AG117:$BD117,13,FALSE)) ->  | XEY117: =IF(ISERROR(VLOOKUP('Testing Report'!$G$8,$AG117:$BD117,15,FALSE)),"",VLOOKUP('Testing Report'!$G$8,$AG117:$BD117,15,FALSE)) ->  | XEZ117: =IF(COUNTIF($X117:$X$5000,'Testing Report'!$G$8)=0,"",COUNTIF($X117:$X$5000,'Testing Report'!$G$8)) ->  | XFA117: =IF(ISERROR(VLOOKUP('Testing Report'!$G$8,$AG117:$BD117,19,FALSE)),"",VLOOKUP('Testing Report'!$G$8,$AG117:$BD117,19,FALSE)) ->  | XFB117: =IF(ISERROR(VLOOKUP('Testing Report'!$G$8,$X117:$BD117,32,FALSE)),"",VLOOKUP('Testing Report'!$G$8,$X117:$BD117,32,FALSE)) -> 
AP118: =IF($AG118="","",VLOOKUP($AG118,Test_Procedure!$A:$F,2,FALSE)) ->  | BE118: =IF($AG118="",0,VLOOKUP($AG118,Test_Procedure!$A:$F,3,FALSE)) -> 0 | BG118: =IF($AG118="",0,VLOOKUP($AG118,Test_Procedure!$A:$F,4,FALSE)) -> 0 | BI118: =IF($AG118="",0,VLOOKUP($AG118,Test_Procedure!$A:$F,5,FALSE)) -> 0 | BK118: =IF($AG118="",0,VLOOKUP($AG118,Test_Procedure!$A:$F,6,FALSE)) -> 0 | XEX118: =IF(ISERROR(VLOOKUP('Testing Report'!$G$8,$AG118:$BD118,13,FALSE)),"",VLOOKUP('Testing Report'!$G$8,$AG118:$BD118,13,FALSE)) ->  | XEY118: =IF(ISERROR(VLOOKUP('Testing Report'!$G$8,$AG118:$BD118,15,FALSE)),"",VLOOKUP('Testing Report'!$G$8,$AG118:$BD118,15,FALSE)) ->  | XEZ118: =IF(COUNTIF($X118:$X$5000,'Testing Report'!$G$8)=0,"",COUNTIF($X118:$X$5000,'Testing Report'!$G$8)) ->  | XFA118: =IF(ISERROR(VLOOKUP('Testing Report'!$G$8,$AG118:$BD118,19,FALSE)),"",VLOOKUP('Testing Report'!$G$8,$AG118:$BD118,19,FALSE)) ->  | XFB118: =IF(ISERROR(VLOOKUP('Testing Report'!$G$8,$X118:$BD118,32,FALSE)),"",VLOOKUP('Testing Report'!$G$8,$X118:$BD118,32,FALSE)) -> 
AP119: =IF($AG119="","",VLOOKUP($AG119,Test_Procedure!$A:$F,2,FALSE)) ->  | BE119: =IF($AG119="",0,VLOOKUP($AG119,Test_Procedure!$A:$F,3,FALSE)) -> 0 | BG119: =IF($AG119="",0,VLOOKUP($AG119,Test_Procedure!$A:$F,4,FALSE)) -> 0 | BI119: =IF($AG119="",0,VLOOKUP($AG119,Test_Procedure!$A:$F,5,FALSE)) -> 0 | BK119: =IF($AG119="",0,VLOOKUP($AG119,Test_Procedure!$A:$F,6,FALSE)) -> 0 | XEX119: =IF(ISERROR(VLOOKUP('Testing Report'!$G$8,$AG119:$BD119,13,FALSE)),"",VLOOKUP('Testing Report'!$G$8,$AG119:$BD119,13,FALSE)) ->  | XEY119: =IF(ISERROR(VLOOKUP('Testing Report'!$G$8,$AG119:$BD119,15,FALSE)),"",VLOOKUP('Testing Report'!$G$8,$AG119:$BD119,15,FALSE)) ->  | XEZ119: =IF(COUNTIF($X119:$X$5000,'Testing Report'!$G$8)=0,"",COUNTIF($X119:$X$5000,'Testing Report'!$G$8)) ->  | XFA119: =IF(ISERROR(VLOOKUP('Testing Report'!$G$8,$AG119:$BD119,19,FALSE)),"",VLOOKUP('Testing Report'!$G$8,$AG119:$BD119,19,FALSE)) ->  | XFB119: =IF(ISERROR(VLOOKUP('Testing Report'!$G$8,$X119:$BD119,32,FALSE)),"",VLOOKUP('Testing Report'!$G$8,$X119:$BD119,32,FALSE)) -> 
AP120: =IF($AG120="","",VLOOKUP($AG120,Test_Procedure!$A:$F,2,FALSE)) ->  | BE120: =IF($AG120="",0,VLOOKUP($AG120,Test_Procedure!$A:$F,3,FALSE)) -> 0 | BG120: =IF($AG120="",0,VLOOKUP($AG120,Test_Procedure!$A:$F,4,FALSE)) -> 0 | BI120: =IF($AG120="",0,VLOOKUP($AG120,Test_Procedure!$A:$F,5,FALSE)) -> 0 | BK120: =IF($AG120="",0,VLOOKUP($AG120,Test_Procedure!$A:$F,6,FALSE)) -> 0 | XEX120: =IF(ISERROR(VLOOKUP('Testing Report'!$G$8,$AG120:$BD120,13,FALSE)),"",VLOOKUP('Testing Report'!$G$8,$AG120:$BD120,13,FALSE)) ->  | XEY120: =IF(ISERROR(VLOOKUP('Testing Report'!$G$8,$AG120:$BD120,15,FALSE)),"",VLOOKUP('Testing Report'!$G$8,$AG120:$BD120,15,FALSE)) ->  | XEZ120: =IF(COUNTIF($X120:$X$5000,'Testing Report'!$G$8)=0,"",COUNTIF($X120:$X$5000,'Testing Report'!$G$8)) ->  | XFA120: =IF(ISERROR(VLOOKUP('Testing Report'!$G$8,$AG120:$BD120,19,FALSE)),"",VLOOKUP('Testing Report'!$G$8,$AG120:$BD120,19,FALSE)) ->  | XFB120: =IF(ISERROR(VLOOKUP('Testing Report'!$G$8,$X120:$BD120,32,FALSE)),"",VLOOKUP('Testing Report'!$G$8,$X120:$BD120,32,FALSE)) -> 
AP121: =IF($AG121="","",VLOOKUP($AG121,Test_Procedure!$A:$F,2,FALSE)) ->  | BE121: =IF($AG121="",0,VLOOKUP($AG121,Test_Procedure!$A:$F,3,FALSE)) -> 0 | BG121: =IF($AG121="",0,VLOOKUP($AG121,Test_Procedure!$A:$F,4,FALSE)) -> 0 | BI121: =IF($AG121="",0,VLOOKUP($AG121,Test_Procedure!$A:$F,5,FALSE)) -> 0 | BK121: =IF($AG121="",0,VLOOKUP($AG121,Test_Procedure!$A:$F,6,FALSE)) -> 0 | XEX121: =IF(ISERROR(VLOOKUP('Testing Report'!$G$8,$AG121:$BD121,13,FALSE)),"",VLOOKUP('Testing Report'!$G$8,$AG121:$BD121,13,FALSE)) ->  | XEY121: =IF(ISERROR(VLOOKUP('Testing Report'!$G$8,$AG121:$BD121,15,FALSE)),"",VLOOKUP('Testing Report'!$G$8,$AG121:$BD121,15,FALSE)) ->  | XEZ121: =IF(COUNTIF($X121:$X$5000,'Testing Report'!$G$8)=0,"",COUNTIF($X121:$X$5000,'Testing Report'!$G$8)) ->  | XFA121: =IF(ISERROR(VLOOKUP('Testing Report'!$G$8,$AG121:$BD121,19,FALSE)),"",VLOOKUP('Testing Report'!$G$8,$AG121:$BD121,19,FALSE)) ->  | XFB121: =IF(ISERROR(VLOOKUP('Testing Report'!$G$8,$X121:$BD121,32,FALSE)),"",VLOOKUP('Testing Report'!$G$8,$X121:$BD121,32,FALSE)) -> 
AP122: =IF($AG122="","",VLOOKUP($AG122,Test_Procedure!$A:$F,2,FALSE)) ->  | BE122: =IF($AG122="",0,VLOOKUP($AG122,Test_Procedure!$A:$F,3,FALSE)) -> 0 | BG122: =IF($AG122="",0,VLOOKUP($AG122,Test_Procedure!$A:$F,4,FALSE)) -> 0 | BI122: =IF($AG122="",0,VLOOKUP($AG122,Test_Procedure!$A:$F,5,FALSE)) -> 0 | BK122: =IF($AG122="",0,VLOOKUP($AG122,Test_Procedure!$A:$F,6,FALSE)) -> 0 | XEX122: =IF(ISERROR(VLOOKUP('Testing Report'!$G$8,$AG122:$BD122,13,FALSE)),"",VLOOKUP('Testing Report'!$G$8,$AG122:$BD122,13,FALSE)) ->  | XEY122: =IF(ISERROR(VLOOKUP('Testing Report'!$G$8,$AG122:$BD122,15,FALSE)),"",VLOOKUP('Testing Report'!$G$8,$AG122:$BD122,15,FALSE)) ->  | XEZ122: =IF(COUNTIF($X122:$X$5000,'Testing Report'!$G$8)=0,"",COUNTIF($X122:$X$5000,'Testing Report'!$G$8)) ->  | XFA122: =IF(ISERROR(VLOOKUP('Testing Report'!$G$8,$AG122:$BD122,19,FALSE)),"",VLOOKUP('Testing Report'!$G$8,$AG122:$BD122,19,FALSE)) ->  | XFB122: =IF(ISERROR(VLOOKUP('Testing Report'!$G$8,$X122:$BD122,32,FALSE)),"",VLOOKUP('Testing Report'!$G$8,$X122:$BD122,32,FALSE)) -> 
AP123: =IF($AG123="","",VLOOKUP($AG123,Test_Procedure!$A:$F,2,FALSE)) ->  | BE123: =IF($AG123="",0,VLOOKUP($AG123,Test_Procedure!$A:$F,3,FALSE)) -> 0 | BG123: =IF($AG123="",0,VLOOKUP($AG123,Test_Procedure!$A:$F,4,FALSE)) -> 0 | BI123: =IF($AG123="",0,VLOOKUP($AG123,Test_Procedure!$A:$F,5,FALSE)) -> 0 | BK123: =IF($AG123="",0,VLOOKUP($AG123,Test_Procedure!$A:$F,6,FALSE)) -> 0 | XEX123: =IF(ISERROR(VLOOKUP('Testing Report'!$G$8,$AG123:$BD123,13,FALSE)),"",VLOOKUP('Testing Report'!$G$8,$AG123:$BD123,13,FALSE)) ->  | XEY123: =IF(ISERROR(VLOOKUP('Testing Report'!$G$8,$AG123:$BD123,15,FALSE)),"",VLOOKUP('Testing Report'!$G$8,$AG123:$BD123,15,FALSE)) ->  | XEZ123: =IF(COUNTIF($X123:$X$5000,'Testing Report'!$G$8)=0,"",COUNTIF($X123:$X$5000,'Testing Report'!$G$8)) ->  | XFA123: =IF(ISERROR(VLOOKUP('Testing Report'!$G$8,$AG123:$BD123,19,FALSE)),"",VLOOKUP('Testing Report'!$G$8,$AG123:$BD123,19,FALSE)) ->  | XFB123: =IF(ISERROR(VLOOKUP('Testing Report'!$G$8,$X123:$BD123,32,FALSE)),"",VLOOKUP('Testing Report'!$G$8,$X123:$BD123,32,FALSE)) -> 
AP124: =IF($AG124="","",VLOOKUP($AG124,Test_Procedure!$A:$F,2,FALSE)) ->  | BE124: =IF($AG124="",0,VLOOKUP($AG124,Test_Procedure!$A:$F,3,FALSE)) -> 0 | BG124: =IF($AG124="",0,VLOOKUP($AG124,Test_Procedure!$A:$F,4,FALSE)) -> 0 | BI124: =IF($AG124="",0,VLOOKUP($AG124,Test_Procedure!$A:$F,5,FALSE)) -> 0 | BK124: =IF($AG124="",0,VLOOKUP($AG124,Test_Procedure!$A:$F,6,FALSE)) -> 0 | XEX124: =IF(ISERROR(VLOOKUP('Testing Report'!$G$8,$AG124:$BD124,13,FALSE)),"",VLOOKUP('Testing Report'!$G$8,$AG124:$BD124,13,FALSE)) ->  | XEY124: =IF(ISERROR(VLOOKUP('Testing Report'!$G$8,$AG124:$BD124,15,FALSE)),"",VLOOKUP('Testing Report'!$G$8,$AG124:$BD124,15,FALSE)) ->  | XEZ124: =IF(COUNTIF($X124:$X$5000,'Testing Report'!$G$8)=0,"",COUNTIF($X124:$X$5000,'Testing Report'!$G$8)) ->  | XFA124: =IF(ISERROR(VLOOKUP('Testing Report'!$G$8,$AG124:$BD124,19,FALSE)),"",VLOOKUP('Testing Report'!$G$8,$AG124:$BD124,19,FALSE)) ->  | XFB124: =IF(ISERROR(VLOOKUP('Testing Report'!$G$8,$X124:$BD124,32,FALSE)),"",VLOOKUP('Testing Report'!$G$8,$X124:$BD124,32,FALSE)) -> 
AP125: =IF($AG125="","",VLOOKUP($AG125,Test_Procedure!$A:$F,2,FALSE)) ->  | BE125: =IF($AG125="",0,VLOOKUP($AG125,Test_Procedure!$A:$F,3,FALSE)) -> 0 | BG125: =IF($AG125="",0,VLOOKUP($AG125,Test_Procedure!$A:$F,4,FALSE)) -> 0 | BI125: =IF($AG125="",0,VLOOKUP($AG125,Test_Procedure!$A:$F,5,FALSE)) -> 0 | BK125: =IF($AG125="",0,VLOOKUP($AG125,Test_Procedure!$A:$F,6,FALSE)) -> 0 | XEX125: =IF(ISERROR(VLOOKUP('Testing Report'!$G$8,$AG125:$BD125,13,FALSE)),"",VLOOKUP('Testing Report'!$G$8,$AG125:$BD125,13,FALSE)) ->  | XEY125: =IF(ISERROR(VLOOKUP('Testing Report'!$G$8,$AG125:$BD125,15,FALSE)),"",VLOOKUP('Testing Report'!$G$8,$AG125:$BD125,15,FALSE)) ->  | XEZ125: =IF(COUNTIF($X125:$X$5000,'Testing Report'!$G$8)=0,"",COUNTIF($X125:$X$5000,'Testing Report'!$G$8)) ->  | XFA125: =IF(ISERROR(VLOOKUP('Testing Report'!$G$8,$AG125:$BD125,19,FALSE)),"",VLOOKUP('Testing Report'!$G$8,$AG125:$BD125,19,FALSE)) ->  | XFB125: =IF(ISERROR(VLOOKUP('Testing Report'!$G$8,$X125:$BD125,32,FALSE)),"",VLOOKUP('Testing Report'!$G$8,$X125:$BD125,32,FALSE)) -> 
AP126: =IF($AG126="","",VLOOKUP($AG126,Test_Procedure!$A:$F,2,FALSE)) ->  | BE126: =IF($AG126="",0,VLOOKUP($AG126,Test_Procedure!$A:$F,3,FALSE)) -> 0 | BG126: =IF($AG126="",0,VLOOKUP($AG126,Test_Procedure!$A:$F,4,FALSE)) -> 0 | BI126: =IF($AG126="",0,VLOOKUP($AG126,Test_Procedure!$A:$F,5,FALSE)) -> 0 | BK126: =IF($AG126="",0,VLOOKUP($AG126,Test_Procedure!$A:$F,6,FALSE)) -> 0 | XEX126: =IF(ISERROR(VLOOKUP('Testing Report'!$G$8,$AG126:$BD126,13,FALSE)),"",VLOOKUP('Testing Report'!$G$8,$AG126:$BD126,13,FALSE)) ->  | XEY126: =IF(ISERROR(VLOOKUP('Testing Report'!$G$8,$AG126:$BD126,15,FALSE)),"",VLOOKUP('Testing Report'!$G$8,$AG126:$BD126,15,FALSE)) ->  | XEZ126: =IF(COUNTIF($X126:$X$5000,'Testing Report'!$G$8)=0,"",COUNTIF($X126:$X$5000,'Testing Report'!$G$8)) ->  | XFA126: =IF(ISERROR(VLOOKUP('Testing Report'!$G$8,$AG126:$BD126,19,FALSE)),"",VLOOKUP('Testing Report'!$G$8,$AG126:$BD126,19,FALSE)) ->  | XFB126: =IF(ISERROR(VLOOKUP('Testing Report'!$G$8,$X126:$BD126,32,FALSE)),"",VLOOKUP('Testing Report'!$G$8,$X126:$BD126,32,FALSE)) -> 
AP127: =IF($AG127="","",VLOOKUP($AG127,Test_Procedure!$A:$F,2,FALSE)) ->  | BE127: =IF($AG127="",0,VLOOKUP($AG127,Test_Procedure!$A:$F,3,FALSE)) -> 0 | BG127: =IF($AG127="",0,VLOOKUP($AG127,Test_Procedure!$A:$F,4,FALSE)) -> 0 | BI127: =IF($AG127="",0,VLOOKUP($AG127,Test_Procedure!$A:$F,5,FALSE)) -> 0 | BK127: =IF($AG127="",0,VLOOKUP($AG127,Test_Procedure!$A:$F,6,FALSE)) -> 0 | XEX127: =IF(ISERROR(VLOOKUP('Testing Report'!$G$8,$AG127:$BD127,13,FALSE)),"",VLOOKUP('Testing Report'!$G$8,$AG127:$BD127,13,FALSE)) ->  | XEY127: =IF(ISERROR(VLOOKUP('Testing Report'!$G$8,$AG127:$BD127,15,FALSE)),"",VLOOKUP('Testing Report'!$G$8,$AG127:$BD127,15,FALSE)) ->  | XEZ127: =IF(COUNTIF($X127:$X$5000,'Testing Report'!$G$8)=0,"",COUNTIF($X127:$X$5000,'Testing Report'!$G$8)) ->  | XFA127: =IF(ISERROR(VLOOKUP('Testing Report'!$G$8,$AG127:$BD127,19,FALSE)),"",VLOOKUP('Testing Report'!$G$8,$AG127:$BD127,19,FALSE)) ->  | XFB127: =IF(ISERROR(VLOOKUP('Testing Report'!$G$8,$X127:$BD127,32,FALSE)),"",VLOOKUP('Testing Report'!$G$8,$X127:$BD127,32,FALSE)) -> 
AP128: =IF($AG128="","",VLOOKUP($AG128,Test_Procedure!$A:$F,2,FALSE)) ->  | BE128: =IF($AG128="",0,VLOOKUP($AG128,Test_Procedure!$A:$F,3,FALSE)) -> 0 | BG128: =IF($AG128="",0,VLOOKUP($AG128,Test_Procedure!$A:$F,4,FALSE)) -> 0 | BI128: =IF($AG128="",0,VLOOKUP($AG128,Test_Procedure!$A:$F,5,FALSE)) -> 0 | BK128: =IF($AG128="",0,VLOOKUP($AG128,Test_Procedure!$A:$F,6,FALSE)) -> 0 | XEX128: =IF(ISERROR(VLOOKUP('Testing Report'!$G$8,$AG128:$BD128,13,FALSE)),"",VLOOKUP('Testing Report'!$G$8,$AG128:$BD128,13,FALSE)) ->  | XEY128: =IF(ISERROR(VLOOKUP('Testing Report'!$G$8,$AG128:$BD128,15,FALSE)),"",VLOOKUP('Testing Report'!$G$8,$AG128:$BD128,15,FALSE)) ->  | XEZ128: =IF(COUNTIF($X128:$X$5000,'Testing Report'!$G$8)=0,"",COUNTIF($X128:$X$5000,'Testing Report'!$G$8)) ->  | XFA128: =IF(ISERROR(VLOOKUP('Testing Report'!$G$8,$AG128:$BD128,19,FALSE)),"",VLOOKUP('Testing Report'!$G$8,$AG128:$BD128,19,FALSE)) ->  | XFB128: =IF(ISERROR(VLOOKUP('Testing Report'!$G$8,$X128:$BD128,32,FALSE)),"",VLOOKUP('Testing Report'!$G$8,$X128:$BD128,32,FALSE)) -> 
AP129: =IF($AG129="","",VLOOKUP($AG129,Test_Procedure!$A:$F,2,FALSE)) ->  | BE129: =IF($AG129="",0,VLOOKUP($AG129,Test_Procedure!$A:$F,3,FALSE)) -> 0 | BG129: =IF($AG129="",0,VLOOKUP($AG129,Test_Procedure!$A:$F,4,FALSE)) -> 0 | BI129: =IF($AG129="",0,VLOOKUP($AG129,Test_Procedure!$A:$F,5,FALSE)) -> 0 | BK129: =IF($AG129="",0,VLOOKUP($AG129,Test_Procedure!$A:$F,6,FALSE)) -> 0 | XEX129: =IF(ISERROR(VLOOKUP('Testing Report'!$G$8,$AG129:$BD129,13,FALSE)),"",VLOOKUP('Testing Report'!$G$8,$AG129:$BD129,13,FALSE)) ->  | XEY129: =IF(ISERROR(VLOOKUP('Testing Report'!$G$8,$AG129:$BD129,15,FALSE)),"",VLOOKUP('Testing Report'!$G$8,$AG129:$BD129,15,FALSE)) ->  | XEZ129: =IF(COUNTIF($X129:$X$5000,'Testing Report'!$G$8)=0,"",COUNTIF($X129:$X$5000,'Testing Report'!$G$8)) ->  | XFA129: =IF(ISERROR(VLOOKUP('Testing Report'!$G$8,$AG129:$BD129,19,FALSE)),"",VLOOKUP('Testing Report'!$G$8,$AG129:$BD129,19,FALSE)) ->  | XFB129: =IF(ISERROR(VLOOKUP('Testing Report'!$G$8,$X129:$BD129,32,FALSE)),"",VLOOKUP('Testing Report'!$G$8,$X129:$BD129,32,FALSE)) -> 
AP130: =IF($AG130="","",VLOOKUP($AG130,Test_Procedure!$A:$F,2,FALSE)) ->  | BE130: =IF($AG130="",0,VLOOKUP($AG130,Test_Procedure!$A:$F,3,FALSE)) -> 0 | BG130: =IF($AG130="",0,VLOOKUP($AG130,Test_Procedure!$A:$F,4,FALSE)) -> 0 | BI130: =IF($AG130="",0,VLOOKUP($AG130,Test_Procedure!$A:$F,5,FALSE)) -> 0 | BK130: =IF($AG130="",0,VLOOKUP($AG130,Test_Procedure!$A:$F,6,FALSE)) -> 0 | XEX130: =IF(ISERROR(VLOOKUP('Testing Report'!$G$8,$AG130:$BD130,13,FALSE)),"",VLOOKUP('Testing Report'!$G$8,$AG130:$BD130,13,FALSE)) ->  | XEY130: =IF(ISERROR(VLOOKUP('Testing Report'!$G$8,$AG130:$BD130,15,FALSE)),"",VLOOKUP('Testing Report'!$G$8,$AG130:$BD130,15,FALSE)) ->  | XEZ130: =IF(COUNTIF($X130:$X$5000,'Testing Report'!$G$8)=0,"",COUNTIF($X130:$X$5000,'Testing Report'!$G$8)) ->  | XFA130: =IF(ISERROR(VLOOKUP('Testing Report'!$G$8,$AG130:$BD130,19,FALSE)),"",VLOOKUP('Testing Report'!$G$8,$AG130:$BD130,19,FALSE)) ->  | XFB130: =IF(ISERROR(VLOOKUP('Testing Report'!$G$8,$X130:$BD130,32,FALSE)),"",VLOOKUP('Testing Report'!$G$8,$X130:$BD130,32,FALSE)) -> 
AP131: =IF($AG131="","",VLOOKUP($AG131,Test_Procedure!$A:$F,2,FALSE)) ->  | BE131: =IF($AG131="",0,VLOOKUP($AG131,Test_Procedure!$A:$F,3,FALSE)) -> 0 | BG131: =IF($AG131="",0,VLOOKUP($AG131,Test_Procedure!$A:$F,4,FALSE)) -> 0 | BI131: =IF($AG131="",0,VLOOKUP($AG131,Test_Procedure!$A:$F,5,FALSE)) -> 0 | BK131: =IF($AG131="",0,VLOOKUP($AG131,Test_Procedure!$A:$F,6,FALSE)) -> 0 | XEX131: =IF(ISERROR(VLOOKUP('Testing Report'!$G$8,$AG131:$BD131,13,FALSE)),"",VLOOKUP('Testing Report'!$G$8,$AG131:$BD131,13,FALSE)) ->  | XEY131: =IF(ISERROR(VLOOKUP('Testing Report'!$G$8,$AG131:$BD131,15,FALSE)),"",VLOOKUP('Testing Report'!$G$8,$AG131:$BD131,15,FALSE)) ->  | XEZ131: =IF(COUNTIF($X131:$X$5000,'Testing Report'!$G$8)=0,"",COUNTIF($X131:$X$5000,'Testing Report'!$G$8)) ->  | XFA131: =IF(ISERROR(VLOOKUP('Testing Report'!$G$8,$AG131:$BD131,19,FALSE)),"",VLOOKUP('Testing Report'!$G$8,$AG131:$BD131,19,FALSE)) ->  | XFB131: =IF(ISERROR(VLOOKUP('Testing Report'!$G$8,$X131:$BD131,32,FALSE)),"",VLOOKUP('Testing Report'!$G$8,$X131:$BD131,32,FALSE)) -> 
AP132: =IF($AG132="","",VLOOKUP($AG132,Test_Procedure!$A:$F,2,FALSE)) ->  | BE132: =IF($AG132="",0,VLOOKUP($AG132,Test_Procedure!$A:$F,3,FALSE)) -> 0 | BG132: =IF($AG132="",0,VLOOKUP($AG132,Test_Procedure!$A:$F,4,FALSE)) -> 0 | BI132: =IF($AG132="",0,VLOOKUP($AG132,Test_Procedure!$A:$F,5,FALSE)) -> 0 | BK132: =IF($AG132="",0,VLOOKUP($AG132,Test_Procedure!$A:$F,6,FALSE)) -> 0 | XEX132: =IF(ISERROR(VLOOKUP('Testing Report'!$G$8,$AG132:$BD132,13,FALSE)),"",VLOOKUP('Testing Report'!$G$8,$AG132:$BD132,13,FALSE)) ->  | XEY132: =IF(ISERROR(VLOOKUP('Testing Report'!$G$8,$AG132:$BD132,15,FALSE)),"",VLOOKUP('Testing Report'!$G$8,$AG132:$BD132,15,FALSE)) ->  | XEZ132: =IF(COUNTIF($X132:$X$5000,'Testing Report'!$G$8)=0,"",COUNTIF($X132:$X$5000,'Testing Report'!$G$8)) ->  | XFA132: =IF(ISERROR(VLOOKUP('Testing Report'!$G$8,$AG132:$BD132,19,FALSE)),"",VLOOKUP('Testing Report'!$G$8,$AG132:$BD132,19,FALSE)) ->  | XFB132: =IF(ISERROR(VLOOKUP('Testing Report'!$G$8,$X132:$BD132,32,FALSE)),"",VLOOKUP('Testing Report'!$G$8,$X132:$BD132,32,FALSE)) -> 
AP133: =IF($AG133="","",VLOOKUP($AG133,Test_Procedure!$A:$F,2,FALSE)) ->  | BE133: =IF($AG133="",0,VLOOKUP($AG133,Test_Procedure!$A:$F,3,FALSE)) -> 0 | BG133: =IF($AG133="",0,VLOOKUP($AG133,Test_Procedure!$A:$F,4,FALSE)) -> 0 | BI133: =IF($AG133="",0,VLOOKUP($AG133,Test_Procedure!$A:$F,5,FALSE)) -> 0 | BK133: =IF($AG133="",0,VLOOKUP($AG133,Test_Procedure!$A:$F,6,FALSE)) -> 0 | XEX133: =IF(ISERROR(VLOOKUP('Testing Report'!$G$8,$AG133:$BD133,13,FALSE)),"",VLOOKUP('Testing Report'!$G$8,$AG133:$BD133,13,FALSE)) ->  | XEY133: =IF(ISERROR(VLOOKUP('Testing Report'!$G$8,$AG133:$BD133,15,FALSE)),"",VLOOKUP('Testing Report'!$G$8,$AG133:$BD133,15,FALSE)) ->  | XEZ133: =IF(COUNTIF($X133:$X$5000,'Testing Report'!$G$8)=0,"",COUNTIF($X133:$X$5000,'Testing Report'!$G$8)) ->  | XFA133: =IF(ISERROR(VLOOKUP('Testing Report'!$G$8,$AG133:$BD133,19,FALSE)),"",VLOOKUP('Testing Report'!$G$8,$AG133:$BD133,19,FALSE)) ->  | XFB133: =IF(ISERROR(VLOOKUP('Testing Report'!$G$8,$X133:$BD133,32,FALSE)),"",VLOOKUP('Testing Report'!$G$8,$X133:$BD133,32,FALSE)) -> 
AP134: =IF($AG134="","",VLOOKUP($AG134,Test_Procedure!$A:$F,2,FALSE)) ->  | BE134: =IF($AG134="",0,VLOOKUP($AG134,Test_Procedure!$A:$F,3,FALSE)) -> 0 | BG134: =IF($AG134="",0,VLOOKUP($AG134,Test_Procedure!$A:$F,4,FALSE)) -> 0 | BI134: =IF($AG134="",0,VLOOKUP($AG134,Test_Procedure!$A:$F,5,FALSE)) -> 0 | BK134: =IF($AG134="",0,VLOOKUP($AG134,Test_Procedure!$A:$F,6,FALSE)) -> 0 | XEX134: =IF(ISERROR(VLOOKUP('Testing Report'!$G$8,$AG134:$BD134,13,FALSE)),"",VLOOKUP('Testing Report'!$G$8,$AG134:$BD134,13,FALSE)) ->  | XEY134: =IF(ISERROR(VLOOKUP('Testing Report'!$G$8,$AG134:$BD134,15,FALSE)),"",VLOOKUP('Testing Report'!$G$8,$AG134:$BD134,15,FALSE)) ->  | XEZ134: =IF(COUNTIF($X134:$X$5000,'Testing Report'!$G$8)=0,"",COUNTIF($X134:$X$5000,'Testing Report'!$G$8)) ->  | XFA134: =IF(ISERROR(VLOOKUP('Testing Report'!$G$8,$AG134:$BD134,19,FALSE)),"",VLOOKUP('Testing Report'!$G$8,$AG134:$BD134,19,FALSE)) ->  | XFB134: =IF(ISERROR(VLOOKUP('Testing Report'!$G$8,$X134:$BD134,32,FALSE)),"",VLOOKUP('Testing Report'!$G$8,$X134:$BD134,32,FALSE)) -> 
AP135: =IF($AG135="","",VLOOKUP($AG135,Test_Procedure!$A:$F,2,FALSE)) ->  | BE135: =IF($AG135="",0,VLOOKUP($AG135,Test_Procedure!$A:$F,3,FALSE)) -> 0 | BG135: =IF($AG135="",0,VLOOKUP($AG135,Test_Procedure!$A:$F,4,FALSE)) -> 0 | BI135: =IF($AG135="",0,VLOOKUP($AG135,Test_Procedure!$A:$F,5,FALSE)) -> 0 | BK135: =IF($AG135="",0,VLOOKUP($AG135,Test_Procedure!$A:$F,6,FALSE)) -> 0 | XEX135: =IF(ISERROR(VLOOKUP('Testing Report'!$G$8,$AG135:$BD135,13,FALSE)),"",VLOOKUP('Testing Report'!$G$8,$AG135:$BD135,13,FALSE)) ->  | XEY135: =IF(ISERROR(VLOOKUP('Testing Report'!$G$8,$AG135:$BD135,15,FALSE)),"",VLOOKUP('Testing Report'!$G$8,$AG135:$BD135,15,FALSE)) ->  | XEZ135: =IF(COUNTIF($X135:$X$5000,'Testing Report'!$G$8)=0,"",COUNTIF($X135:$X$5000,'Testing Report'!$G$8)) ->  | XFA135: =IF(ISERROR(VLOOKUP('Testing Report'!$G$8,$AG135:$BD135,19,FALSE)),"",VLOOKUP('Testing Report'!$G$8,$AG135:$BD135,19,FALSE)) ->  | XFB135: =IF(ISERROR(VLOOKUP('Testing Report'!$G$8,$X135:$BD135,32,FALSE)),"",VLOOKUP('Testing Report'!$G$8,$X135:$BD135,32,FALSE)) -> 
AP136: =IF($AG136="","",VLOOKUP($AG136,Test_Procedure!$A:$F,2,FALSE)) ->  | BE136: =IF($AG136="",0,VLOOKUP($AG136,Test_Procedure!$A:$F,3,FALSE)) -> 0 | BG136: =IF($AG136="",0,VLOOKUP($AG136,Test_Procedure!$A:$F,4,FALSE)) -> 0 | BI136: =IF($AG136="",0,VLOOKUP($AG136,Test_Procedure!$A:$F,5,FALSE)) -> 0 | BK136: =IF($AG136="",0,VLOOKUP($AG136,Test_Procedure!$A:$F,6,FALSE)) -> 0 | XEX136: =IF(ISERROR(VLOOKUP('Testing Report'!$G$8,$AG136:$BD136,13,FALSE)),"",VLOOKUP('Testing Report'!$G$8,$AG136:$BD136,13,FALSE)) ->  | XEY136: =IF(ISERROR(VLOOKUP('Testing Report'!$G$8,$AG136:$BD136,15,FALSE)),"",VLOOKUP('Testing Report'!$G$8,$AG136:$BD136,15,FALSE)) ->  | XEZ136: =IF(COUNTIF($X136:$X$5000,'Testing Report'!$G$8)=0,"",COUNTIF($X136:$X$5000,'Testing Report'!$G$8)) ->  | XFA136: =IF(ISERROR(VLOOKUP('Testing Report'!$G$8,$AG136:$BD136,19,FALSE)),"",VLOOKUP('Testing Report'!$G$8,$AG136:$BD136,19,FALSE)) ->  | XFB136: =IF(ISERROR(VLOOKUP('Testing Report'!$G$8,$X136:$BD136,32,FALSE)),"",VLOOKUP('Testing Report'!$G$8,$X136:$BD136,32,FALSE)) -> 
AP137: =IF($AG137="","",VLOOKUP($AG137,Test_Procedure!$A:$F,2,FALSE)) ->  | BE137: =IF($AG137="",0,VLOOKUP($AG137,Test_Procedure!$A:$F,3,FALSE)) -> 0 | BG137: =IF($AG137="",0,VLOOKUP($AG137,Test_Procedure!$A:$F,4,FALSE)) -> 0 | BI137: =IF($AG137="",0,VLOOKUP($AG137,Test_Procedure!$A:$F,5,FALSE)) -> 0 | BK137: =IF($AG137="",0,VLOOKUP($AG137,Test_Procedure!$A:$F,6,FALSE)) -> 0 | XEX137: =IF(ISERROR(VLOOKUP('Testing Report'!$G$8,$AG137:$BD137,13,FALSE)),"",VLOOKUP('Testing Report'!$G$8,$AG137:$BD137,13,FALSE)) ->  | XEY137: =IF(ISERROR(VLOOKUP('Testing Report'!$G$8,$AG137:$BD137,15,FALSE)),"",VLOOKUP('Testing Report'!$G$8,$AG137:$BD137,15,FALSE)) ->  | XEZ137: =IF(COUNTIF($X137:$X$5000,'Testing Report'!$G$8)=0,"",COUNTIF($X137:$X$5000,'Testing Report'!$G$8)) ->  | XFA137: =IF(ISERROR(VLOOKUP('Testing Report'!$G$8,$AG137:$BD137,19,FALSE)),"",VLOOKUP('Testing Report'!$G$8,$AG137:$BD137,19,FALSE)) ->  | XFB137: =IF(ISERROR(VLOOKUP('Testing Report'!$G$8,$X137:$BD137,32,FALSE)),"",VLOOKUP('Testing Report'!$G$8,$X137:$BD137,32,FALSE)) -> 
AP138: =IF($AG138="","",VLOOKUP($AG138,Test_Procedure!$A:$F,2,FALSE)) ->  | BE138: =IF($AG138="",0,VLOOKUP($AG138,Test_Procedure!$A:$F,3,FALSE)) -> 0 | BG138: =IF($AG138="",0,VLOOKUP($AG138,Test_Procedure!$A:$F,4,FALSE)) -> 0 | BI138: =IF($AG138="",0,VLOOKUP($AG138,Test_Procedure!$A:$F,5,FALSE)) -> 0 | BK138: =IF($AG138="",0,VLOOKUP($AG138,Test_Procedure!$A:$F,6,FALSE)) -> 0 | XEX138: =IF(ISERROR(VLOOKUP('Testing Report'!$G$8,$AG138:$BD138,13,FALSE)),"",VLOOKUP('Testing Report'!$G$8,$AG138:$BD138,13,FALSE)) ->  | XEY138: =IF(ISERROR(VLOOKUP('Testing Report'!$G$8,$AG138:$BD138,15,FALSE)),"",VLOOKUP('Testing Report'!$G$8,$AG138:$BD138,15,FALSE)) ->  | XEZ138: =IF(COUNTIF($X138:$X$5000,'Testing Report'!$G$8)=0,"",COUNTIF($X138:$X$5000,'Testing Report'!$G$8)) ->  | XFA138: =IF(ISERROR(VLOOKUP('Testing Report'!$G$8,$AG138:$BD138,19,FALSE)),"",VLOOKUP('Testing Report'!$G$8,$AG138:$BD138,19,FALSE)) ->  | XFB138: =IF(ISERROR(VLOOKUP('Testing Report'!$G$8,$X138:$BD138,32,FALSE)),"",VLOOKUP('Testing Report'!$G$8,$X138:$BD138,32,FALSE)) -> 
AP139: =IF($AG139="","",VLOOKUP($AG139,Test_Procedure!$A:$F,2,FALSE)) ->  | BE139: =IF($AG139="",0,VLOOKUP($AG139,Test_Procedure!$A:$F,3,FALSE)) -> 0 | BG139: =IF($AG139="",0,VLOOKUP($AG139,Test_Procedure!$A:$F,4,FALSE)) -> 0 | BI139: =IF($AG139="",0,VLOOKUP($AG139,Test_Procedure!$A:$F,5,FALSE)) -> 0 | BK139: =IF($AG139="",0,VLOOKUP($AG139,Test_Procedure!$A:$F,6,FALSE)) -> 0 | XEX139: =IF(ISERROR(VLOOKUP('Testing Report'!$G$8,$AG139:$BD139,13,FALSE)),"",VLOOKUP('Testing Report'!$G$8,$AG139:$BD139,13,FALSE)) ->  | XEY139: =IF(ISERROR(VLOOKUP('Testing Report'!$G$8,$AG139:$BD139,15,FALSE)),"",VLOOKUP('Testing Report'!$G$8,$AG139:$BD139,15,FALSE)) ->  | XEZ139: =IF(COUNTIF($X139:$X$5000,'Testing Report'!$G$8)=0,"",COUNTIF($X139:$X$5000,'Testing Report'!$G$8)) ->  | XFA139: =IF(ISERROR(VLOOKUP('Testing Report'!$G$8,$AG139:$BD139,19,FALSE)),"",VLOOKUP('Testing Report'!$G$8,$AG139:$BD139,19,FALSE)) ->  | XFB139: =IF(ISERROR(VLOOKUP('Testing Report'!$G$8,$X139:$BD139,32,FALSE)),"",VLOOKUP('Testing Report'!$G$8,$X139:$BD139,32,FALSE)) -> 
AP140: =IF($AG140="","",VLOOKUP($AG140,Test_Procedure!$A:$F,2,FALSE)) ->  | BE140: =IF($AG140="",0,VLOOKUP($AG140,Test_Procedure!$A:$F,3,FALSE)) -> 0 | BG140: =IF($AG140="",0,VLOOKUP($AG140,Test_Procedure!$A:$F,4,FALSE)) -> 0 | BI140: =IF($AG140="",0,VLOOKUP($AG140,Test_Procedure!$A:$F,5,FALSE)) -> 0 | BK140: =IF($AG140="",0,VLOOKUP($AG140,Test_Procedure!$A:$F,6,FALSE)) -> 0 | XEX140: =IF(ISERROR(VLOOKUP('Testing Report'!$G$8,$AG140:$BD140,13,FALSE)),"",VLOOKUP('Testing Report'!$G$8,$AG140:$BD140,13,FALSE)) ->  | XEY140: =IF(ISERROR(VLOOKUP('Testing Report'!$G$8,$AG140:$BD140,15,FALSE)),"",VLOOKUP('Testing Report'!$G$8,$AG140:$BD140,15,FALSE)) ->  | XEZ140: =IF(COUNTIF($X140:$X$5000,'Testing Report'!$G$8)=0,"",COUNTIF($X140:$X$5000,'Testing Report'!$G$8)) ->  | XFA140: =IF(ISERROR(VLOOKUP('Testing Report'!$G$8,$AG140:$BD140,19,FALSE)),"",VLOOKUP('Testing Report'!$G$8,$AG140:$BD140,19,FALSE)) ->  | XFB140: =IF(ISERROR(VLOOKUP('Testing Report'!$G$8,$X140:$BD140,32,FALSE)),"",VLOOKUP('Testing Report'!$G$8,$X140:$BD140,32,FALSE)) -> 
AP141: =IF($AG141="","",VLOOKUP($AG141,Test_Procedure!$A:$F,2,FALSE)) ->  | BE141: =IF($AG141="",0,VLOOKUP($AG141,Test_Procedure!$A:$F,3,FALSE)) -> 0 | BG141: =IF($AG141="",0,VLOOKUP($AG141,Test_Procedure!$A:$F,4,FALSE)) -> 0 | BI141: =IF($AG141="",0,VLOOKUP($AG141,Test_Procedure!$A:$F,5,FALSE)) -> 0 | BK141: =IF($AG141="",0,VLOOKUP($AG141,Test_Procedure!$A:$F,6,FALSE)) -> 0 | XEX141: =IF(ISERROR(VLOOKUP('Testing Report'!$G$8,$AG141:$BD141,13,FALSE)),"",VLOOKUP('Testing Report'!$G$8,$AG141:$BD141,13,FALSE)) ->  | XEY141: =IF(ISERROR(VLOOKUP('Testing Report'!$G$8,$AG141:$BD141,15,FALSE)),"",VLOOKUP('Testing Report'!$G$8,$AG141:$BD141,15,FALSE)) ->  | XEZ141: =IF(COUNTIF($X141:$X$5000,'Testing Report'!$G$8)=0,"",COUNTIF($X141:$X$5000,'Testing Report'!$G$8)) ->  | XFA141: =IF(ISERROR(VLOOKUP('Testing Report'!$G$8,$AG141:$BD141,19,FALSE)),"",VLOOKUP('Testing Report'!$G$8,$AG141:$BD141,19,FALSE)) ->  | XFB141: =IF(ISERROR(VLOOKUP('Testing Report'!$G$8,$X141:$BD141,32,FALSE)),"",VLOOKUP('Testing Report'!$G$8,$X141:$BD141,32,FALSE)) -> 
AP142: =IF($AG142="","",VLOOKUP($AG142,Test_Procedure!$A:$F,2,FALSE)) ->  | BE142: =IF($AG142="",0,VLOOKUP($AG142,Test_Procedure!$A:$F,3,FALSE)) -> 0 | BG142: =IF($AG142="",0,VLOOKUP($AG142,Test_Procedure!$A:$F,4,FALSE)) -> 0 | BI142: =IF($AG142="",0,VLOOKUP($AG142,Test_Procedure!$A:$F,5,FALSE)) -> 0 | BK142: =IF($AG142="",0,VLOOKUP($AG142,Test_Procedure!$A:$F,6,FALSE)) -> 0 | XEX142: =IF(ISERROR(VLOOKUP('Testing Report'!$G$8,$AG142:$BD142,13,FALSE)),"",VLOOKUP('Testing Report'!$G$8,$AG142:$BD142,13,FALSE)) ->  | XEY142: =IF(ISERROR(VLOOKUP('Testing Report'!$G$8,$AG142:$BD142,15,FALSE)),"",VLOOKUP('Testing Report'!$G$8,$AG142:$BD142,15,FALSE)) ->  | XEZ142: =IF(COUNTIF($X142:$X$5000,'Testing Report'!$G$8)=0,"",COUNTIF($X142:$X$5000,'Testing Report'!$G$8)) ->  | XFA142: =IF(ISERROR(VLOOKUP('Testing Report'!$G$8,$AG142:$BD142,19,FALSE)),"",VLOOKUP('Testing Report'!$G$8,$AG142:$BD142,19,FALSE)) ->  | XFB142: =IF(ISERROR(VLOOKUP('Testing Report'!$G$8,$X142:$BD142,32,FALSE)),"",VLOOKUP('Testing Report'!$G$8,$X142:$BD142,32,FALSE)) -> 
AP143: =IF($AG143="","",VLOOKUP($AG143,Test_Procedure!$A:$F,2,FALSE)) ->  | BE143: =IF($AG143="",0,VLOOKUP($AG143,Test_Procedure!$A:$F,3,FALSE)) -> 0 | BG143: =IF($AG143="",0,VLOOKUP($AG143,Test_Procedure!$A:$F,4,FALSE)) -> 0 | BI143: =IF($AG143="",0,VLOOKUP($AG143,Test_Procedure!$A:$F,5,FALSE)) -> 0 | BK143: =IF($AG143="",0,VLOOKUP($AG143,Test_Procedure!$A:$F,6,FALSE)) -> 0 | XEX143: =IF(ISERROR(VLOOKUP('Testing Report'!$G$8,$AG143:$BD143,13,FALSE)),"",VLOOKUP('Testing Report'!$G$8,$AG143:$BD143,13,FALSE)) ->  | XEY143: =IF(ISERROR(VLOOKUP('Testing Report'!$G$8,$AG143:$BD143,15,FALSE)),"",VLOOKUP('Testing Report'!$G$8,$AG143:$BD143,15,FALSE)) ->  | XEZ143: =IF(COUNTIF($X143:$X$5000,'Testing Report'!$G$8)=0,"",COUNTIF($X143:$X$5000,'Testing Report'!$G$8)) ->  | XFA143: =IF(ISERROR(VLOOKUP('Testing Report'!$G$8,$AG143:$BD143,19,FALSE)),"",VLOOKUP('Testing Report'!$G$8,$AG143:$BD143,19,FALSE)) ->  | XFB143: =IF(ISERROR(VLOOKUP('Testing Report'!$G$8,$X143:$BD143,32,FALSE)),"",VLOOKUP('Testing Report'!$G$8,$X143:$BD143,32,FALSE)) -> 
AP144: =IF($AG144="","",VLOOKUP($AG144,Test_Procedure!$A:$F,2,FALSE)) ->  | BE144: =IF($AG144="",0,VLOOKUP($AG144,Test_Procedure!$A:$F,3,FALSE)) -> 0 | BG144: =IF($AG144="",0,VLOOKUP($AG144,Test_Procedure!$A:$F,4,FALSE)) -> 0 | BI144: =IF($AG144="",0,VLOOKUP($AG144,Test_Procedure!$A:$F,5,FALSE)) -> 0 | BK144: =IF($AG144="",0,VLOOKUP($AG144,Test_Procedure!$A:$F,6,FALSE)) -> 0 | XEX144: =IF(ISERROR(VLOOKUP('Testing Report'!$G$8,$AG144:$BD144,13,FALSE)),"",VLOOKUP('Testing Report'!$G$8,$AG144:$BD144,13,FALSE)) ->  | XEY144: =IF(ISERROR(VLOOKUP('Testing Report'!$G$8,$AG144:$BD144,15,FALSE)),"",VLOOKUP('Testing Report'!$G$8,$AG144:$BD144,15,FALSE)) ->  | XEZ144: =IF(COUNTIF($X144:$X$5000,'Testing Report'!$G$8)=0,"",COUNTIF($X144:$X$5000,'Testing Report'!$G$8)) ->  | XFA144: =IF(ISERROR(VLOOKUP('Testing Report'!$G$8,$AG144:$BD144,19,FALSE)),"",VLOOKUP('Testing Report'!$G$8,$AG144:$BD144,19,FALSE)) ->  | XFB144: =IF(ISERROR(VLOOKUP('Testing Report'!$G$8,$X144:$BD144,32,FALSE)),"",VLOOKUP('Testing Report'!$G$8,$X144:$BD144,32,FALSE)) -> 
AP145: =IF($AG145="","",VLOOKUP($AG145,Test_Procedure!$A:$F,2,FALSE)) ->  | BE145: =IF($AG145="",0,VLOOKUP($AG145,Test_Procedure!$A:$F,3,FALSE)) -> 0 | BG145: =IF($AG145="",0,VLOOKUP($AG145,Test_Procedure!$A:$F,4,FALSE)) -> 0 | BI145: =IF($AG145="",0,VLOOKUP($AG145,Test_Procedure!$A:$F,5,FALSE)) -> 0 | BK145: =IF($AG145="",0,VLOOKUP($AG145,Test_Procedure!$A:$F,6,FALSE)) -> 0 | XEX145: =IF(ISERROR(VLOOKUP('Testing Report'!$G$8,$AG145:$BD145,13,FALSE)),"",VLOOKUP('Testing Report'!$G$8,$AG145:$BD145,13,FALSE)) ->  | XEY145: =IF(ISERROR(VLOOKUP('Testing Report'!$G$8,$AG145:$BD145,15,FALSE)),"",VLOOKUP('Testing Report'!$G$8,$AG145:$BD145,15,FALSE)) ->  | XEZ145: =IF(COUNTIF($X145:$X$5000,'Testing Report'!$G$8)=0,"",COUNTIF($X145:$X$5000,'Testing Report'!$G$8)) ->  | XFA145: =IF(ISERROR(VLOOKUP('Testing Report'!$G$8,$AG145:$BD145,19,FALSE)),"",VLOOKUP('Testing Report'!$G$8,$AG145:$BD145,19,FALSE)) ->  | XFB145: =IF(ISERROR(VLOOKUP('Testing Report'!$G$8,$X145:$BD145,32,FALSE)),"",VLOOKUP('Testing Report'!$G$8,$X145:$BD145,32,FALSE)) -> 
AP146: =IF($AG146="","",VLOOKUP($AG146,Test_Procedure!$A:$F,2,FALSE)) ->  | BE146: =IF($AG146="",0,VLOOKUP($AG146,Test_Procedure!$A:$F,3,FALSE)) -> 0 | BG146: =IF($AG146="",0,VLOOKUP($AG146,Test_Procedure!$A:$F,4,FALSE)) -> 0 | BI146: =IF($AG146="",0,VLOOKUP($AG146,Test_Procedure!$A:$F,5,FALSE)) -> 0 | BK146: =IF($AG146="",0,VLOOKUP($AG146,Test_Procedure!$A:$F,6,FALSE)) -> 0 | XEX146: =IF(ISERROR(VLOOKUP('Testing Report'!$G$8,$AG146:$BD146,13,FALSE)),"",VLOOKUP('Testing Report'!$G$8,$AG146:$BD146,13,FALSE)) ->  | XEY146: =IF(ISERROR(VLOOKUP('Testing Report'!$G$8,$AG146:$BD146,15,FALSE)),"",VLOOKUP('Testing Report'!$G$8,$AG146:$BD146,15,FALSE)) ->  | XEZ146: =IF(COUNTIF($X146:$X$5000,'Testing Report'!$G$8)=0,"",COUNTIF($X146:$X$5000,'Testing Report'!$G$8)) ->  | XFA146: =IF(ISERROR(VLOOKUP('Testing Report'!$G$8,$AG146:$BD146,19,FALSE)),"",VLOOKUP('Testing Report'!$G$8,$AG146:$BD146,19,FALSE)) ->  | XFB146: =IF(ISERROR(VLOOKUP('Testing Report'!$G$8,$X146:$BD146,32,FALSE)),"",VLOOKUP('Testing Report'!$G$8,$X146:$BD146,32,FALSE)) -> 
AP147: =IF($AG147="","",VLOOKUP($AG147,Test_Procedure!$A:$F,2,FALSE)) ->  | BE147: =IF($AG147="",0,VLOOKUP($AG147,Test_Procedure!$A:$F,3,FALSE)) -> 0 | BG147: =IF($AG147="",0,VLOOKUP($AG147,Test_Procedure!$A:$F,4,FALSE)) -> 0 | BI147: =IF($AG147="",0,VLOOKUP($AG147,Test_Procedure!$A:$F,5,FALSE)) -> 0 | BK147: =IF($AG147="",0,VLOOKUP($AG147,Test_Procedure!$A:$F,6,FALSE)) -> 0 | XEX147: =IF(ISERROR(VLOOKUP('Testing Report'!$G$8,$AG147:$BD147,13,FALSE)),"",VLOOKUP('Testing Report'!$G$8,$AG147:$BD147,13,FALSE)) ->  | XEY147: =IF(ISERROR(VLOOKUP('Testing Report'!$G$8,$AG147:$BD147,15,FALSE)),"",VLOOKUP('Testing Report'!$G$8,$AG147:$BD147,15,FALSE)) ->  | XEZ147: =IF(COUNTIF($X147:$X$5000,'Testing Report'!$G$8)=0,"",COUNTIF($X147:$X$5000,'Testing Report'!$G$8)) ->  | XFA147: =IF(ISERROR(VLOOKUP('Testing Report'!$G$8,$AG147:$BD147,19,FALSE)),"",VLOOKUP('Testing Report'!$G$8,$AG147:$BD147,19,FALSE)) ->  | XFB147: =IF(ISERROR(VLOOKUP('Testing Report'!$G$8,$X147:$BD147,32,FALSE)),"",VLOOKUP('Testing Report'!$G$8,$X147:$BD147,32,FALSE)) -> 
AP148: =IF($AG148="","",VLOOKUP($AG148,Test_Procedure!$A:$F,2,FALSE)) ->  | BE148: =IF($AG148="",0,VLOOKUP($AG148,Test_Procedure!$A:$F,3,FALSE)) -> 0 | BG148: =IF($AG148="",0,VLOOKUP($AG148,Test_Procedure!$A:$F,4,FALSE)) -> 0 | BI148: =IF($AG148="",0,VLOOKUP($AG148,Test_Procedure!$A:$F,5,FALSE)) -> 0 | BK148: =IF($AG148="",0,VLOOKUP($AG148,Test_Procedure!$A:$F,6,FALSE)) -> 0 | XEX148: =IF(ISERROR(VLOOKUP('Testing Report'!$G$8,$AG148:$BD148,13,FALSE)),"",VLOOKUP('Testing Report'!$G$8,$AG148:$BD148,13,FALSE)) ->  | XEY148: =IF(ISERROR(VLOOKUP('Testing Report'!$G$8,$AG148:$BD148,15,FALSE)),"",VLOOKUP('Testing Report'!$G$8,$AG148:$BD148,15,FALSE)) ->  | XEZ148: =IF(COUNTIF($X148:$X$5000,'Testing Report'!$G$8)=0,"",COUNTIF($X148:$X$5000,'Testing Report'!$G$8)) ->  | XFA148: =IF(ISERROR(VLOOKUP('Testing Report'!$G$8,$AG148:$BD148,19,FALSE)),"",VLOOKUP('Testing Report'!$G$8,$AG148:$BD148,19,FALSE)) ->  | XFB148: =IF(ISERROR(VLOOKUP('Testing Report'!$G$8,$X148:$BD148,32,FALSE)),"",VLOOKUP('Testing Report'!$G$8,$X148:$BD148,32,FALSE)) -> 
AP149: =IF($AG149="","",VLOOKUP($AG149,Test_Procedure!$A:$F,2,FALSE)) ->  | BE149: =IF($AG149="",0,VLOOKUP($AG149,Test_Procedure!$A:$F,3,FALSE)) -> 0 | BG149: =IF($AG149="",0,VLOOKUP($AG149,Test_Procedure!$A:$F,4,FALSE)) -> 0 | BI149: =IF($AG149="",0,VLOOKUP($AG149,Test_Procedure!$A:$F,5,FALSE)) -> 0 | BK149: =IF($AG149="",0,VLOOKUP($AG149,Test_Procedure!$A:$F,6,FALSE)) -> 0 | XEX149: =IF(ISERROR(VLOOKUP('Testing Report'!$G$8,$AG149:$BD149,13,FALSE)),"",VLOOKUP('Testing Report'!$G$8,$AG149:$BD149,13,FALSE)) ->  | XEY149: =IF(ISERROR(VLOOKUP('Testing Report'!$G$8,$AG149:$BD149,15,FALSE)),"",VLOOKUP('Testing Report'!$G$8,$AG149:$BD149,15,FALSE)) ->  | XEZ149: =IF(COUNTIF($X149:$X$5000,'Testing Report'!$G$8)=0,"",COUNTIF($X149:$X$5000,'Testing Report'!$G$8)) ->  | XFA149: =IF(ISERROR(VLOOKUP('Testing Report'!$G$8,$AG149:$BD149,19,FALSE)),"",VLOOKUP('Testing Report'!$G$8,$AG149:$BD149,19,FALSE)) ->  | XFB149: =IF(ISERROR(VLOOKUP('Testing Report'!$G$8,$X149:$BD149,32,FALSE)),"",VLOOKUP('Testing Report'!$G$8,$X149:$BD149,32,FALSE)) -> 
A150: =IF(C149="","",A149+1) ->  | AP150: =IF($AG150="","",VLOOKUP($AG150,Test_Procedure!$A:$F,2,FALSE)) ->  | BC150: =IF(AS150="","",AVERAGE(AS150:BB150)) ->  | BE150: =IF($AG150="",0,VLOOKUP($AG150,Test_Procedure!$A:$F,3,FALSE)) -> 0 | BG150: =IF($AG150="",0,VLOOKUP($AG150,Test_Procedure!$A:$F,4,FALSE)) -> 0 | BI150: =IF($AG150="",0,VLOOKUP($AG150,Test_Procedure!$A:$F,5,FALSE)) -> 0 | BK150: =IF($AG150="",0,VLOOKUP($AG150,Test_Procedure!$A:$F,6,FALSE)) -> 0 | XEX150: =IF(ISERROR(VLOOKUP('Testing Report'!$G$8,$AG150:$BD150,13,FALSE)),"",VLOOKUP('Testing Report'!$G$8,$AG150:$BD150,13,FALSE)) ->  | XEY150: =IF(ISERROR(VLOOKUP('Testing Report'!$G$8,$AG150:$BD150,15,FALSE)),"",VLOOKUP('Testing Report'!$G$8,$AG150:$BD150,15,FALSE)) ->  | XEZ150: =IF(COUNTIF($X150:$X$5000,'Testing Report'!$G$8)=0,"",COUNTIF($X150:$X$5000,'Testing Report'!$G$8)) ->  | XFA150: =IF(ISERROR(VLOOKUP('Testing Report'!$G$8,$AG150:$BD150,19,FALSE)),"",VLOOKUP('Testing Report'!$G$8,$AG150:$BD150,19,FALSE)) ->  | XFB150: =IF(ISERROR(VLOOKUP('Testing Report'!$G$8,$X150:$BD150,32,FALSE)),"",VLOOKUP('Testing Report'!$G$8,$X150:$BD150,32,FALSE)) -> 
AP151: =IF($AG151="","",VLOOKUP($AG151,Test_Procedure!$A:$F,2,FALSE)) ->  | BE151: =IF($AG151="",0,VLOOKUP($AG151,Test_Procedure!$A:$F,3,FALSE)) -> 0 | BG151: =IF($AG151="",0,VLOOKUP($AG151,Test_Procedure!$A:$F,4,FALSE)) -> 0 | BI151: =IF($AG151="",0,VLOOKUP($AG151,Test_Procedure!$A:$F,5,FALSE)) -> 0 | BK151: =IF($AG151="",0,VLOOKUP($AG151,Test_Procedure!$A:$F,6,FALSE)) -> 0 | XEX151: =IF(ISERROR(VLOOKUP('Testing Report'!$G$8,$AG151:$BD151,13,FALSE)),"",VLOOKUP('Testing Report'!$G$8,$AG151:$BD151,13,FALSE)) ->  | XEY151: =IF(ISERROR(VLOOKUP('Testing Report'!$G$8,$AG151:$BD151,15,FALSE)),"",VLOOKUP('Testing Report'!$G$8,$AG151:$BD151,15,FALSE)) ->  | XEZ151: =IF(COUNTIF($X151:$X$5000,'Testing Report'!$G$8)=0,"",COUNTIF($X151:$X$5000,'Testing Report'!$G$8)) ->  | XFA151: =IF(ISERROR(VLOOKUP('Testing Report'!$G$8,$AG151:$BD151,19,FALSE)),"",VLOOKUP('Testing Report'!$G$8,$AG151:$BD151,19,FALSE)) ->  | XFB151: =IF(ISERROR(VLOOKUP('Testing Report'!$G$8,$X151:$BD151,32,FALSE)),"",VLOOKUP('Testing Report'!$G$8,$X151:$BD151,32,FALSE)) -> 
AP152: =IF($AG152="","",VLOOKUP($AG152,Test_Procedure!$A:$F,2,FALSE)) ->  | BE152: =IF($AG152="",0,VLOOKUP($AG152,Test_Procedure!$A:$F,3,FALSE)) -> 0 | BG152: =IF($AG152="",0,VLOOKUP($AG152,Test_Procedure!$A:$F,4,FALSE)) -> 0 | BI152: =IF($AG152="",0,VLOOKUP($AG152,Test_Procedure!$A:$F,5,FALSE)) -> 0 | BK152: =IF($AG152="",0,VLOOKUP($AG152,Test_Procedure!$A:$F,6,FALSE)) -> 0 | XEX152: =IF(ISERROR(VLOOKUP('Testing Report'!$G$8,$AG152:$BD152,13,FALSE)),"",VLOOKUP('Testing Report'!$G$8,$AG152:$BD152,13,FALSE)) ->  | XEY152: =IF(ISERROR(VLOOKUP('Testing Report'!$G$8,$AG152:$BD152,15,FALSE)),"",VLOOKUP('Testing Report'!$G$8,$AG152:$BD152,15,FALSE)) ->  | XEZ152: =IF(COUNTIF($X152:$X$5000,'Testing Report'!$G$8)=0,"",COUNTIF($X152:$X$5000,'Testing Report'!$G$8)) ->  | XFA152: =IF(ISERROR(VLOOKUP('Testing Report'!$G$8,$AG152:$BD152,19,FALSE)),"",VLOOKUP('Testing Report'!$G$8,$AG152:$BD152,19,FALSE)) ->  | XFB152: =IF(ISERROR(VLOOKUP('Testing Report'!$G$8,$X152:$BD152,32,FALSE)),"",VLOOKUP('Testing Report'!$G$8,$X152:$BD152,32,FALSE)) -> 
AP153: =IF($AG153="","",VLOOKUP($AG153,Test_Procedure!$A:$F,2,FALSE)) ->  | BE153: =IF($AG153="",0,VLOOKUP($AG153,Test_Procedure!$A:$F,3,FALSE)) -> 0 | BG153: =IF($AG153="",0,VLOOKUP($AG153,Test_Procedure!$A:$F,4,FALSE)) -> 0 | BI153: =IF($AG153="",0,VLOOKUP($AG153,Test_Procedure!$A:$F,5,FALSE)) -> 0 | BK153: =IF($AG153="",0,VLOOKUP($AG153,Test_Procedure!$A:$F,6,FALSE)) -> 0 | XEX153: =IF(ISERROR(VLOOKUP('Testing Report'!$G$8,$AG153:$BD153,13,FALSE)),"",VLOOKUP('Testing Report'!$G$8,$AG153:$BD153,13,FALSE)) ->  | XEY153: =IF(ISERROR(VLOOKUP('Testing Report'!$G$8,$AG153:$BD153,15,FALSE)),"",VLOOKUP('Testing Report'!$G$8,$AG153:$BD153,15,FALSE)) ->  | XEZ153: =IF(COUNTIF($X153:$X$5000,'Testing Report'!$G$8)=0,"",COUNTIF($X153:$X$5000,'Testing Report'!$G$8)) ->  | XFA153: =IF(ISERROR(VLOOKUP('Testing Report'!$G$8,$AG153:$BD153,19,FALSE)),"",VLOOKUP('Testing Report'!$G$8,$AG153:$BD153,19,FALSE)) ->  | XFB153: =IF(ISERROR(VLOOKUP('Testing Report'!$G$8,$X153:$BD153,32,FALSE)),"",VLOOKUP('Testing Report'!$G$8,$X153:$BD153,32,FALSE)) -> 
AP154: =IF($AG154="","",VLOOKUP($AG154,Test_Procedure!$A:$F,2,FALSE)) ->  | BE154: =IF($AG154="",0,VLOOKUP($AG154,Test_Procedure!$A:$F,3,FALSE)) -> 0 | BG154: =IF($AG154="",0,VLOOKUP($AG154,Test_Procedure!$A:$F,4,FALSE)) -> 0 | BI154: =IF($AG154="",0,VLOOKUP($AG154,Test_Procedure!$A:$F,5,FALSE)) -> 0 | BK154: =IF($AG154="",0,VLOOKUP($AG154,Test_Procedure!$A:$F,6,FALSE)) -> 0 | XEX154: =IF(ISERROR(VLOOKUP('Testing Report'!$G$8,$AG154:$BD154,13,FALSE)),"",VLOOKUP('Testing Report'!$G$8,$AG154:$BD154,13,FALSE)) ->  | XEY154: =IF(ISERROR(VLOOKUP('Testing Report'!$G$8,$AG154:$BD154,15,FALSE)),"",VLOOKUP('Testing Report'!$G$8,$AG154:$BD154,15,FALSE)) ->  | XEZ154: =IF(COUNTIF($X154:$X$5000,'Testing Report'!$G$8)=0,"",COUNTIF($X154:$X$5000,'Testing Report'!$G$8)) ->  | XFA154: =IF(ISERROR(VLOOKUP('Testing Report'!$G$8,$AG154:$BD154,19,FALSE)),"",VLOOKUP('Testing Report'!$G$8,$AG154:$BD154,19,FALSE)) ->  | XFB154: =IF(ISERROR(VLOOKUP('Testing Report'!$G$8,$X154:$BD154,32,FALSE)),"",VLOOKUP('Testing Report'!$G$8,$X154:$BD154,32,FALSE)) -> 
AP155: =IF($AG155="","",VLOOKUP($AG155,Test_Procedure!$A:$F,2,FALSE)) ->  | BE155: =IF($AG155="",0,VLOOKUP($AG155,Test_Procedure!$A:$F,3,FALSE)) -> 0 | BG155: =IF($AG155="",0,VLOOKUP($AG155,Test_Procedure!$A:$F,4,FALSE)) -> 0 | BI155: =IF($AG155="",0,VLOOKUP($AG155,Test_Procedure!$A:$F,5,FALSE)) -> 0 | BK155: =IF($AG155="",0,VLOOKUP($AG155,Test_Procedure!$A:$F,6,FALSE)) -> 0 | XEX155: =IF(ISERROR(VLOOKUP('Testing Report'!$G$8,$AG155:$BD155,13,FALSE)),"",VLOOKUP('Testing Report'!$G$8,$AG155:$BD155,13,FALSE)) ->  | XEY155: =IF(ISERROR(VLOOKUP('Testing Report'!$G$8,$AG155:$BD155,15,FALSE)),"",VLOOKUP('Testing Report'!$G$8,$AG155:$BD155,15,FALSE)) ->  | XEZ155: =IF(COUNTIF($X155:$X$5000,'Testing Report'!$G$8)=0,"",COUNTIF($X155:$X$5000,'Testing Report'!$G$8)) ->  | XFA155: =IF(ISERROR(VLOOKUP('Testing Report'!$G$8,$AG155:$BD155,19,FALSE)),"",VLOOKUP('Testing Report'!$G$8,$AG155:$BD155,19,FALSE)) ->  | XFB155: =IF(ISERROR(VLOOKUP('Testing Report'!$G$8,$X155:$BD155,32,FALSE)),"",VLOOKUP('Testing Report'!$G$8,$X155:$BD155,32,FALSE)) -> 
AP156: =IF($AG156="","",VLOOKUP($AG156,Test_Procedure!$A:$F,2,FALSE)) ->  | BE156: =IF($AG156="",0,VLOOKUP($AG156,Test_Procedure!$A:$F,3,FALSE)) -> 0 | BG156: =IF($AG156="",0,VLOOKUP($AG156,Test_Procedure!$A:$F,4,FALSE)) -> 0 | BI156: =IF($AG156="",0,VLOOKUP($AG156,Test_Procedure!$A:$F,5,FALSE)) -> 0 | BK156: =IF($AG156="",0,VLOOKUP($AG156,Test_Procedure!$A:$F,6,FALSE)) -> 0 | XEX156: =IF(ISERROR(VLOOKUP('Testing Report'!$G$8,$AG156:$BD156,13,FALSE)),"",VLOOKUP('Testing Report'!$G$8,$AG156:$BD156,13,FALSE)) ->  | XEY156: =IF(ISERROR(VLOOKUP('Testing Report'!$G$8,$AG156:$BD156,15,FALSE)),"",VLOOKUP('Testing Report'!$G$8,$AG156:$BD156,15,FALSE)) ->  | XEZ156: =IF(COUNTIF($X156:$X$5000,'Testing Report'!$G$8)=0,"",COUNTIF($X156:$X$5000,'Testing Report'!$G$8)) ->  | XFA156: =IF(ISERROR(VLOOKUP('Testing Report'!$G$8,$AG156:$BD156,19,FALSE)),"",VLOOKUP('Testing Report'!$G$8,$AG156:$BD156,19,FALSE)) ->  | XFB156: =IF(ISERROR(VLOOKUP('Testing Report'!$G$8,$X156:$BD156,32,FALSE)),"",VLOOKUP('Testing Report'!$G$8,$X156:$BD156,32,FALSE)) -> 
AP157: =IF($AG157="","",VLOOKUP($AG157,Test_Procedure!$A:$F,2,FALSE)) ->  | BE157: =IF($AG157="",0,VLOOKUP($AG157,Test_Procedure!$A:$F,3,FALSE)) -> 0 | BG157: =IF($AG157="",0,VLOOKUP($AG157,Test_Procedure!$A:$F,4,FALSE)) -> 0 | BI157: =IF($AG157="",0,VLOOKUP($AG157,Test_Procedure!$A:$F,5,FALSE)) -> 0 | BK157: =IF($AG157="",0,VLOOKUP($AG157,Test_Procedure!$A:$F,6,FALSE)) -> 0 | XEX157: =IF(ISERROR(VLOOKUP('Testing Report'!$G$8,$AG157:$BD157,13,FALSE)),"",VLOOKUP('Testing Report'!$G$8,$AG157:$BD157,13,FALSE)) ->  | XEY157: =IF(ISERROR(VLOOKUP('Testing Report'!$G$8,$AG157:$BD157,15,FALSE)),"",VLOOKUP('Testing Report'!$G$8,$AG157:$BD157,15,FALSE)) ->  | XEZ157: =IF(COUNTIF($X157:$X$5000,'Testing Report'!$G$8)=0,"",COUNTIF($X157:$X$5000,'Testing Report'!$G$8)) ->  | XFA157: =IF(ISERROR(VLOOKUP('Testing Report'!$G$8,$AG157:$BD157,19,FALSE)),"",VLOOKUP('Testing Report'!$G$8,$AG157:$BD157,19,FALSE)) ->  | XFB157: =IF(ISERROR(VLOOKUP('Testing Report'!$G$8,$X157:$BD157,32,FALSE)),"",VLOOKUP('Testing Report'!$G$8,$X157:$BD157,32,FALSE)) -> 
AP158: =IF($AG158="","",VLOOKUP($AG158,Test_Procedure!$A:$F,2,FALSE)) ->  | BE158: =IF($AG158="",0,VLOOKUP($AG158,Test_Procedure!$A:$F,3,FALSE)) -> 0 | BG158: =IF($AG158="",0,VLOOKUP($AG158,Test_Procedure!$A:$F,4,FALSE)) -> 0 | BI158: =IF($AG158="",0,VLOOKUP($AG158,Test_Procedure!$A:$F,5,FALSE)) -> 0 | BK158: =IF($AG158="",0,VLOOKUP($AG158,Test_Procedure!$A:$F,6,FALSE)) -> 0 | XEX158: =IF(ISERROR(VLOOKUP('Testing Report'!$G$8,$AG158:$BD158,13,FALSE)),"",VLOOKUP('Testing Report'!$G$8,$AG158:$BD158,13,FALSE)) ->  | XEY158: =IF(ISERROR(VLOOKUP('Testing Report'!$G$8,$AG158:$BD158,15,FALSE)),"",VLOOKUP('Testing Report'!$G$8,$AG158:$BD158,15,FALSE)) ->  | XEZ158: =IF(COUNTIF($X158:$X$5000,'Testing Report'!$G$8)=0,"",COUNTIF($X158:$X$5000,'Testing Report'!$G$8)) ->  | XFA158: =IF(ISERROR(VLOOKUP('Testing Report'!$G$8,$AG158:$BD158,19,FALSE)),"",VLOOKUP('Testing Report'!$G$8,$AG158:$BD158,19,FALSE)) ->  | XFB158: =IF(ISERROR(VLOOKUP('Testing Report'!$G$8,$X158:$BD158,32,FALSE)),"",VLOOKUP('Testing Report'!$G$8,$X158:$BD158,32,FALSE)) -> 
AP159: =IF($AG159="","",VLOOKUP($AG159,Test_Procedure!$A:$F,2,FALSE)) ->  | BE159: =IF($AG159="",0,VLOOKUP($AG159,Test_Procedure!$A:$F,3,FALSE)) -> 0 | BG159: =IF($AG159="",0,VLOOKUP($AG159,Test_Procedure!$A:$F,4,FALSE)) -> 0 | BI159: =IF($AG159="",0,VLOOKUP($AG159,Test_Procedure!$A:$F,5,FALSE)) -> 0 | BK159: =IF($AG159="",0,VLOOKUP($AG159,Test_Procedure!$A:$F,6,FALSE)) -> 0 | XEX159: =IF(ISERROR(VLOOKUP('Testing Report'!$G$8,$AG159:$BD159,13,FALSE)),"",VLOOKUP('Testing Report'!$G$8,$AG159:$BD159,13,FALSE)) ->  | XEY159: =IF(ISERROR(VLOOKUP('Testing Report'!$G$8,$AG159:$BD159,15,FALSE)),"",VLOOKUP('Testing Report'!$G$8,$AG159:$BD159,15,FALSE)) ->  | XEZ159: =IF(COUNTIF($X159:$X$5000,'Testing Report'!$G$8)=0,"",COUNTIF($X159:$X$5000,'Testing Report'!$G$8)) ->  | XFA159: =IF(ISERROR(VLOOKUP('Testing Report'!$G$8,$AG159:$BD159,19,FALSE)),"",VLOOKUP('Testing Report'!$G$8,$AG159:$BD159,19,FALSE)) ->  | XFB159: =IF(ISERROR(VLOOKUP('Testing Report'!$G$8,$X159:$BD159,32,FALSE)),"",VLOOKUP('Testing Report'!$G$8,$X159:$BD159,32,FALSE)) -> 
AP160: =IF($AG160="","",VLOOKUP($AG160,Test_Procedure!$A:$F,2,FALSE)) ->  | BE160: =IF($AG160="",0,VLOOKUP($AG160,Test_Procedure!$A:$F,3,FALSE)) -> 0 | BG160: =IF($AG160="",0,VLOOKUP($AG160,Test_Procedure!$A:$F,4,FALSE)) -> 0 | BI160: =IF($AG160="",0,VLOOKUP($AG160,Test_Procedure!$A:$F,5,FALSE)) -> 0 | BK160: =IF($AG160="",0,VLOOKUP($AG160,Test_Procedure!$A:$F,6,FALSE)) -> 0 | XEX160: =IF(ISERROR(VLOOKUP('Testing Report'!$G$8,$AG160:$BD160,13,FALSE)),"",VLOOKUP('Testing Report'!$G$8,$AG160:$BD160,13,FALSE)) ->  | XEY160: =IF(ISERROR(VLOOKUP('Testing Report'!$G$8,$AG160:$BD160,15,FALSE)),"",VLOOKUP('Testing Report'!$G$8,$AG160:$BD160,15,FALSE)) ->  | XEZ160: =IF(COUNTIF($X160:$X$5000,'Testing Report'!$G$8)=0,"",COUNTIF($X160:$X$5000,'Testing Report'!$G$8)) ->  | XFA160: =IF(ISERROR(VLOOKUP('Testing Report'!$G$8,$AG160:$BD160,19,FALSE)),"",VLOOKUP('Testing Report'!$G$8,$AG160:$BD160,19,FALSE)) ->  | XFB160: =IF(ISERROR(VLOOKUP('Testing Report'!$G$8,$X160:$BD160,32,FALSE)),"",VLOOKUP('Testing Report'!$G$8,$X160:$BD160,32,FALSE)) -> 
AP161: =IF($AG161="","",VLOOKUP($AG161,Test_Procedure!$A:$F,2,FALSE)) ->  | BE161: =IF($AG161="",0,VLOOKUP($AG161,Test_Procedure!$A:$F,3,FALSE)) -> 0 | BG161: =IF($AG161="",0,VLOOKUP($AG161,Test_Procedure!$A:$F,4,FALSE)) -> 0 | BI161: =IF($AG161="",0,VLOOKUP($AG161,Test_Procedure!$A:$F,5,FALSE)) -> 0 | BK161: =IF($AG161="",0,VLOOKUP($AG161,Test_Procedure!$A:$F,6,FALSE)) -> 0 | XEX161: =IF(ISERROR(VLOOKUP('Testing Report'!$G$8,$AG161:$BD161,13,FALSE)),"",VLOOKUP('Testing Report'!$G$8,$AG161:$BD161,13,FALSE)) ->  | XEY161: =IF(ISERROR(VLOOKUP('Testing Report'!$G$8,$AG161:$BD161,15,FALSE)),"",VLOOKUP('Testing Report'!$G$8,$AG161:$BD161,15,FALSE)) ->  | XEZ161: =IF(COUNTIF($X161:$X$5000,'Testing Report'!$G$8)=0,"",COUNTIF($X161:$X$5000,'Testing Report'!$G$8)) ->  | XFA161: =IF(ISERROR(VLOOKUP('Testing Report'!$G$8,$AG161:$BD161,19,FALSE)),"",VLOOKUP('Testing Report'!$G$8,$AG161:$BD161,19,FALSE)) ->  | XFB161: =IF(ISERROR(VLOOKUP('Testing Report'!$G$8,$X161:$BD161,32,FALSE)),"",VLOOKUP('Testing Report'!$G$8,$X161:$BD161,32,FALSE)) -> 
AP162: =IF($AG162="","",VLOOKUP($AG162,Test_Procedure!$A:$F,2,FALSE)) ->  | BE162: =IF($AG162="",0,VLOOKUP($AG162,Test_Procedure!$A:$F,3,FALSE)) -> 0 | BG162: =IF($AG162="",0,VLOOKUP($AG162,Test_Procedure!$A:$F,4,FALSE)) -> 0 | BI162: =IF($AG162="",0,VLOOKUP($AG162,Test_Procedure!$A:$F,5,FALSE)) -> 0 | BK162: =IF($AG162="",0,VLOOKUP($AG162,Test_Procedure!$A:$F,6,FALSE)) -> 0 | XEX162: =IF(ISERROR(VLOOKUP('Testing Report'!$G$8,$AG162:$BD162,13,FALSE)),"",VLOOKUP('Testing Report'!$G$8,$AG162:$BD162,13,FALSE)) ->  | XEY162: =IF(ISERROR(VLOOKUP('Testing Report'!$G$8,$AG162:$BD162,15,FALSE)),"",VLOOKUP('Testing Report'!$G$8,$AG162:$BD162,15,FALSE)) ->  | XEZ162: =IF(COUNTIF($X162:$X$5000,'Testing Report'!$G$8)=0,"",COUNTIF($X162:$X$5000,'Testing Report'!$G$8)) ->  | XFA162: =IF(ISERROR(VLOOKUP('Testing Report'!$G$8,$AG162:$BD162,19,FALSE)),"",VLOOKUP('Testing Report'!$G$8,$AG162:$BD162,19,FALSE)) ->  | XFB162: =IF(ISERROR(VLOOKUP('Testing Report'!$G$8,$X162:$BD162,32,FALSE)),"",VLOOKUP('Testing Report'!$G$8,$X162:$BD162,32,FALSE)) -> 
AP163: =IF($AG163="","",VLOOKUP($AG163,Test_Procedure!$A:$F,2,FALSE)) ->  | BE163: =IF($AG163="",0,VLOOKUP($AG163,Test_Procedure!$A:$F,3,FALSE)) -> 0 | BG163: =IF($AG163="",0,VLOOKUP($AG163,Test_Procedure!$A:$F,4,FALSE)) -> 0 | BI163: =IF($AG163="",0,VLOOKUP($AG163,Test_Procedure!$A:$F,5,FALSE)) -> 0 | BK163: =IF($AG163="",0,VLOOKUP($AG163,Test_Procedure!$A:$F,6,FALSE)) -> 0 | XEX163: =IF(ISERROR(VLOOKUP('Testing Report'!$G$8,$AG163:$BD163,13,FALSE)),"",VLOOKUP('Testing Report'!$G$8,$AG163:$BD163,13,FALSE)) ->  | XEY163: =IF(ISERROR(VLOOKUP('Testing Report'!$G$8,$AG163:$BD163,15,FALSE)),"",VLOOKUP('Testing Report'!$G$8,$AG163:$BD163,15,FALSE)) ->  | XEZ163: =IF(COUNTIF($X163:$X$5000,'Testing Report'!$G$8)=0,"",COUNTIF($X163:$X$5000,'Testing Report'!$G$8)) ->  | XFA163: =IF(ISERROR(VLOOKUP('Testing Report'!$G$8,$AG163:$BD163,19,FALSE)),"",VLOOKUP('Testing Report'!$G$8,$AG163:$BD163,19,FALSE)) ->  | XFB163: =IF(ISERROR(VLOOKUP('Testing Report'!$G$8,$X163:$BD163,32,FALSE)),"",VLOOKUP('Testing Report'!$G$8,$X163:$BD163,32,FALSE)) -> 
AP164: =IF($AG164="","",VLOOKUP($AG164,Test_Procedure!$A:$F,2,FALSE)) ->  | BE164: =IF($AG164="",0,VLOOKUP($AG164,Test_Procedure!$A:$F,3,FALSE)) -> 0 | BG164: =IF($AG164="",0,VLOOKUP($AG164,Test_Procedure!$A:$F,4,FALSE)) -> 0 | BI164: =IF($AG164="",0,VLOOKUP($AG164,Test_Procedure!$A:$F,5,FALSE)) -> 0 | BK164: =IF($AG164="",0,VLOOKUP($AG164,Test_Procedure!$A:$F,6,FALSE)) -> 0 | XEX164: =IF(ISERROR(VLOOKUP('Testing Report'!$G$8,$AG164:$BD164,13,FALSE)),"",VLOOKUP('Testing Report'!$G$8,$AG164:$BD164,13,FALSE)) ->  | XEY164: =IF(ISERROR(VLOOKUP('Testing Report'!$G$8,$AG164:$BD164,15,FALSE)),"",VLOOKUP('Testing Report'!$G$8,$AG164:$BD164,15,FALSE)) ->  | XEZ164: =IF(COUNTIF($X164:$X$5000,'Testing Report'!$G$8)=0,"",COUNTIF($X164:$X$5000,'Testing Report'!$G$8)) ->  | XFA164: =IF(ISERROR(VLOOKUP('Testing Report'!$G$8,$AG164:$BD164,19,FALSE)),"",VLOOKUP('Testing Report'!$G$8,$AG164:$BD164,19,FALSE)) ->  | XFB164: =IF(ISERROR(VLOOKUP('Testing Report'!$G$8,$X164:$BD164,32,FALSE)),"",VLOOKUP('Testing Report'!$G$8,$X164:$BD164,32,FALSE)) -> 
AP165: =IF($AG165="","",VLOOKUP($AG165,Test_Procedure!$A:$F,2,FALSE)) ->  | BE165: =IF($AG165="",0,VLOOKUP($AG165,Test_Procedure!$A:$F,3,FALSE)) -> 0 | BG165: =IF($AG165="",0,VLOOKUP($AG165,Test_Procedure!$A:$F,4,FALSE)) -> 0 | BI165: =IF($AG165="",0,VLOOKUP($AG165,Test_Procedure!$A:$F,5,FALSE)) -> 0 | BK165: =IF($AG165="",0,VLOOKUP($AG165,Test_Procedure!$A:$F,6,FALSE)) -> 0 | XEX165: =IF(ISERROR(VLOOKUP('Testing Report'!$G$8,$AG165:$BD165,13,FALSE)),"",VLOOKUP('Testing Report'!$G$8,$AG165:$BD165,13,FALSE)) ->  | XEY165: =IF(ISERROR(VLOOKUP('Testing Report'!$G$8,$AG165:$BD165,15,FALSE)),"",VLOOKUP('Testing Report'!$G$8,$AG165:$BD165,15,FALSE)) ->  | XEZ165: =IF(COUNTIF($X165:$X$5000,'Testing Report'!$G$8)=0,"",COUNTIF($X165:$X$5000,'Testing Report'!$G$8)) ->  | XFA165: =IF(ISERROR(VLOOKUP('Testing Report'!$G$8,$AG165:$BD165,19,FALSE)),"",VLOOKUP('Testing Report'!$G$8,$AG165:$BD165,19,FALSE)) ->  | XFB165: =IF(ISERROR(VLOOKUP('Testing Report'!$G$8,$X165:$BD165,32,FALSE)),"",VLOOKUP('Testing Report'!$G$8,$X165:$BD165,32,FALSE)) -> 
AP166: =IF($AG166="","",VLOOKUP($AG166,Test_Procedure!$A:$F,2,FALSE)) ->  | BE166: =IF($AG166="",0,VLOOKUP($AG166,Test_Procedure!$A:$F,3,FALSE)) -> 0 | BG166: =IF($AG166="",0,VLOOKUP($AG166,Test_Procedure!$A:$F,4,FALSE)) -> 0 | BI166: =IF($AG166="",0,VLOOKUP($AG166,Test_Procedure!$A:$F,5,FALSE)) -> 0 | BK166: =IF($AG166="",0,VLOOKUP($AG166,Test_Procedure!$A:$F,6,FALSE)) -> 0 | XEX166: =IF(ISERROR(VLOOKUP('Testing Report'!$G$8,$AG166:$BD166,13,FALSE)),"",VLOOKUP('Testing Report'!$G$8,$AG166:$BD166,13,FALSE)) ->  | XEY166: =IF(ISERROR(VLOOKUP('Testing Report'!$G$8,$AG166:$BD166,15,FALSE)),"",VLOOKUP('Testing Report'!$G$8,$AG166:$BD166,15,FALSE)) ->  | XEZ166: =IF(COUNTIF($X166:$X$5000,'Testing Report'!$G$8)=0,"",COUNTIF($X166:$X$5000,'Testing Report'!$G$8)) ->  | XFA166: =IF(ISERROR(VLOOKUP('Testing Report'!$G$8,$AG166:$BD166,19,FALSE)),"",VLOOKUP('Testing Report'!$G$8,$AG166:$BD166,19,FALSE)) ->  | XFB166: =IF(ISERROR(VLOOKUP('Testing Report'!$G$8,$X166:$BD166,32,FALSE)),"",VLOOKUP('Testing Report'!$G$8,$X166:$BD166,32,FALSE)) -> 
AP167: =IF($AG167="","",VLOOKUP($AG167,Test_Procedure!$A:$F,2,FALSE)) ->  | BE167: =IF($AG167="",0,VLOOKUP($AG167,Test_Procedure!$A:$F,3,FALSE)) -> 0 | BG167: =IF($AG167="",0,VLOOKUP($AG167,Test_Procedure!$A:$F,4,FALSE)) -> 0 | BI167: =IF($AG167="",0,VLOOKUP($AG167,Test_Procedure!$A:$F,5,FALSE)) -> 0 | BK167: =IF($AG167="",0,VLOOKUP($AG167,Test_Procedure!$A:$F,6,FALSE)) -> 0 | XEX167: =IF(ISERROR(VLOOKUP('Testing Report'!$G$8,$AG167:$BD167,13,FALSE)),"",VLOOKUP('Testing Report'!$G$8,$AG167:$BD167,13,FALSE)) ->  | XEY167: =IF(ISERROR(VLOOKUP('Testing Report'!$G$8,$AG167:$BD167,15,FALSE)),"",VLOOKUP('Testing Report'!$G$8,$AG167:$BD167,15,FALSE)) ->  | XEZ167: =IF(COUNTIF($X167:$X$5000,'Testing Report'!$G$8)=0,"",COUNTIF($X167:$X$5000,'Testing Report'!$G$8)) ->  | XFA167: =IF(ISERROR(VLOOKUP('Testing Report'!$G$8,$AG167:$BD167,19,FALSE)),"",VLOOKUP('Testing Report'!$G$8,$AG167:$BD167,19,FALSE)) ->  | XFB167: =IF(ISERROR(VLOOKUP('Testing Report'!$G$8,$X167:$BD167,32,FALSE)),"",VLOOKUP('Testing Report'!$G$8,$X167:$BD167,32,FALSE)) -> 
AP168: =IF($AG168="","",VLOOKUP($AG168,Test_Procedure!$A:$F,2,FALSE)) ->  | BE168: =IF($AG168="",0,VLOOKUP($AG168,Test_Procedure!$A:$F,3,FALSE)) -> 0 | BG168: =IF($AG168="",0,VLOOKUP($AG168,Test_Procedure!$A:$F,4,FALSE)) -> 0 | BI168: =IF($AG168="",0,VLOOKUP($AG168,Test_Procedure!$A:$F,5,FALSE)) -> 0 | BK168: =IF($AG168="",0,VLOOKUP($AG168,Test_Procedure!$A:$F,6,FALSE)) -> 0 | XEX168: =IF(ISERROR(VLOOKUP('Testing Report'!$G$8,$AG168:$BD168,13,FALSE)),"",VLOOKUP('Testing Report'!$G$8,$AG168:$BD168,13,FALSE)) ->  | XEY168: =IF(ISERROR(VLOOKUP('Testing Report'!$G$8,$AG168:$BD168,15,FALSE)),"",VLOOKUP('Testing Report'!$G$8,$AG168:$BD168,15,FALSE)) ->  | XEZ168: =IF(COUNTIF($X168:$X$5000,'Testing Report'!$G$8)=0,"",COUNTIF($X168:$X$5000,'Testing Report'!$G$8)) ->  | XFA168: =IF(ISERROR(VLOOKUP('Testing Report'!$G$8,$AG168:$BD168,19,FALSE)),"",VLOOKUP('Testing Report'!$G$8,$AG168:$BD168,19,FALSE)) ->  | XFB168: =IF(ISERROR(VLOOKUP('Testing Report'!$G$8,$X168:$BD168,32,FALSE)),"",VLOOKUP('Testing Report'!$G$8,$X168:$BD168,32,FALSE)) -> 
AP169: =IF($AG169="","",VLOOKUP($AG169,Test_Procedure!$A:$F,2,FALSE)) ->  | BE169: =IF($AG169="",0,VLOOKUP($AG169,Test_Procedure!$A:$F,3,FALSE)) -> 0 | BG169: =IF($AG169="",0,VLOOKUP($AG169,Test_Procedure!$A:$F,4,FALSE)) -> 0 | BI169: =IF($AG169="",0,VLOOKUP($AG169,Test_Procedure!$A:$F,5,FALSE)) -> 0 | BK169: =IF($AG169="",0,VLOOKUP($AG169,Test_Procedure!$A:$F,6,FALSE)) -> 0 | XEX169: =IF(ISERROR(VLOOKUP('Testing Report'!$G$8,$AG169:$BD169,13,FALSE)),"",VLOOKUP('Testing Report'!$G$8,$AG169:$BD169,13,FALSE)) ->  | XEY169: =IF(ISERROR(VLOOKUP('Testing Report'!$G$8,$AG169:$BD169,15,FALSE)),"",VLOOKUP('Testing Report'!$G$8,$AG169:$BD169,15,FALSE)) ->  | XEZ169: =IF(COUNTIF($X169:$X$5000,'Testing Report'!$G$8)=0,"",COUNTIF($X169:$X$5000,'Testing Report'!$G$8)) ->  | XFA169: =IF(ISERROR(VLOOKUP('Testing Report'!$G$8,$AG169:$BD169,19,FALSE)),"",VLOOKUP('Testing Report'!$G$8,$AG169:$BD169,19,FALSE)) ->  | XFB169: =IF(ISERROR(VLOOKUP('Testing Report'!$G$8,$X169:$BD169,32,FALSE)),"",VLOOKUP('Testing Report'!$G$8,$X169:$BD169,32,FALSE)) ->  | XFD169: =X169&BM169 -> 
AP170: =IF($AG170="","",VLOOKUP($AG170,Test_Procedure!$A:$F,2,FALSE)) ->  | BE170: =IF($AG170="",0,VLOOKUP($AG170,Test_Procedure!$A:$F,3,FALSE)) -> 0 | BG170: =IF($AG170="",0,VLOOKUP($AG170,Test_Procedure!$A:$F,4,FALSE)) -> 0 | BI170: =IF($AG170="",0,VLOOKUP($AG170,Test_Procedure!$A:$F,5,FALSE)) -> 0 | BK170: =IF($AG170="",0,VLOOKUP($AG170,Test_Procedure!$A:$F,6,FALSE)) -> 0 | XEX170: =IF(ISERROR(VLOOKUP('Testing Report'!$G$8,$AG170:$BD170,13,FALSE)),"",VLOOKUP('Testing Report'!$G$8,$AG170:$BD170,13,FALSE)) ->  | XEY170: =IF(ISERROR(VLOOKUP('Testing Report'!$G$8,$AG170:$BD170,15,FALSE)),"",VLOOKUP('Testing Report'!$G$8,$AG170:$BD170,15,FALSE)) ->  | XEZ170: =IF(COUNTIF($X170:$X$5000,'Testing Report'!$G$8)=0,"",COUNTIF($X170:$X$5000,'Testing Report'!$G$8)) ->  | XFA170: =IF(ISERROR(VLOOKUP('Testing Report'!$G$8,$AG170:$BD170,19,FALSE)),"",VLOOKUP('Testing Report'!$G$8,$AG170:$BD170,19,FALSE)) ->  | XFB170: =IF(ISERROR(VLOOKUP('Testing Report'!$G$8,$X170:$BD170,32,FALSE)),"",VLOOKUP('Testing Report'!$G$8,$X170:$BD170,32,FALSE)) -> 
AP171: =IF($AG171="","",VLOOKUP($AG171,Test_Procedure!$A:$F,2,FALSE)) ->  | BE171: =IF($AG171="",0,VLOOKUP($AG171,Test_Procedure!$A:$F,3,FALSE)) -> 0 | BG171: =IF($AG171="",0,VLOOKUP($AG171,Test_Procedure!$A:$F,4,FALSE)) -> 0 | BI171: =IF($AG171="",0,VLOOKUP($AG171,Test_Procedure!$A:$F,5,FALSE)) -> 0 | BK171: =IF($AG171="",0,VLOOKUP($AG171,Test_Procedure!$A:$F,6,FALSE)) -> 0 | XEX171: =IF(ISERROR(VLOOKUP('Testing Report'!$G$8,$AG171:$BD171,13,FALSE)),"",VLOOKUP('Testing Report'!$G$8,$AG171:$BD171,13,FALSE)) ->  | XEY171: =IF(ISERROR(VLOOKUP('Testing Report'!$G$8,$AG171:$BD171,15,FALSE)),"",VLOOKUP('Testing Report'!$G$8,$AG171:$BD171,15,FALSE)) ->  | XEZ171: =IF(COUNTIF($X171:$X$5000,'Testing Report'!$G$8)=0,"",COUNTIF($X171:$X$5000,'Testing Report'!$G$8)) ->  | XFA171: =IF(ISERROR(VLOOKUP('Testing Report'!$G$8,$AG171:$BD171,19,FALSE)),"",VLOOKUP('Testing Report'!$G$8,$AG171:$BD171,19,FALSE)) ->  | XFB171: =IF(ISERROR(VLOOKUP('Testing Report'!$G$8,$X171:$BD171,32,FALSE)),"",VLOOKUP('Testing Report'!$G$8,$X171:$BD171,32,FALSE)) -> 
AP172: =IF($AG172="","",VLOOKUP($AG172,Test_Procedure!$A:$F,2,FALSE)) ->  | BE172: =IF($AG172="",0,VLOOKUP($AG172,Test_Procedure!$A:$F,3,FALSE)) -> 0 | BG172: =IF($AG172="",0,VLOOKUP($AG172,Test_Procedure!$A:$F,4,FALSE)) -> 0 | BI172: =IF($AG172="",0,VLOOKUP($AG172,Test_Procedure!$A:$F,5,FALSE)) -> 0 | BK172: =IF($AG172="",0,VLOOKUP($AG172,Test_Procedure!$A:$F,6,FALSE)) -> 0 | XEX172: =IF(ISERROR(VLOOKUP('Testing Report'!$G$8,$AG172:$BD172,13,FALSE)),"",VLOOKUP('Testing Report'!$G$8,$AG172:$BD172,13,FALSE)) ->  | XEY172: =IF(ISERROR(VLOOKUP('Testing Report'!$G$8,$AG172:$BD172,15,FALSE)),"",VLOOKUP('Testing Report'!$G$8,$AG172:$BD172,15,FALSE)) ->  | XEZ172: =IF(COUNTIF($X172:$X$5000,'Testing Report'!$G$8)=0,"",COUNTIF($X172:$X$5000,'Testing Report'!$G$8)) ->  | XFA172: =IF(ISERROR(VLOOKUP('Testing Report'!$G$8,$AG172:$BD172,19,FALSE)),"",VLOOKUP('Testing Report'!$G$8,$AG172:$BD172,19,FALSE)) ->  | XFB172: =IF(ISERROR(VLOOKUP('Testing Report'!$G$8,$X172:$BD172,32,FALSE)),"",VLOOKUP('Testing Report'!$G$8,$X172:$BD172,32,FALSE)) -> 
AP173: =IF($AG173="","",VLOOKUP($AG173,Test_Procedure!$A:$F,2,FALSE)) ->  | BE173: =IF($AG173="",0,VLOOKUP($AG173,Test_Procedure!$A:$F,3,FALSE)) -> 0 | BG173: =IF($AG173="",0,VLOOKUP($AG173,Test_Procedure!$A:$F,4,FALSE)) -> 0 | BI173: =IF($AG173="",0,VLOOKUP($AG173,Test_Procedure!$A:$F,5,FALSE)) -> 0 | BK173: =IF($AG173="",0,VLOOKUP($AG173,Test_Procedure!$A:$F,6,FALSE)) -> 0 | XEX173: =IF(ISERROR(VLOOKUP('Testing Report'!$G$8,$AG173:$BD173,13,FALSE)),"",VLOOKUP('Testing Report'!$G$8,$AG173:$BD173,13,FALSE)) ->  | XEY173: =IF(ISERROR(VLOOKUP('Testing Report'!$G$8,$AG173:$BD173,15,FALSE)),"",VLOOKUP('Testing Report'!$G$8,$AG173:$BD173,15,FALSE)) ->  | XEZ173: =IF(COUNTIF($X173:$X$5000,'Testing Report'!$G$8)=0,"",COUNTIF($X173:$X$5000,'Testing Report'!$G$8)) ->  | XFA173: =IF(ISERROR(VLOOKUP('Testing Report'!$G$8,$AG173:$BD173,19,FALSE)),"",VLOOKUP('Testing Report'!$G$8,$AG173:$BD173,19,FALSE)) ->  | XFB173: =IF(ISERROR(VLOOKUP('Testing Report'!$G$8,$X173:$BD173,32,FALSE)),"",VLOOKUP('Testing Report'!$G$8,$X173:$BD173,32,FALSE)) -> 
AP174: =IF($AG174="","",VLOOKUP($AG174,Test_Procedure!$A:$F,2,FALSE)) ->  | BE174: =IF($AG174="",0,VLOOKUP($AG174,Test_Procedure!$A:$F,3,FALSE)) -> 0 | BG174: =IF($AG174="",0,VLOOKUP($AG174,Test_Procedure!$A:$F,4,FALSE)) -> 0 | BI174: =IF($AG174="",0,VLOOKUP($AG174,Test_Procedure!$A:$F,5,FALSE)) -> 0 | BK174: =IF($AG174="",0,VLOOKUP($AG174,Test_Procedure!$A:$F,6,FALSE)) -> 0 | XEX174: =IF(ISERROR(VLOOKUP('Testing Report'!$G$8,$AG174:$BD174,13,FALSE)),"",VLOOKUP('Testing Report'!$G$8,$AG174:$BD174,13,FALSE)) ->  | XEY174: =IF(ISERROR(VLOOKUP('Testing Report'!$G$8,$AG174:$BD174,15,FALSE)),"",VLOOKUP('Testing Report'!$G$8,$AG174:$BD174,15,FALSE)) ->  | XEZ174: =IF(COUNTIF($X174:$X$5000,'Testing Report'!$G$8)=0,"",COUNTIF($X174:$X$5000,'Testing Report'!$G$8)) ->  | XFA174: =IF(ISERROR(VLOOKUP('Testing Report'!$G$8,$AG174:$BD174,19,FALSE)),"",VLOOKUP('Testing Report'!$G$8,$AG174:$BD174,19,FALSE)) ->  | XFB174: =IF(ISERROR(VLOOKUP('Testing Report'!$G$8,$X174:$BD174,32,FALSE)),"",VLOOKUP('Testing Report'!$G$8,$X174:$BD174,32,FALSE)) -> 
AP175: =IF($AG175="","",VLOOKUP($AG175,Test_Procedure!$A:$F,2,FALSE)) ->  | BE175: =IF($AG175="",0,VLOOKUP($AG175,Test_Procedure!$A:$F,3,FALSE)) -> 0 | BG175: =IF($AG175="",0,VLOOKUP($AG175,Test_Procedure!$A:$F,4,FALSE)) -> 0 | BI175: =IF($AG175="",0,VLOOKUP($AG175,Test_Procedure!$A:$F,5,FALSE)) -> 0 | BK175: =IF($AG175="",0,VLOOKUP($AG175,Test_Procedure!$A:$F,6,FALSE)) -> 0 | XEX175: =IF(ISERROR(VLOOKUP('Testing Report'!$G$8,$AG175:$BD175,13,FALSE)),"",VLOOKUP('Testing Report'!$G$8,$AG175:$BD175,13,FALSE)) ->  | XEY175: =IF(ISERROR(VLOOKUP('Testing Report'!$G$8,$AG175:$BD175,15,FALSE)),"",VLOOKUP('Testing Report'!$G$8,$AG175:$BD175,15,FALSE)) ->  | XEZ175: =IF(COUNTIF($X175:$X$5000,'Testing Report'!$G$8)=0,"",COUNTIF($X175:$X$5000,'Testing Report'!$G$8)) ->  | XFA175: =IF(ISERROR(VLOOKUP('Testing Report'!$G$8,$AG175:$BD175,19,FALSE)),"",VLOOKUP('Testing Report'!$G$8,$AG175:$BD175,19,FALSE)) ->  | XFB175: =IF(ISERROR(VLOOKUP('Testing Report'!$G$8,$X175:$BD175,32,FALSE)),"",VLOOKUP('Testing Report'!$G$8,$X175:$BD175,32,FALSE)) -> 
AP176: =IF($AG176="","",VLOOKUP($AG176,Test_Procedure!$A:$F,2,FALSE)) ->  | BE176: =IF($AG176="",0,VLOOKUP($AG176,Test_Procedure!$A:$F,3,FALSE)) -> 0 | BG176: =IF($AG176="",0,VLOOKUP($AG176,Test_Procedure!$A:$F,4,FALSE)) -> 0 | BI176: =IF($AG176="",0,VLOOKUP($AG176,Test_Procedure!$A:$F,5,FALSE)) -> 0 | BK176: =IF($AG176="",0,VLOOKUP($AG176,Test_Procedure!$A:$F,6,FALSE)) -> 0 | XEX176: =IF(ISERROR(VLOOKUP('Testing Report'!$G$8,$AG176:$BD176,13,FALSE)),"",VLOOKUP('Testing Report'!$G$8,$AG176:$BD176,13,FALSE)) ->  | XEY176: =IF(ISERROR(VLOOKUP('Testing Report'!$G$8,$AG176:$BD176,15,FALSE)),"",VLOOKUP('Testing Report'!$G$8,$AG176:$BD176,15,FALSE)) ->  | XEZ176: =IF(COUNTIF($X176:$X$5000,'Testing Report'!$G$8)=0,"",COUNTIF($X176:$X$5000,'Testing Report'!$G$8)) ->  | XFA176: =IF(ISERROR(VLOOKUP('Testing Report'!$G$8,$AG176:$BD176,19,FALSE)),"",VLOOKUP('Testing Report'!$G$8,$AG176:$BD176,19,FALSE)) ->  | XFB176: =IF(ISERROR(VLOOKUP('Testing Report'!$G$8,$X176:$BD176,32,FALSE)),"",VLOOKUP('Testing Report'!$G$8,$X176:$BD176,32,FALSE)) -> 
AP177: =IF($AG177="","",VLOOKUP($AG177,Test_Procedure!$A:$F,2,FALSE)) ->  | BE177: =IF($AG177="",0,VLOOKUP($AG177,Test_Procedure!$A:$F,3,FALSE)) -> 0 | BG177: =IF($AG177="",0,VLOOKUP($AG177,Test_Procedure!$A:$F,4,FALSE)) -> 0 | BI177: =IF($AG177="",0,VLOOKUP($AG177,Test_Procedure!$A:$F,5,FALSE)) -> 0 | BK177: =IF($AG177="",0,VLOOKUP($AG177,Test_Procedure!$A:$F,6,FALSE)) -> 0 | XEX177: =IF(ISERROR(VLOOKUP('Testing Report'!$G$8,$AG177:$BD177,13,FALSE)),"",VLOOKUP('Testing Report'!$G$8,$AG177:$BD177,13,FALSE)) ->  | XEY177: =IF(ISERROR(VLOOKUP('Testing Report'!$G$8,$AG177:$BD177,15,FALSE)),"",VLOOKUP('Testing Report'!$G$8,$AG177:$BD177,15,FALSE)) ->  | XEZ177: =IF(COUNTIF($X177:$X$5000,'Testing Report'!$G$8)=0,"",COUNTIF($X177:$X$5000,'Testing Report'!$G$8)) ->  | XFA177: =IF(ISERROR(VLOOKUP('Testing Report'!$G$8,$AG177:$BD177,19,FALSE)),"",VLOOKUP('Testing Report'!$G$8,$AG177:$BD177,19,FALSE)) ->  | XFB177: =IF(ISERROR(VLOOKUP('Testing Report'!$G$8,$X177:$BD177,32,FALSE)),"",VLOOKUP('Testing Report'!$G$8,$X177:$BD177,32,FALSE)) -> 
AP178: =IF($AG178="","",VLOOKUP($AG178,Test_Procedure!$A:$F,2,FALSE)) ->  | BE178: =IF($AG178="",0,VLOOKUP($AG178,Test_Procedure!$A:$F,3,FALSE)) -> 0 | BG178: =IF($AG178="",0,VLOOKUP($AG178,Test_Procedure!$A:$F,4,FALSE)) -> 0 | BI178: =IF($AG178="",0,VLOOKUP($AG178,Test_Procedure!$A:$F,5,FALSE)) -> 0 | BK178: =IF($AG178="",0,VLOOKUP($AG178,Test_Procedure!$A:$F,6,FALSE)) -> 0 | XEX178: =IF(ISERROR(VLOOKUP('Testing Report'!$G$8,$AG178:$BD178,13,FALSE)),"",VLOOKUP('Testing Report'!$G$8,$AG178:$BD178,13,FALSE)) ->  | XEY178: =IF(ISERROR(VLOOKUP('Testing Report'!$G$8,$AG178:$BD178,15,FALSE)),"",VLOOKUP('Testing Report'!$G$8,$AG178:$BD178,15,FALSE)) ->  | XEZ178: =IF(COUNTIF($X178:$X$5000,'Testing Report'!$G$8)=0,"",COUNTIF($X178:$X$5000,'Testing Report'!$G$8)) ->  | XFA178: =IF(ISERROR(VLOOKUP('Testing Report'!$G$8,$AG178:$BD178,19,FALSE)),"",VLOOKUP('Testing Report'!$G$8,$AG178:$BD178,19,FALSE)) ->  | XFB178: =IF(ISERROR(VLOOKUP('Testing Report'!$G$8,$X178:$BD178,32,FALSE)),"",VLOOKUP('Testing Report'!$G$8,$X178:$BD178,32,FALSE)) -> 
AP179: =IF($AG179="","",VLOOKUP($AG179,Test_Procedure!$A:$F,2,FALSE)) ->  | BE179: =IF($AG179="",0,VLOOKUP($AG179,Test_Procedure!$A:$F,3,FALSE)) -> 0 | BG179: =IF($AG179="",0,VLOOKUP($AG179,Test_Procedure!$A:$F,4,FALSE)) -> 0 | BI179: =IF($AG179="",0,VLOOKUP($AG179,Test_Procedure!$A:$F,5,FALSE)) -> 0 | BK179: =IF($AG179="",0,VLOOKUP($AG179,Test_Procedure!$A:$F,6,FALSE)) -> 0 | XEX179: =IF(ISERROR(VLOOKUP('Testing Report'!$G$8,$AG179:$BD179,13,FALSE)),"",VLOOKUP('Testing Report'!$G$8,$AG179:$BD179,13,FALSE)) ->  | XEY179: =IF(ISERROR(VLOOKUP('Testing Report'!$G$8,$AG179:$BD179,15,FALSE)),"",VLOOKUP('Testing Report'!$G$8,$AG179:$BD179,15,FALSE)) ->  | XEZ179: =IF(COUNTIF($X179:$X$5000,'Testing Report'!$G$8)=0,"",COUNTIF($X179:$X$5000,'Testing Report'!$G$8)) ->  | XFA179: =IF(ISERROR(VLOOKUP('Testing Report'!$G$8,$AG179:$BD179,19,FALSE)),"",VLOOKUP('Testing Report'!$G$8,$AG179:$BD179,19,FALSE)) ->  | XFB179: =IF(ISERROR(VLOOKUP('Testing Report'!$G$8,$X179:$BD179,32,FALSE)),"",VLOOKUP('Testing Report'!$G$8,$X179:$BD179,32,FALSE)) -> 
AP180: =IF($AG180="","",VLOOKUP($AG180,Test_Procedure!$A:$F,2,FALSE)) ->  | BE180: =IF($AG180="",0,VLOOKUP($AG180,Test_Procedure!$A:$F,3,FALSE)) -> 0 | BG180: =IF($AG180="",0,VLOOKUP($AG180,Test_Procedure!$A:$F,4,FALSE)) -> 0 | BI180: =IF($AG180="",0,VLOOKUP($AG180,Test_Procedure!$A:$F,5,FALSE)) -> 0 | BK180: =IF($AG180="",0,VLOOKUP($AG180,Test_Procedure!$A:$F,6,FALSE)) -> 0 | XEX180: =IF(ISERROR(VLOOKUP('Testing Report'!$G$8,$AG180:$BD180,13,FALSE)),"",VLOOKUP('Testing Report'!$G$8,$AG180:$BD180,13,FALSE)) ->  | XEY180: =IF(ISERROR(VLOOKUP('Testing Report'!$G$8,$AG180:$BD180,15,FALSE)),"",VLOOKUP('Testing Report'!$G$8,$AG180:$BD180,15,FALSE)) ->  | XEZ180: =IF(COUNTIF($X180:$X$5000,'Testing Report'!$G$8)=0,"",COUNTIF($X180:$X$5000,'Testing Report'!$G$8)) ->  | XFA180: =IF(ISERROR(VLOOKUP('Testing Report'!$G$8,$AG180:$BD180,19,FALSE)),"",VLOOKUP('Testing Report'!$G$8,$AG180:$BD180,19,FALSE)) ->  | XFB180: =IF(ISERROR(VLOOKUP('Testing Report'!$G$8,$X180:$BD180,32,FALSE)),"",VLOOKUP('Testing Report'!$G$8,$X180:$BD180,32,FALSE)) -> 
AP181: =IF($AG181="","",VLOOKUP($AG181,Test_Procedure!$A:$F,2,FALSE)) ->  | BE181: =IF($AG181="",0,VLOOKUP($AG181,Test_Procedure!$A:$F,3,FALSE)) -> 0 | BG181: =IF($AG181="",0,VLOOKUP($AG181,Test_Procedure!$A:$F,4,FALSE)) -> 0 | BI181: =IF($AG181="",0,VLOOKUP($AG181,Test_Procedure!$A:$F,5,FALSE)) -> 0 | BK181: =IF($AG181="",0,VLOOKUP($AG181,Test_Procedure!$A:$F,6,FALSE)) -> 0 | XEX181: =IF(ISERROR(VLOOKUP('Testing Report'!$G$8,$AG181:$BD181,13,FALSE)),"",VLOOKUP('Testing Report'!$G$8,$AG181:$BD181,13,FALSE)) ->  | XEY181: =IF(ISERROR(VLOOKUP('Testing Report'!$G$8,$AG181:$BD181,15,FALSE)),"",VLOOKUP('Testing Report'!$G$8,$AG181:$BD181,15,FALSE)) ->  | XEZ181: =IF(COUNTIF($X181:$X$5000,'Testing Report'!$G$8)=0,"",COUNTIF($X181:$X$5000,'Testing Report'!$G$8)) ->  | XFA181: =IF(ISERROR(VLOOKUP('Testing Report'!$G$8,$AG181:$BD181,19,FALSE)),"",VLOOKUP('Testing Report'!$G$8,$AG181:$BD181,19,FALSE)) ->  | XFB181: =IF(ISERROR(VLOOKUP('Testing Report'!$G$8,$X181:$BD181,32,FALSE)),"",VLOOKUP('Testing Report'!$G$8,$X181:$BD181,32,FALSE)) -> 
AP182: =IF($AG182="","",VLOOKUP($AG182,Test_Procedure!$A:$F,2,FALSE)) ->  | BE182: =IF($AG182="",0,VLOOKUP($AG182,Test_Procedure!$A:$F,3,FALSE)) -> 0 | BG182: =IF($AG182="",0,VLOOKUP($AG182,Test_Procedure!$A:$F,4,FALSE)) -> 0 | BI182: =IF($AG182="",0,VLOOKUP($AG182,Test_Procedure!$A:$F,5,FALSE)) -> 0 | BK182: =IF($AG182="",0,VLOOKUP($AG182,Test_Procedure!$A:$F,6,FALSE)) -> 0 | XEX182: =IF(ISERROR(VLOOKUP('Testing Report'!$G$8,$AG182:$BD182,13,FALSE)),"",VLOOKUP('Testing Report'!$G$8,$AG182:$BD182,13,FALSE)) ->  | XEY182: =IF(ISERROR(VLOOKUP('Testing Report'!$G$8,$AG182:$BD182,15,FALSE)),"",VLOOKUP('Testing Report'!$G$8,$AG182:$BD182,15,FALSE)) ->  | XEZ182: =IF(COUNTIF($X182:$X$5000,'Testing Report'!$G$8)=0,"",COUNTIF($X182:$X$5000,'Testing Report'!$G$8)) ->  | XFA182: =IF(ISERROR(VLOOKUP('Testing Report'!$G$8,$AG182:$BD182,19,FALSE)),"",VLOOKUP('Testing Report'!$G$8,$AG182:$BD182,19,FALSE)) ->  | XFB182: =IF(ISERROR(VLOOKUP('Testing Report'!$G$8,$X182:$BD182,32,FALSE)),"",VLOOKUP('Testing Report'!$G$8,$X182:$BD182,32,FALSE)) -> 
AP183: =IF($AG183="","",VLOOKUP($AG183,Test_Procedure!$A:$F,2,FALSE)) ->  | BE183: =IF($AG183="",0,VLOOKUP($AG183,Test_Procedure!$A:$F,3,FALSE)) -> 0 | BG183: =IF($AG183="",0,VLOOKUP($AG183,Test_Procedure!$A:$F,4,FALSE)) -> 0 | BI183: =IF($AG183="",0,VLOOKUP($AG183,Test_Procedure!$A:$F,5,FALSE)) -> 0 | BK183: =IF($AG183="",0,VLOOKUP($AG183,Test_Procedure!$A:$F,6,FALSE)) -> 0 | XEX183: =IF(ISERROR(VLOOKUP('Testing Report'!$G$8,$AG183:$BD183,13,FALSE)),"",VLOOKUP('Testing Report'!$G$8,$AG183:$BD183,13,FALSE)) ->  | XEY183: =IF(ISERROR(VLOOKUP('Testing Report'!$G$8,$AG183:$BD183,15,FALSE)),"",VLOOKUP('Testing Report'!$G$8,$AG183:$BD183,15,FALSE)) ->  | XEZ183: =IF(COUNTIF($X183:$X$5000,'Testing Report'!$G$8)=0,"",COUNTIF($X183:$X$5000,'Testing Report'!$G$8)) ->  | XFA183: =IF(ISERROR(VLOOKUP('Testing Report'!$G$8,$AG183:$BD183,19,FALSE)),"",VLOOKUP('Testing Report'!$G$8,$AG183:$BD183,19,FALSE)) ->  | XFB183: =IF(ISERROR(VLOOKUP('Testing Report'!$G$8,$X183:$BD183,32,FALSE)),"",VLOOKUP('Testing Report'!$G$8,$X183:$BD183,32,FALSE)) -> 
AP184: =IF($AG184="","",VLOOKUP($AG184,Test_Procedure!$A:$F,2,FALSE)) ->  | BE184: =IF($AG184="",0,VLOOKUP($AG184,Test_Procedure!$A:$F,3,FALSE)) -> 0 | BG184: =IF($AG184="",0,VLOOKUP($AG184,Test_Procedure!$A:$F,4,FALSE)) -> 0 | BI184: =IF($AG184="",0,VLOOKUP($AG184,Test_Procedure!$A:$F,5,FALSE)) -> 0 | BK184: =IF($AG184="",0,VLOOKUP($AG184,Test_Procedure!$A:$F,6,FALSE)) -> 0 | XEX184: =IF(ISERROR(VLOOKUP('Testing Report'!$G$8,$AG184:$BD184,13,FALSE)),"",VLOOKUP('Testing Report'!$G$8,$AG184:$BD184,13,FALSE)) ->  | XEY184: =IF(ISERROR(VLOOKUP('Testing Report'!$G$8,$AG184:$BD184,15,FALSE)),"",VLOOKUP('Testing Report'!$G$8,$AG184:$BD184,15,FALSE)) ->  | XEZ184: =IF(COUNTIF($X184:$X$5000,'Testing Report'!$G$8)=0,"",COUNTIF($X184:$X$5000,'Testing Report'!$G$8)) ->  | XFA184: =IF(ISERROR(VLOOKUP('Testing Report'!$G$8,$AG184:$BD184,19,FALSE)),"",VLOOKUP('Testing Report'!$G$8,$AG184:$BD184,19,FALSE)) ->  | XFB184: =IF(ISERROR(VLOOKUP('Testing Report'!$G$8,$X184:$BD184,32,FALSE)),"",VLOOKUP('Testing Report'!$G$8,$X184:$BD184,32,FALSE)) -> 
AP185: =IF($AG185="","",VLOOKUP($AG185,Test_Procedure!$A:$F,2,FALSE)) ->  | BE185: =IF($AG185="",0,VLOOKUP($AG185,Test_Procedure!$A:$F,3,FALSE)) -> 0 | BG185: =IF($AG185="",0,VLOOKUP($AG185,Test_Procedure!$A:$F,4,FALSE)) -> 0 | BI185: =IF($AG185="",0,VLOOKUP($AG185,Test_Procedure!$A:$F,5,FALSE)) -> 0 | BK185: =IF($AG185="",0,VLOOKUP($AG185,Test_Procedure!$A:$F,6,FALSE)) -> 0 | XEX185: =IF(ISERROR(VLOOKUP('Testing Report'!$G$8,$AG185:$BD185,13,FALSE)),"",VLOOKUP('Testing Report'!$G$8,$AG185:$BD185,13,FALSE)) ->  | XEY185: =IF(ISERROR(VLOOKUP('Testing Report'!$G$8,$AG185:$BD185,15,FALSE)),"",VLOOKUP('Testing Report'!$G$8,$AG185:$BD185,15,FALSE)) ->  | XEZ185: =IF(COUNTIF($X185:$X$5000,'Testing Report'!$G$8)=0,"",COUNTIF($X185:$X$5000,'Testing Report'!$G$8)) ->  | XFA185: =IF(ISERROR(VLOOKUP('Testing Report'!$G$8,$AG185:$BD185,19,FALSE)),"",VLOOKUP('Testing Report'!$G$8,$AG185:$BD185,19,FALSE)) ->  | XFB185: =IF(ISERROR(VLOOKUP('Testing Report'!$G$8,$X185:$BD185,32,FALSE)),"",VLOOKUP('Testing Report'!$G$8,$X185:$BD185,32,FALSE)) -> 
AP186: =IF($AG186="","",VLOOKUP($AG186,Test_Procedure!$A:$F,2,FALSE)) ->  | BE186: =IF($AG186="",0,VLOOKUP($AG186,Test_Procedure!$A:$F,3,FALSE)) -> 0 | BG186: =IF($AG186="",0,VLOOKUP($AG186,Test_Procedure!$A:$F,4,FALSE)) -> 0 | BI186: =IF($AG186="",0,VLOOKUP($AG186,Test_Procedure!$A:$F,5,FALSE)) -> 0 | BK186: =IF($AG186="",0,VLOOKUP($AG186,Test_Procedure!$A:$F,6,FALSE)) -> 0 | XEX186: =IF(ISERROR(VLOOKUP('Testing Report'!$G$8,$AG186:$BD186,13,FALSE)),"",VLOOKUP('Testing Report'!$G$8,$AG186:$BD186,13,FALSE)) ->  | XEY186: =IF(ISERROR(VLOOKUP('Testing Report'!$G$8,$AG186:$BD186,15,FALSE)),"",VLOOKUP('Testing Report'!$G$8,$AG186:$BD186,15,FALSE)) ->  | XEZ186: =IF(COUNTIF($X186:$X$5000,'Testing Report'!$G$8)=0,"",COUNTIF($X186:$X$5000,'Testing Report'!$G$8)) ->  | XFA186: =IF(ISERROR(VLOOKUP('Testing Report'!$G$8,$AG186:$BD186,19,FALSE)),"",VLOOKUP('Testing Report'!$G$8,$AG186:$BD186,19,FALSE)) ->  | XFB186: =IF(ISERROR(VLOOKUP('Testing Report'!$G$8,$X186:$BD186,32,FALSE)),"",VLOOKUP('Testing Report'!$G$8,$X186:$BD186,32,FALSE)) -> 
AP187: =IF($AG187="","",VLOOKUP($AG187,Test_Procedure!$A:$F,2,FALSE)) ->  | BE187: =IF($AG187="",0,VLOOKUP($AG187,Test_Procedure!$A:$F,3,FALSE)) -> 0 | BG187: =IF($AG187="",0,VLOOKUP($AG187,Test_Procedure!$A:$F,4,FALSE)) -> 0 | BI187: =IF($AG187="",0,VLOOKUP($AG187,Test_Procedure!$A:$F,5,FALSE)) -> 0 | BK187: =IF($AG187="",0,VLOOKUP($AG187,Test_Procedure!$A:$F,6,FALSE)) -> 0 | XEX187: =IF(ISERROR(VLOOKUP('Testing Report'!$G$8,$AG187:$BD187,13,FALSE)),"",VLOOKUP('Testing Report'!$G$8,$AG187:$BD187,13,FALSE)) ->  | XEY187: =IF(ISERROR(VLOOKUP('Testing Report'!$G$8,$AG187:$BD187,15,FALSE)),"",VLOOKUP('Testing Report'!$G$8,$AG187:$BD187,15,FALSE)) ->  | XEZ187: =IF(COUNTIF($X187:$X$5000,'Testing Report'!$G$8)=0,"",COUNTIF($X187:$X$5000,'Testing Report'!$G$8)) ->  | XFA187: =IF(ISERROR(VLOOKUP('Testing Report'!$G$8,$AG187:$BD187,19,FALSE)),"",VLOOKUP('Testing Report'!$G$8,$AG187:$BD187,19,FALSE)) ->  | XFB187: =IF(ISERROR(VLOOKUP('Testing Report'!$G$8,$X187:$BD187,32,FALSE)),"",VLOOKUP('Testing Report'!$G$8,$X187:$BD187,32,FALSE)) -> 
AP188: =IF($AG188="","",VLOOKUP($AG188,Test_Procedure!$A:$F,2,FALSE)) ->  | BE188: =IF($AG188="",0,VLOOKUP($AG188,Test_Procedure!$A:$F,3,FALSE)) -> 0 | BG188: =IF($AG188="",0,VLOOKUP($AG188,Test_Procedure!$A:$F,4,FALSE)) -> 0 | BI188: =IF($AG188="",0,VLOOKUP($AG188,Test_Procedure!$A:$F,5,FALSE)) -> 0 | BK188: =IF($AG188="",0,VLOOKUP($AG188,Test_Procedure!$A:$F,6,FALSE)) -> 0 | XEX188: =IF(ISERROR(VLOOKUP('Testing Report'!$G$8,$AG188:$BD188,13,FALSE)),"",VLOOKUP('Testing Report'!$G$8,$AG188:$BD188,13,FALSE)) ->  | XEY188: =IF(ISERROR(VLOOKUP('Testing Report'!$G$8,$AG188:$BD188,15,FALSE)),"",VLOOKUP('Testing Report'!$G$8,$AG188:$BD188,15,FALSE)) ->  | XEZ188: =IF(COUNTIF($X188:$X$5000,'Testing Report'!$G$8)=0,"",COUNTIF($X188:$X$5000,'Testing Report'!$G$8)) ->  | XFA188: =IF(ISERROR(VLOOKUP('Testing Report'!$G$8,$AG188:$BD188,19,FALSE)),"",VLOOKUP('Testing Report'!$G$8,$AG188:$BD188,19,FALSE)) ->  | XFB188: =IF(ISERROR(VLOOKUP('Testing Report'!$G$8,$X188:$BD188,32,FALSE)),"",VLOOKUP('Testing Report'!$G$8,$X188:$BD188,32,FALSE)) -> 
AP189: =IF($AG189="","",VLOOKUP($AG189,Test_Procedure!$A:$F,2,FALSE)) ->  | BE189: =IF($AG189="",0,VLOOKUP($AG189,Test_Procedure!$A:$F,3,FALSE)) -> 0 | BG189: =IF($AG189="",0,VLOOKUP($AG189,Test_Procedure!$A:$F,4,FALSE)) -> 0 | BI189: =IF($AG189="",0,VLOOKUP($AG189,Test_Procedure!$A:$F,5,FALSE)) -> 0 | BK189: =IF($AG189="",0,VLOOKUP($AG189,Test_Procedure!$A:$F,6,FALSE)) -> 0 | XEX189: =IF(ISERROR(VLOOKUP('Testing Report'!$G$8,$AG189:$BD189,13,FALSE)),"",VLOOKUP('Testing Report'!$G$8,$AG189:$BD189,13,FALSE)) ->  | XEY189: =IF(ISERROR(VLOOKUP('Testing Report'!$G$8,$AG189:$BD189,15,FALSE)),"",VLOOKUP('Testing Report'!$G$8,$AG189:$BD189,15,FALSE)) ->  | XEZ189: =IF(COUNTIF($X189:$X$5000,'Testing Report'!$G$8)=0,"",COUNTIF($X189:$X$5000,'Testing Report'!$G$8)) ->  | XFA189: =IF(ISERROR(VLOOKUP('Testing Report'!$G$8,$AG189:$BD189,19,FALSE)),"",VLOOKUP('Testing Report'!$G$8,$AG189:$BD189,19,FALSE)) ->  | XFB189: =IF(ISERROR(VLOOKUP('Testing Report'!$G$8,$X189:$BD189,32,FALSE)),"",VLOOKUP('Testing Report'!$G$8,$X189:$BD189,32,FALSE)) -> 
AP190: =IF($AG190="","",VLOOKUP($AG190,Test_Procedure!$A:$F,2,FALSE)) ->  | BE190: =IF($AG190="",0,VLOOKUP($AG190,Test_Procedure!$A:$F,3,FALSE)) -> 0 | BG190: =IF($AG190="",0,VLOOKUP($AG190,Test_Procedure!$A:$F,4,FALSE)) -> 0 | BI190: =IF($AG190="",0,VLOOKUP($AG190,Test_Procedure!$A:$F,5,FALSE)) -> 0 | BK190: =IF($AG190="",0,VLOOKUP($AG190,Test_Procedure!$A:$F,6,FALSE)) -> 0 | XEX190: =IF(ISERROR(VLOOKUP('Testing Report'!$G$8,$AG190:$BD190,13,FALSE)),"",VLOOKUP('Testing Report'!$G$8,$AG190:$BD190,13,FALSE)) ->  | XEY190: =IF(ISERROR(VLOOKUP('Testing Report'!$G$8,$AG190:$BD190,15,FALSE)),"",VLOOKUP('Testing Report'!$G$8,$AG190:$BD190,15,FALSE)) ->  | XEZ190: =IF(COUNTIF($X190:$X$5000,'Testing Report'!$G$8)=0,"",COUNTIF($X190:$X$5000,'Testing Report'!$G$8)) ->  | XFA190: =IF(ISERROR(VLOOKUP('Testing Report'!$G$8,$AG190:$BD190,19,FALSE)),"",VLOOKUP('Testing Report'!$G$8,$AG190:$BD190,19,FALSE)) ->  | XFB190: =IF(ISERROR(VLOOKUP('Testing Report'!$G$8,$X190:$BD190,32,FALSE)),"",VLOOKUP('Testing Report'!$G$8,$X190:$BD190,32,FALSE)) -> 
AP191: =IF($AG191="","",VLOOKUP($AG191,Test_Procedure!$A:$F,2,FALSE)) ->  | BE191: =IF($AG191="",0,VLOOKUP($AG191,Test_Procedure!$A:$F,3,FALSE)) -> 0 | BG191: =IF($AG191="",0,VLOOKUP($AG191,Test_Procedure!$A:$F,4,FALSE)) -> 0 | BI191: =IF($AG191="",0,VLOOKUP($AG191,Test_Procedure!$A:$F,5,FALSE)) -> 0 | BK191: =IF($AG191="",0,VLOOKUP($AG191,Test_Procedure!$A:$F,6,FALSE)) -> 0 | XEX191: =IF(ISERROR(VLOOKUP('Testing Report'!$G$8,$AG191:$BD191,13,FALSE)),"",VLOOKUP('Testing Report'!$G$8,$AG191:$BD191,13,FALSE)) ->  | XEY191: =IF(ISERROR(VLOOKUP('Testing Report'!$G$8,$AG191:$BD191,15,FALSE)),"",VLOOKUP('Testing Report'!$G$8,$AG191:$BD191,15,FALSE)) ->  | XEZ191: =IF(COUNTIF($X191:$X$5000,'Testing Report'!$G$8)=0,"",COUNTIF($X191:$X$5000,'Testing Report'!$G$8)) ->  | XFA191: =IF(ISERROR(VLOOKUP('Testing Report'!$G$8,$AG191:$BD191,19,FALSE)),"",VLOOKUP('Testing Report'!$G$8,$AG191:$BD191,19,FALSE)) ->  | XFB191: =IF(ISERROR(VLOOKUP('Testing Report'!$G$8,$X191:$BD191,32,FALSE)),"",VLOOKUP('Testing Report'!$G$8,$X191:$BD191,32,FALSE)) -> 
AP192: =IF($AG192="","",VLOOKUP($AG192,Test_Procedure!$A:$F,2,FALSE)) ->  | BE192: =IF($AG192="",0,VLOOKUP($AG192,Test_Procedure!$A:$F,3,FALSE)) -> 0 | BG192: =IF($AG192="",0,VLOOKUP($AG192,Test_Procedure!$A:$F,4,FALSE)) -> 0 | BI192: =IF($AG192="",0,VLOOKUP($AG192,Test_Procedure!$A:$F,5,FALSE)) -> 0 | BK192: =IF($AG192="",0,VLOOKUP($AG192,Test_Procedure!$A:$F,6,FALSE)) -> 0 | XEX192: =IF(ISERROR(VLOOKUP('Testing Report'!$G$8,$AG192:$BD192,13,FALSE)),"",VLOOKUP('Testing Report'!$G$8,$AG192:$BD192,13,FALSE)) ->  | XEY192: =IF(ISERROR(VLOOKUP('Testing Report'!$G$8,$AG192:$BD192,15,FALSE)),"",VLOOKUP('Testing Report'!$G$8,$AG192:$BD192,15,FALSE)) ->  | XEZ192: =IF(COUNTIF($X192:$X$5000,'Testing Report'!$G$8)=0,"",COUNTIF($X192:$X$5000,'Testing Report'!$G$8)) ->  | XFA192: =IF(ISERROR(VLOOKUP('Testing Report'!$G$8,$AG192:$BD192,19,FALSE)),"",VLOOKUP('Testing Report'!$G$8,$AG192:$BD192,19,FALSE)) ->  | XFB192: =IF(ISERROR(VLOOKUP('Testing Report'!$G$8,$X192:$BD192,32,FALSE)),"",VLOOKUP('Testing Report'!$G$8,$X192:$BD192,32,FALSE)) -> 
AP193: =IF($AG193="","",VLOOKUP($AG193,Test_Procedure!$A:$F,2,FALSE)) ->  | BE193: =IF($AG193="",0,VLOOKUP($AG193,Test_Procedure!$A:$F,3,FALSE)) -> 0 | BG193: =IF($AG193="",0,VLOOKUP($AG193,Test_Procedure!$A:$F,4,FALSE)) -> 0 | BI193: =IF($AG193="",0,VLOOKUP($AG193,Test_Procedure!$A:$F,5,FALSE)) -> 0 | BK193: =IF($AG193="",0,VLOOKUP($AG193,Test_Procedure!$A:$F,6,FALSE)) -> 0 | XEX193: =IF(ISERROR(VLOOKUP('Testing Report'!$G$8,$AG193:$BD193,13,FALSE)),"",VLOOKUP('Testing Report'!$G$8,$AG193:$BD193,13,FALSE)) ->  | XEY193: =IF(ISERROR(VLOOKUP('Testing Report'!$G$8,$AG193:$BD193,15,FALSE)),"",VLOOKUP('Testing Report'!$G$8,$AG193:$BD193,15,FALSE)) ->  | XEZ193: =IF(COUNTIF($X193:$X$5000,'Testing Report'!$G$8)=0,"",COUNTIF($X193:$X$5000,'Testing Report'!$G$8)) ->  | XFA193: =IF(ISERROR(VLOOKUP('Testing Report'!$G$8,$AG193:$BD193,19,FALSE)),"",VLOOKUP('Testing Report'!$G$8,$AG193:$BD193,19,FALSE)) ->  | XFB193: =IF(ISERROR(VLOOKUP('Testing Report'!$G$8,$X193:$BD193,32,FALSE)),"",VLOOKUP('Testing Report'!$G$8,$X193:$BD193,32,FALSE)) -> 
AP194: =IF($AG194="","",VLOOKUP($AG194,Test_Procedure!$A:$F,2,FALSE)) ->  | BE194: =IF($AG194="",0,VLOOKUP($AG194,Test_Procedure!$A:$F,3,FALSE)) -> 0 | BG194: =IF($AG194="",0,VLOOKUP($AG194,Test_Procedure!$A:$F,4,FALSE)) -> 0 | BI194: =IF($AG194="",0,VLOOKUP($AG194,Test_Procedure!$A:$F,5,FALSE)) -> 0 | BK194: =IF($AG194="",0,VLOOKUP($AG194,Test_Procedure!$A:$F,6,FALSE)) -> 0 | XEX194: =IF(ISERROR(VLOOKUP('Testing Report'!$G$8,$AG194:$BD194,13,FALSE)),"",VLOOKUP('Testing Report'!$G$8,$AG194:$BD194,13,FALSE)) ->  | XEY194: =IF(ISERROR(VLOOKUP('Testing Report'!$G$8,$AG194:$BD194,15,FALSE)),"",VLOOKUP('Testing Report'!$G$8,$AG194:$BD194,15,FALSE)) ->  | XEZ194: =IF(COUNTIF($X194:$X$5000,'Testing Report'!$G$8)=0,"",COUNTIF($X194:$X$5000,'Testing Report'!$G$8)) ->  | XFA194: =IF(ISERROR(VLOOKUP('Testing Report'!$G$8,$AG194:$BD194,19,FALSE)),"",VLOOKUP('Testing Report'!$G$8,$AG194:$BD194,19,FALSE)) ->  | XFB194: =IF(ISERROR(VLOOKUP('Testing Report'!$G$8,$X194:$BD194,32,FALSE)),"",VLOOKUP('Testing Report'!$G$8,$X194:$BD194,32,FALSE)) -> 
AP195: =IF($AG195="","",VLOOKUP($AG195,Test_Procedure!$A:$F,2,FALSE)) ->  | BE195: =IF($AG195="",0,VLOOKUP($AG195,Test_Procedure!$A:$F,3,FALSE)) -> 0 | BG195: =IF($AG195="",0,VLOOKUP($AG195,Test_Procedure!$A:$F,4,FALSE)) -> 0 | BI195: =IF($AG195="",0,VLOOKUP($AG195,Test_Procedure!$A:$F,5,FALSE)) -> 0 | BK195: =IF($AG195="",0,VLOOKUP($AG195,Test_Procedure!$A:$F,6,FALSE)) -> 0 | XEX195: =IF(ISERROR(VLOOKUP('Testing Report'!$G$8,$AG195:$BD195,13,FALSE)),"",VLOOKUP('Testing Report'!$G$8,$AG195:$BD195,13,FALSE)) ->  | XEY195: =IF(ISERROR(VLOOKUP('Testing Report'!$G$8,$AG195:$BD195,15,FALSE)),"",VLOOKUP('Testing Report'!$G$8,$AG195:$BD195,15,FALSE)) ->  | XEZ195: =IF(COUNTIF($X195:$X$5000,'Testing Report'!$G$8)=0,"",COUNTIF($X195:$X$5000,'Testing Report'!$G$8)) ->  | XFA195: =IF(ISERROR(VLOOKUP('Testing Report'!$G$8,$AG195:$BD195,19,FALSE)),"",VLOOKUP('Testing Report'!$G$8,$AG195:$BD195,19,FALSE)) ->  | XFB195: =IF(ISERROR(VLOOKUP('Testing Report'!$G$8,$X195:$BD195,32,FALSE)),"",VLOOKUP('Testing Report'!$G$8,$X195:$BD195,32,FALSE)) -> 
AP196: =IF($AG196="","",VLOOKUP($AG196,Test_Procedure!$A:$F,2,FALSE)) ->  | BE196: =IF($AG196="",0,VLOOKUP($AG196,Test_Procedure!$A:$F,3,FALSE)) -> 0 | BG196: =IF($AG196="",0,VLOOKUP($AG196,Test_Procedure!$A:$F,4,FALSE)) -> 0 | BI196: =IF($AG196="",0,VLOOKUP($AG196,Test_Procedure!$A:$F,5,FALSE)) -> 0 | BK196: =IF($AG196="",0,VLOOKUP($AG196,Test_Procedure!$A:$F,6,FALSE)) -> 0 | XEX196: =IF(ISERROR(VLOOKUP('Testing Report'!$G$8,$AG196:$BD196,13,FALSE)),"",VLOOKUP('Testing Report'!$G$8,$AG196:$BD196,13,FALSE)) ->  | XEY196: =IF(ISERROR(VLOOKUP('Testing Report'!$G$8,$AG196:$BD196,15,FALSE)),"",VLOOKUP('Testing Report'!$G$8,$AG196:$BD196,15,FALSE)) ->  | XEZ196: =IF(COUNTIF($X196:$X$5000,'Testing Report'!$G$8)=0,"",COUNTIF($X196:$X$5000,'Testing Report'!$G$8)) ->  | XFA196: =IF(ISERROR(VLOOKUP('Testing Report'!$G$8,$AG196:$BD196,19,FALSE)),"",VLOOKUP('Testing Report'!$G$8,$AG196:$BD196,19,FALSE)) ->  | XFB196: =IF(ISERROR(VLOOKUP('Testing Report'!$G$8,$X196:$BD196,32,FALSE)),"",VLOOKUP('Testing Report'!$G$8,$X196:$BD196,32,FALSE)) -> 
AP197: =IF($AG197="","",VLOOKUP($AG197,Test_Procedure!$A:$F,2,FALSE)) ->  | BE197: =IF($AG197="",0,VLOOKUP($AG197,Test_Procedure!$A:$F,3,FALSE)) -> 0 | BG197: =IF($AG197="",0,VLOOKUP($AG197,Test_Procedure!$A:$F,4,FALSE)) -> 0 | BI197: =IF($AG197="",0,VLOOKUP($AG197,Test_Procedure!$A:$F,5,FALSE)) -> 0 | BK197: =IF($AG197="",0,VLOOKUP($AG197,Test_Procedure!$A:$F,6,FALSE)) -> 0 | XEX197: =IF(ISERROR(VLOOKUP('Testing Report'!$G$8,$AG197:$BD197,13,FALSE)),"",VLOOKUP('Testing Report'!$G$8,$AG197:$BD197,13,FALSE)) ->  | XEY197: =IF(ISERROR(VLOOKUP('Testing Report'!$G$8,$AG197:$BD197,15,FALSE)),"",VLOOKUP('Testing Report'!$G$8,$AG197:$BD197,15,FALSE)) ->  | XEZ197: =IF(COUNTIF($X197:$X$5000,'Testing Report'!$G$8)=0,"",COUNTIF($X197:$X$5000,'Testing Report'!$G$8)) ->  | XFA197: =IF(ISERROR(VLOOKUP('Testing Report'!$G$8,$AG197:$BD197,19,FALSE)),"",VLOOKUP('Testing Report'!$G$8,$AG197:$BD197,19,FALSE)) ->  | XFB197: =IF(ISERROR(VLOOKUP('Testing Report'!$G$8,$X197:$BD197,32,FALSE)),"",VLOOKUP('Testing Report'!$G$8,$X197:$BD197,32,FALSE)) -> 
AP198: =IF($AG198="","",VLOOKUP($AG198,Test_Procedure!$A:$F,2,FALSE)) ->  | BE198: =IF($AG198="",0,VLOOKUP($AG198,Test_Procedure!$A:$F,3,FALSE)) -> 0 | BG198: =IF($AG198="",0,VLOOKUP($AG198,Test_Procedure!$A:$F,4,FALSE)) -> 0 | BI198: =IF($AG198="",0,VLOOKUP($AG198,Test_Procedure!$A:$F,5,FALSE)) -> 0 | BK198: =IF($AG198="",0,VLOOKUP($AG198,Test_Procedure!$A:$F,6,FALSE)) -> 0 | XEX198: =IF(ISERROR(VLOOKUP('Testing Report'!$G$8,$AG198:$BD198,13,FALSE)),"",VLOOKUP('Testing Report'!$G$8,$AG198:$BD198,13,FALSE)) ->  | XEY198: =IF(ISERROR(VLOOKUP('Testing Report'!$G$8,$AG198:$BD198,15,FALSE)),"",VLOOKUP('Testing Report'!$G$8,$AG198:$BD198,15,FALSE)) ->  | XEZ198: =IF(COUNTIF($X198:$X$5000,'Testing Report'!$G$8)=0,"",COUNTIF($X198:$X$5000,'Testing Report'!$G$8)) ->  | XFA198: =IF(ISERROR(VLOOKUP('Testing Report'!$G$8,$AG198:$BD198,19,FALSE)),"",VLOOKUP('Testing Report'!$G$8,$AG198:$BD198,19,FALSE)) ->  | XFB198: =IF(ISERROR(VLOOKUP('Testing Report'!$G$8,$X198:$BD198,32,FALSE)),"",VLOOKUP('Testing Report'!$G$8,$X198:$BD198,32,FALSE)) -> 
AP199: =IF($AG199="","",VLOOKUP($AG199,Test_Procedure!$A:$F,2,FALSE)) ->  | BE199: =IF($AG199="",0,VLOOKUP($AG199,Test_Procedure!$A:$F,3,FALSE)) -> 0 | BG199: =IF($AG199="",0,VLOOKUP($AG199,Test_Procedure!$A:$F,4,FALSE)) -> 0 | BI199: =IF($AG199="",0,VLOOKUP($AG199,Test_Procedure!$A:$F,5,FALSE)) -> 0 | BK199: =IF($AG199="",0,VLOOKUP($AG199,Test_Procedure!$A:$F,6,FALSE)) -> 0 | XEX199: =IF(ISERROR(VLOOKUP('Testing Report'!$G$8,$AG199:$BD199,13,FALSE)),"",VLOOKUP('Testing Report'!$G$8,$AG199:$BD199,13,FALSE)) ->  | XEY199: =IF(ISERROR(VLOOKUP('Testing Report'!$G$8,$AG199:$BD199,15,FALSE)),"",VLOOKUP('Testing Report'!$G$8,$AG199:$BD199,15,FALSE)) ->  | XEZ199: =IF(COUNTIF($X199:$X$5000,'Testing Report'!$G$8)=0,"",COUNTIF($X199:$X$5000,'Testing Report'!$G$8)) ->  | XFA199: =IF(ISERROR(VLOOKUP('Testing Report'!$G$8,$AG199:$BD199,19,FALSE)),"",VLOOKUP('Testing Report'!$G$8,$AG199:$BD199,19,FALSE)) ->  | XFB199: =IF(ISERROR(VLOOKUP('Testing Report'!$G$8,$X199:$BD199,32,FALSE)),"",VLOOKUP('Testing Report'!$G$8,$X199:$BD199,32,FALSE)) -> 
AP200: =IF($AG200="","",VLOOKUP($AG200,Test_Procedure!$A:$F,2,FALSE)) ->  | BE200: =IF($AG200="",0,VLOOKUP($AG200,Test_Procedure!$A:$F,3,FALSE)) -> 0 | BG200: =IF($AG200="",0,VLOOKUP($AG200,Test_Procedure!$A:$F,4,FALSE)) -> 0 | BI200: =IF($AG200="",0,VLOOKUP($AG200,Test_Procedure!$A:$F,5,FALSE)) -> 0 | BK200: =IF($AG200="",0,VLOOKUP($AG200,Test_Procedure!$A:$F,6,FALSE)) -> 0 | XEX200: =IF(ISERROR(VLOOKUP('Testing Report'!$G$8,$AG200:$BD200,13,FALSE)),"",VLOOKUP('Testing Report'!$G$8,$AG200:$BD200,13,FALSE)) ->  | XEY200: =IF(ISERROR(VLOOKUP('Testing Report'!$G$8,$AG200:$BD200,15,FALSE)),"",VLOOKUP('Testing Report'!$G$8,$AG200:$BD200,15,FALSE)) ->  | XEZ200: =IF(COUNTIF($X200:$X$5000,'Testing Report'!$G$8)=0,"",COUNTIF($X200:$X$5000,'Testing Report'!$G$8)) ->  | XFA200: =IF(ISERROR(VLOOKUP('Testing Report'!$G$8,$AG200:$BD200,19,FALSE)),"",VLOOKUP('Testing Report'!$G$8,$AG200:$BD200,19,FALSE)) ->  | XFB200: =IF(ISERROR(VLOOKUP('Testing Report'!$G$8,$X200:$BD200,32,FALSE)),"",VLOOKUP('Testing Report'!$G$8,$X200:$BD200,32,FALSE)) -> 
... 4300 more rows

Sheet Testing Report
A1: =IF('Data Entry'!K3="","",'Data Entry'!K3) -> [Project name] | AO1: Testing Statistics
A3: =IF('Data Entry'!K4="","",'Data Entry'!K4) -> [Sub-Project, Phase, etc.] | AO3: Printed on: | AU3: =TODAY() -> 2018-04-14
AO4: Printed by:
A5: Client: | G5: =IF('Data Entry'!K5="","",'Data Entry'!K5) -> [Client] | AA5: Contract number: | AG5: =IF('Data Entry'!BC3="","",'Data Entry'!BC3) -> [Contract Number]
A6: Proj. Mgmt. Consult.: | G6: =IF('Data Entry'!K6="","",'Data Entry'!K6) -> [Project. Mgmt. Consultant] | AA6: Project Mngr.: | AG6: =IF('Data Entry'!BC4="","",'Data Entry'!BC4) -> [Project Manager]
A7: Supervisory Consult.: | G7: =IF('Data Entry'!K7="","",'Data Entry'!K7) -> [Supervisory Consultant] | AA7: Head of CCB: | AG7: =IF('Data Entry'!BC5="","",'Data Entry'!BC5) -> [QA/QC Manager]
A8: Testing Procedure: | G8: Procedure 1
A9: Total | P9: =IF($G$8="","",COUNTIF('Data Entry'!$X$11:$AG$5000,$G$8)) -> 30
A10: =data_validation!A1 -> passed | P10: =IF($G$8="","",COUNTIF('Data Entry'!$XFD$11:$XFD$5000,$G$8&A10)) -> 27 | R10: =P10/$P$9 -> 90%
A11: =data_validation!A2 -> failed | P11: =IF($G$8="","",COUNTIF('Data Entry'!$XFD$11:$XFD$5000,$G$8&A11)) -> 3 | R11: =P11/$P$9 -> 10%
A15: ="Rule of seven control chart (last 15 occurences) of "&$G$8 -> Rule of seven control chart (last 15 occurences) of Procedure 1
A16: 1 | B16: =VLOOKUP(A16,'Data Entry'!XEZ:XFB,3,FALSE) -> 97.8 | D16: =VLOOKUP($G$8,Test_Procedure!$A:$F,3,FALSE) -> 90 | F16: =VLOOKUP($G$8,Test_Procedure!$A:$F,4,FALSE) -> 95 | H16: =VLOOKUP($G$8,Test_Procedure!$A:$F,5,FALSE) -> 88 | J16: =VLOOKUP($G$8,Test_Procedure!$A:$F,6,FALSE) -> 97 | L16: =AVERAGE(D16:G16) -> 92.5
A17: 2 | B17: =VLOOKUP(A17,'Data Entry'!XEZ:XFB,3,FALSE) -> 98.6 | D17: =VLOOKUP($G$8,Test_Procedure!$A:$F,3,FALSE) -> 90 | F17: =VLOOKUP($G$8,Test_Procedure!$A:$F,4,FALSE) -> 95 | H17: =VLOOKUP($G$8,Test_Procedure!$A:$F,5,FALSE) -> 88 | J17: =VLOOKUP($G$8,Test_Procedure!$A:$F,6,FALSE) -> 97 | L17: =AVERAGE(D17:G17) -> 92.5
A18: 3 | B18: =VLOOKUP(A18,'Data Entry'!XEZ:XFB,3,FALSE) -> 96 | D18: =VLOOKUP($G$8,Test_Procedure!$A:$F,3,FALSE) -> 90 | F18: =VLOOKUP($G$8,Test_Procedure!$A:$F,4,FALSE) -> 95 | H18: =VLOOKUP($G$8,Test_Procedure!$A:$F,5,FALSE) -> 88 | J18: =VLOOKUP($G$8,Test_Procedure!$A:$F,6,FALSE) -> 97 | L18: 92.5
A19: 4 | B19: =VLOOKUP(A19,'Data Entry'!XEZ:XFB,3,FALSE) -> 95 | D19: =VLOOKUP($G$8,Test_Procedure!$A:$F,3,FALSE) -> 90 | F19: =VLOOKUP($G$8,Test_Procedure!$A:$F,4,FALSE) -> 95 | H19: =VLOOKUP($G$8,Test_Procedure!$A:$F,5,FALSE) -> 88 | J19: =VLOOKUP($G$8,Test_Procedure!$A:$F,6,FALSE) -> 97 | L19: 92.5
A20: 5 | B20: =VLOOKUP(A20,'Data Entry'!XEZ:XFB,3,FALSE) -> 94 | D20: =VLOOKUP($G$8,Test_Procedure!$A:$F,3,FALSE) -> 90 | F20: =VLOOKUP($G$8,Test_Procedure!$A:$F,4,FALSE) -> 95 | H20: =VLOOKUP($G$8,Test_Procedure!$A:$F,5,FALSE) -> 88 | J20: =VLOOKUP($G$8,Test_Procedure!$A:$F,6,FALSE) -> 97 | L20: 92.5
A21: 6 | B21: =VLOOKUP(A21,'Data Entry'!XEZ:XFB,3,FALSE) -> 93 | D21: =VLOOKUP($G$8,Test_Procedure!$A:$F,3,FALSE) -> 90 | F21: =VLOOKUP($G$8,Test_Procedure!$A:$F,4,FALSE) -> 95 | H21: =VLOOKUP($G$8,Test_Procedure!$A:$F,5,FALSE) -> 88 | J21: =VLOOKUP($G$8,Test_Procedure!$A:$F,6,FALSE) -> 97 | L21: 92.5
A22: 7 | B22: =VLOOKUP(A22,'Data Entry'!XEZ:XFB,3,FALSE) -> 92 | D22: =VLOOKUP($G$8,Test_Procedure!$A:$F,3,FALSE) -> 90 | F22: =VLOOKUP($G$8,Test_Procedure!$A:$F,4,FALSE) -> 95 | H22: =VLOOKUP($G$8,Test_Procedure!$A:$F,5,FALSE) -> 88 | J22: =VLOOKUP($G$8,Test_Procedure!$A:$F,6,FALSE) -> 97 | L22: 92.5
A23: 8 | B23: =VLOOKUP(A23,'Data Entry'!XEZ:XFB,3,FALSE) -> 91 | D23: =VLOOKUP($G$8,Test_Procedure!$A:$F,3,FALSE) -> 90 | F23: =VLOOKUP($G$8,Test_Procedure!$A:$F,4,FALSE) -> 95 | H23: =VLOOKUP($G$8,Test_Procedure!$A:$F,5,FALSE) -> 88 | J23: =VLOOKUP($G$8,Test_Procedure!$A:$F,6,FALSE) -> 97 | L23: 92.5
A24: 9 | B24: =VLOOKUP(A24,'Data Entry'!XEZ:XFB,3,FALSE) -> 93 | D24: =VLOOKUP($G$8,Test_Procedure!$A:$F,3,FALSE) -> 90 | F24: =VLOOKUP($G$8,Test_Procedure!$A:$F,4,FALSE) -> 95 | H24: =VLOOKUP($G$8,Test_Procedure!$A:$F,5,FALSE) -> 88 | J24: =VLOOKUP($G$8,Test_Procedure!$A:$F,6,FALSE) -> 97 | L24: 92.5
A25: 10 | B25: =VLOOKUP(A25,'Data Entry'!XEZ:XFB,3,FALSE) -> 94.6 | D25: =VLOOKUP($G$8,Test_Procedure!$A:$F,3,FALSE) -> 90 | F25: =VLOOKUP($G$8,Test_Procedure!$A:$F,4,FALSE) -> 95 | H25: =VLOOKUP($G$8,Test_Procedure!$A:$F,5,FALSE) -> 88 | J25: =VLOOKUP($G$8,Test_Procedure!$A:$F,6,FALSE) -> 97 | L25: 92.5
A26: 11 | B26: =VLOOKUP(A26,'Data Entry'!XEZ:XFB,3,FALSE) -> 98.8 | D26: =VLOOKUP($G$8,Test_Procedure!$A:$F,3,FALSE) -> 90 | F26: =VLOOKUP($G$8,Test_Procedure!$A:$F,4,FALSE) -> 95 | H26: =VLOOKUP($G$8,Test_Procedure!$A:$F,5,FALSE) -> 88 | J26: =VLOOKUP($G$8,Test_Procedure!$A:$F,6,FALSE) -> 97 | L26: 92.5
A27: 12 | B27: =VLOOKUP(A27,'Data Entry'!XEZ:XFB,3,FALSE) -> 95.8 | D27: =VLOOKUP($G$8,Test_Procedure!$A:$F,3,FALSE) -> 90 | F27: =VLOOKUP($G$8,Test_Procedure!$A:$F,4,FALSE) -> 95 | H27: =VLOOKUP($G$8,Test_Procedure!$A:$F,5,FALSE) -> 88 | J27: =VLOOKUP($G$8,Test_Procedure!$A:$F,6,FALSE) -> 97 | L27: 92.5
A28: 13 | B28: =VLOOKUP(A28,'Data Entry'!XEZ:XFB,3,FALSE) -> 94.8 | D28: =VLOOKUP($G$8,Test_Procedure!$A:$F,3,FALSE) -> 90 | F28: =VLOOKUP($G$8,Test_Procedure!$A:$F,4,FALSE) -> 95 | H28: =VLOOKUP($G$8,Test_Procedure!$A:$F,5,FALSE) -> 88 | J28: =VLOOKUP($G$8,Test_Procedure!$A:$F,6,FALSE) -> 97 | L28: 92.5
A29: 14 | B29: =VLOOKUP(A29,'Data Entry'!XEZ:XFB,3,FALSE) -> 93.8 | D29: =VLOOKUP($G$8,Test_Procedure!$A:$F,3,FALSE) -> 90 | F29: =VLOOKUP($G$8,Test_Procedure!$A:$F,4,FALSE) -> 95 | H29: =VLOOKUP($G$8,Test_Procedure!$A:$F,5,FALSE) -> 88 | J29: =VLOOKUP($G$8,Test_Procedure!$A:$F,6,FALSE) -> 97 | L29: 92.5
A30: 15 | B30: =VLOOKUP(A30,'Data Entry'!XEZ:XFB,3,FALSE) -> 92.8 | D30: =VLOOKUP($G$8,Test_Procedure!$A:$F,3,FALSE) -> 90 | F30: =VLOOKUP($G$8,Test_Procedure!$A:$F,4,FALSE) -> 95 | H30: =VLOOKUP($G$8,Test_Procedure!$A:$F,5,FALSE) -> 88 | J30: =VLOOKUP($G$8,Test_Procedure!$A:$F,6,FALSE) -> 97 | L30: 92.5

Sheet Test_Procedure
B1: UOM | C1: Range (min) | D1: Range (max) | E1: Lower tolerance | F1: Upper tolerance
A2: Procedure 1 | B2: mm | C2: 90 | D2: 95 | E2: 88 | F2: 97

Sheet data_validation
A1: passed
A2: failed
